{"text_format":"1","workbook":"xlsx","n_sheets":6,"sheets":["Introduction","Pre-App Stage","Outline Application Stage","Detailed Application Stage","Post-Construction Stage","Drop- down list"],"not_rendered":{"charts":0,"images":1,"macros":1,"external_links":0,"defined_names":53,"comments":0,"pivot_tables":0},"unopened":[],"bounds":{"document_bytes":16777216,"sheet_cells":100000,"rows_first":2000,"rows_last":500,"rows_between":2000,"halvings":0,"cell_chars":16384,"cell_head_chars":4096},"cells_cut":0,"cells_raw":0,"read":"whole","date_system":"1900"}

{"sheet":"Introduction","index":0,"n_rows":36,"n_cols":7,"rows_kept":36,"cut":false,"hidden":false,"merged":[[21,6,21,9],[22,6,22,9],[23,6,23,9],[24,6,24,9],[25,6,25,9],[32,6,32,9],[28,6,28,9],[31,6,31,9],[26,6,26,9],[27,6,27,9],[29,6,29,9],[30,6,30,9]]}
["Greater London Authority - Circular Economy Statement template "]
[]
["How to use this spreadsheet"]
["This template should be used by planning applicants to fulfil the requirements of the Mayor's Circular Economy (CE) Statement policy set out in London Plan Policy SI 7 'Reducing waste and supporting the Circular Economy’. Before completing and submitting this spreadsheet to the GLA, applicants should read the CE statement guidance: https://www.london.gov.uk/what-we-do/planning/implementing-london-plan/london-plan-guidance-and-spgs/circular-economy-statement-guidance-consultation-draft "]
[]
["Applicant are required to submit CE statement information to the GLA at the following three stages: pre-applicaton, outline/detailed planning submission and post-construction. Separate tabs are provided in this spreadsheet for each stage. An outline of the information required at each stage and how to submit it is provided below. Please enter information to the light yellow-coloured cells only, do not enter information in the grey cells as these will be automatically calculated. The light green-coloured cells should be completed to achieve 'pioneering' status."]
[]
["1. Pre-application stage"]
["At pre-application stage, applicants are required to complete the pre-application information tab of this template which requires applicants to confirm details about the site and to provide details of the circular economy design approaches that are informing the existing and new development (including by building layer for the latter). All tables should be completed. This should be submitted to the GLA along with all other pre-application material."]
[]
["2. Outline/detailed planning submission stage"]
["At this stage, applicants are required to complete the outline or detailed planning stage tab of this template (whichever is relevant) and submit it to the GLA along with their planning application. Applicants are required to complete all tables, including the Bill of Materials and Recycling and Waste Reporting tables. Please enter information to the light yellow-coloured cells only, do not enter information in the grey cells as these will be automatically calculated. The light green-coloured cells should be completed to achieve 'pioneering' status."]
[]
["3. Post-construction stage"]
["At the final stage of the CE statement process, applicants should complete the post-construction tab of this template and submit it to the GLA within three months of practical completion. This will require an update of the information provided at planning submission stage and for the actual figures to be reported using actual material quantities during construction. Information should be submitted to: circulareconomystatements@london.gov.uk   "]
[]
["Queries"]
["Any queries or feedback on this template should be submitted to:"]
["circulareconomystatements@london.gov.uk"]
[]
[]
["Requirement by application stage (see relevant section of guidance for more information)","Pre-application stage (suggested)","Outline application[1]","Full application / reserved matters[2]","Post-construction","Checklist","Information Reference (Please indicate whether this has been included in the report to accompany this template or as a separate submission)"]
["CE targets (see section 4.2)","Encouraged","Yes ","Yes  ","Yes (Performance reported)",null,"Evidence in CES template spreadsheet"]
["CE design approaches (see sections 2.3 - 2.5 and 4.3)","Yes ","Yes ","Yes ","N/A",null,"Evidence in CES template spreadsheet"]
["CE design principles (see sections 2.1, 4.4 - 4.5)","Yes","No","No","No",null,"Evidence in CES template spreadsheet"]
["CE design principles by building layer (see sections 4.5)","No","Yes","Yes","No",null,"Evidence in CES template spreadsheet"]
["Pre-redevelopment audit (see section 4.6)","Encouraged ","Yes","Yes","N/A"]
["Pre-demolition audit (see section 4.6)","Encouraged","Yes","Yes","N/A"]
["Bill of materials (including calculations – see section 4.7)","No","Yes (Estimated)","Yes (Estimated) ","Yes (Actual)",null,"Evidence in CES template spreadsheet"]
["End of life strategy (see section 4.7)","No","No","Yes ","Encouraged"]
["Operational waste management plan (see section 4.8)","No","No","Yes ","Encouraged"]
["Recycling and waste reporting (see Section 4.9)","No","Yes (Estimated)","Yes (Estimated) ","Yes (Actual)",null,"Evidence in CES template spreadsheet"]
["Lessons learnt and key achievements (see section 4.10)","N/A","N/A","N/A","Yes ",null,"Evidence in CES template spreadsheet"]
[]
["[1] Also applicable to the outline and detailed part of hybrid applications."]
["[2] Also applicable to the outline and detailed part of hybrid applications."]

{"sheet":"Pre-App Stage","index":1,"n_rows":88,"n_cols":7,"rows_kept":88,"cut":false,"hidden":false,"merged":[[34,1,34,2],[0,0,1,6],[3,0,3,5],[4,0,4,2],[4,4,4,5],[5,2,5,3],[51,1,51,2],[35,1,35,2],[36,1,36,2],[37,1,37,2],[38,1,38,2],[39,1,39,2],[40,1,40,2],[41,1,41,2],[42,1,42,2],[43,1,43,2],[44,1,44,2],[50,1,50,2],[70,4,70,5],[70,6,70,8],[71,4,71,5],[70,1,70,3],[52,1,52,2],[53,1,53,2],[54,1,54,2],[55,1,55,2],[56,1,56,2],[57,1,57,2],[71,6,71,8],[83,1,83,2],[84,1,84,2],[85,1,85,2],[82,1,82,2],[71,1,74,2],[75,1,75,3],[76,1,76,3],[77,1,77,3],[78,1,78,3],[86,1,86,2],[87,1,87,2],[88,1,88,2],[88,4,88,5],[88,6,88,8],[89,1,89,2],[89,4,89,5],[89,6,89,8],[90,1,90,2],[90,4,90,5],[90,6,90,8],[76,6,76,8],[77,6,77,8],[78,6,78,8],[72,4,72,5],[73,4,73,5],[74,4,74,5],[75,4,75,5],[76,4,76,5],[77,4,77,5],[72,6,72,8],[73,6,73,8],[74,6,74,8],[75,6,75,8],[78,4,78,5]]}
[]
[]
[]
["Pre-Application Stage - Circular Economy Statement"]
[]
[null,null,"Project details"]
[null,null,"Project name"]
[null,null,"Planning application reference number (if applicable)"]
[null,null,"Applicant"]
[null,null,"London Borough"]
[null,null,"Brief description of the project"]
[null,null,"Author/s"]
[null,null,"Date of assessment"]
[null,null,"Number of Use Types"]
[null,null,"Use Class / Type","Floor Area by use type (m2)"]
[null,null,"Use Class / Type 1","Use Class / Type 1 GIA"]
[null,null,"Use Class / Type 2","Use Class / Type 2 GIA"]
[null,null,"Use Class / Type 3","Use Class / Type 3 GIA"]
[null,null,"Use Class / Type 4","Use Class / Type 4 GIA"]
[null,null,"Use Class / Type 5","Use Class / Type 5 GIA"]
[null,null,"Use Class / Type 6","Use Class / Type 6 GIA"]
[null,null,"Use Class / Type 7","Use Class / Type 7 GIA"]
[null,null,"Use Class / Type 8","Use Class / Type 8 GIA"]
[null,null,"Use Class / Type 9","Use Class / Type 9 GIA"]
[null,null,"Use Class / Type 10","Use Class / Type 10 GIA"]
[null,null,"Use Class / Type 11","Use Class / Type 11 GIA"]
[null,null,"Use Class / Type 12","Use Class / Type 12 GIA"]
[null,null,"Use Class / Type 13","Use Class / Type 13 GIA"]
[null,null,"Use Class / Type 14","Use Class / Type 14 GIA"]
[null,null,"Use Class / Type 15","Use Class / Type 15 GIA"]
[null,null,"Overall GIA (m2)",{"$f":"SUM(D16:D30)","v":0}]
[]
[]
[null,"Circular Economy Design Approaches"]
[null,"Circular Economy Design Approaches for Existing Structures / Buildings",null,"Applicant Response"]
[null,"Is there an existing building on the site?"]
[null,"Is it technically feasible to retain the building(s) in whole or in part?"]
[null,"Are there any building materials or elements available on site that can be used?"]
[null,"Is the existing building, or parts of the building, suited to the requirements for the site?"]
[null,"Is it technically feasible to recover the 'residual value' of the buildings elements or materials?"]
[null,"The preferred strategy is:",null,"NEW BUILDING"]
[null,"The preferred strategy is:",null,"RETAIN and RETROFIT"]
[null,"The preferred strategy is:",null,"PARTIAL RETENTION and REFURBISHMENT"]
[null,"The preferred strategy is:",null,"DISASSEMBLE/DECONSTRUCT AND REUSE"]
[null,"The preferred strategy is:",null,"DEMOLISH/DECONSTRUCT AND RECYCLE"]
[null,"Circular Economy Design Approach","Phase / Building / Area / Layer","Strategic Response"]
[null,"Retain and Retrofit"]
[null,"Reconstruct"]
[null,"Disassemble "]
[null,"Demolish and Recycle"]
[null,"Circular Economy Design Approaches for New Buildings, Infrastructure and Layers Over the Lifetime of the Development",null,"Applicant Response"]
[null,"Is the whole building designed to have a short life on its current site? (e.g. less than 10 yrs)"]
[null,"Is there likely to be a need for building of a similar size (etc.) in different locations in the future?"]
[null,"Is it foreseeable that the building will need to change use/function within its design life?"]
[null,"The preferred strategy is:",null,"Design for BUILDING RELOCATION"]
[null,"The preferred strategy is:",null,"Design for COMPONENT / MATERIAL REUSE"]
[null,"The preferred strategy is:",null,"Design for ADAPTABILITY"]
[null,"All developments should apply the 6 Circular Economy principles, including:",null,"Designing for DISASSEMBLY and ADAPTABILITY, MATERIAL REUSE ON-SITE and/or RECYCLING should be maximised"]
[null,"Circular Economy Design Approach","Phase / Building / Area / Layer","Strategic Response"]
[null,"Building relocation"]
[null,"Component or material reuse"]
[null,"Adaptability"]
[null,"Flexibility"]
[null,"Replaceability"]
[null,"Disassembly"]
[null,"Longevity"]
[]
[]
[]
[null,"Circular Economy Design Principles"]
[null,"Design Principle",null,null,"Phase / Building / Area / Layer",null,"Design Response"]
[null,"Designing out waste",null,"Module A - Product Sourcing and Construction Stage"]
[null,null,null,"Module B - In-Use Stage"]
[null,null,null,"Module C - End-of-Life Stage"]
[null,null,null,"Module D - Benefits and Loads Beyond the System Boundary"]
[null,"Designing for longevity"]
[null,"Designing for adaptability or flexibility"]
[null,"Designing for disassembly"]
[null,"Using systems, elements or materials that can be re-used and recycled"]
[]
[]
[null,"Circular Economy Targets"]
[null,"Circular economy targets for existing and new development",null,"Policy Requirement","Target Aiming For (%)","Policy Met?"]
[null,"Demolition waste materials (non-hazardous)",null,"Minimum of 95% diverted from landfill for reuse, recycling or recovery.",null,{"$f":"IF(ISNUMBER(E84),IF(E84=95%,\"Yes\",IF(E84>95%,\"Exceeds Policy\",\"No\")),\"\")","v":""}]
[null,"Excavation waste materials",null,"Minimum of 95% diverted from landfill for beneficial reuse.",null,{"$f":"IF(ISNUMBER(E85),IF(E85=95%,\"Yes\",IF(E85>95%,\"Exceeds Policy\",\"No\")),\"\")","v":""}]
[null,"Construction waste materials",null,"Minimum of 95% diverted from landfill for reuse, recycling or recovery.",null,{"$f":"IF(ISNUMBER(E86),IF(E86=95%,\"Yes\",IF(E86>95%,\"Exceeds Policy\",\"No\")),\"\")","v":""}]
[null,"Municipal waste",null,"Minimum 65% recycling rate by 2030.",null,{"$f":"IF(ISNUMBER(E87),IF(E87=65%,\"Yes\",IF(E87>65%,\"Exceeds Policy\",\"No\")),\"\")","v":""}]
[null,"Recycled content",null,"Minimum 20% of the building material elements to be comprised of recycled or reused content.",null,{"$f":"IF(ISNUMBER(E88),IF(E88=20%,\"Yes\",IF(E88>20%,\"Exceeds Policy\",\"No\")),\"\")","v":""}]

{"sheet":"Outline Application Stage","index":2,"n_rows":488,"n_cols":26,"rows_kept":488,"cut":false,"hidden":false,"merged":[[434,1,453,1],[434,2,453,3],[433,2,433,3],[392,2,411,3],[392,1,411,1],[413,2,432,3],[413,1,432,1],[329,1,348,1],[350,2,369,3],[350,1,369,1],[371,2,390,3],[371,1,390,1],[276,1,290,1],[292,2,311,3],[292,1,311,1],[313,2,327,3],[313,1,327,1],[218,1,237,1],[239,2,253,3],[239,1,253,1],[255,1,274,1],[255,2,274,3],[41,1,41,2],[42,1,42,2],[43,1,43,2],[44,1,44,2],[50,1,50,2],[91,1,105,1],[91,2,105,3],[370,2,370,3],[391,2,391,3],[175,2,175,3],[275,2,275,3],[291,2,291,3],[312,2,312,3],[328,2,328,3],[349,2,349,3],[218,2,237,3],[276,2,290,3],[329,2,348,3],[154,2,154,3],[196,2,196,3],[217,2,217,3],[238,2,238,3],[254,2,254,3],[155,2,174,3],[40,1,40,2],[0,0,1,6],[3,0,3,5],[4,0,4,2],[4,4,4,5],[5,2,5,3],[34,1,34,2],[35,1,35,2],[36,1,36,2],[37,1,37,2],[38,1,38,2],[39,1,39,2],[51,1,51,2],[52,1,52,2],[53,1,53,2],[54,1,54,2],[55,1,55,2],[56,1,56,2],[70,14,75,14],[70,15,75,15],[72,1,72,3],[73,1,73,3],[74,1,74,3],[75,1,75,3],[70,13,75,13],[75,4,75,11],[70,1,71,3],[70,4,70,11],[70,12,75,12],[57,1,57,2],[76,1,79,2],[80,1,80,3],[81,1,81,3],[88,2,88,3],[83,1,83,3],[82,1,82,3],[461,13,461,16],[462,13,463,13],[462,14,463,14],[462,15,463,15],[462,16,463,16],[462,5,463,5],[462,6,463,6],[462,7,462,8],[461,4,461,6],[461,7,461,12],[462,9,462,10],[462,11,462,12],[88,4,88,11],[88,12,88,16],[89,2,89,3],[90,2,90,3],[106,2,106,3],[122,2,122,3],[487,1,487,2],[487,4,487,5],[487,6,487,8],[484,1,484,2],[484,6,484,8],[485,1,485,2],[485,6,485,8],[486,1,486,2],[486,4,486,5],[486,6,486,8],[88,17,88,21],[88,22,88,25],[481,1,481,2],[481,6,481,8],[482,1,482,2],[482,6,482,8],[483,1,483,2],[483,6,483,8],[480,1,480,2],[480,6,480,8],[462,4,463,4],[138,2,138,3],[107,2,121,3],[412,2,412,3],[155,1,174,1],[176,2,195,3],[176,1,195,1],[197,2,216,3],[197,1,216,1],[107,1,121,1],[123,2,137,3],[139,2,153,3],[139,1,153,1],[123,1,137,1]]}
[]
[]
[]
["Outline Application Stage - Circular Economy Statement"]
[]
[null,null,"Project details"]
[null,null,"Project name","Ham Close Regeneration"]
[null,null,"Planning application reference number (if applicable)"]
[null,null,"Applicant","Hill Residential"]
[null,null,"London Borough","Richmond Upon Thames"]
[null,null,"Brief description of the project","The Development proposals comprise the demolition of existing buildings on-site and phased mixed-use development comprising 452 residential homes (Class C3) up to six storeys; a Community/Leisure Facility (Class F2) of up to 3 storeys in height, a “MakerLabs” (sui generis) of up to 2 storeys together with basement car parking and site wide landscaping."]
[null,null,"Author/s","Hill  Residential"]
[null,null,"Date of assessment","2022-04-07"]
[null,null,"Number of Use Types",3]
[null,null,"Use Class / Type","Floor Area by use type (m2)"]
[null,null,"C3",41817.4]
[null,null,"F2",716]
[null,null,"Sui generis",130]
[null,null,"Use Class / Type 4","Use Class / Type 4 GIA"]
[null,null,"Use Class / Type 5","Use Class / Type 5 GIA"]
[null,null,"Use Class / Type 6","Use Class / Type 6 GIA"]
[null,null,"Use Class / Type 7","Use Class / Type 7 GIA"]
[null,null,"Use Class / Type 8","Use Class / Type 8 GIA"]
[null,null,"Use Class / Type 9","Use Class / Type 9 GIA"]
[null,null,"Use Class / Type 10","Use Class / Type 10 GIA"]
[null,null,"Use Class / Type 11","Use Class / Type 11 GIA"]
[null,null,"Use Class / Type 12","Use Class / Type 12 GIA"]
[null,null,"Use Class / Type 13","Use Class / Type 13 GIA"]
[null,null,"Use Class / Type 14","Use Class / Type 14 GIA"]
[null,null,"Use Class / Type 15","Use Class / Type 15 GIA"]
[null,null,"Overall GIA (m2)",{"$f":"SUM(D16:D30)","v":42663.4}]
[]
[]
[null,"Circular Economy Design Approaches"]
[null,"Circular Economy Design Approaches for Existing Structures / Buildings",null,"Applicant Response"]
[null,"Is there an existing building on the site?",null,"Yes"]
[null,"Is it technically feasible to retain the building(s) in whole or in part?",null,"No"]
[null,"Are there any building materials or elements available on site that can be used?"]
[null,"Is the existing building, or parts of the building, suited to the requirements for the site?"]
[null,"Is it technically feasible to recover the 'residual value' of the buildings elements or materials?",null,"No"]
[null,"The preferred strategy is:",null,"NEW BUILDING"]
[null,"The preferred strategy is:",null,"RETAIN and RETROFIT"]
[null,"The preferred strategy is:",null,"PARTIAL RETENTION and REFURBISHMENT"]
[null,"The preferred strategy is:",null,"DISASSEMBLE/DECONSTRUCT AND REUSE"]
[null,"The preferred strategy is:",null,"DEMOLISH/DECONSTRUCT AND RECYCLE"]
[null,"Circular Economy Design Approach","Phase/Building/Area/Layer","Strategic Response"]
[null,"Refurbish"]
[null,"Repurpose"]
[null,"Disassemble / Deconstruct and Reuse"]
[null,"Demolish / Deconstruct and Recycle"]
[null,"Circular Economy Design Approaches for New Buildings, Infrastructure and Layers Over the Lifetime of the Development",null,"Applicant Response"]
[null,"Is the whole building designed to have a short life on its current site? (e.g. less than 10 yrs)",null,"No"]
[null,"Is there likely to be a need for building of a similar size (etc.) in different locations in the future?"]
[null,"Is it foreseeable that the building will need to change use/function within its design life?",null,"No"]
[null,"The preferred strategy is:",null,"Design for BUILDING RELOCATION"]
[null,"The preferred strategy is:",null,"Design for COMPONENT / MATERIAL REUSE"]
[null,"The preferred strategy is:",null,"Design for ADAPTABILITY"]
[null,"All developments should apply the 6 Circular Economy principles, including:",null,"Designing for DISASSEMBLY and ADAPTABILITY, MATERIAL REUSE ON-SITE and/or RECYCLING should be maximised"]
[null,"Circular Economy Design Approach","Phase/Building/Area/Layer","Strategic Response"]
[null,"Building relocation"]
[null,"Component or material reuse"]
[null,"Adaptability"]
[null,"Flexibility"]
[null,"Replaceability"]
[null,"Disassembly"]
[null,"Longevity"]
[]
[]
[null,"Circular Economy Design Principles by Building Layer"]
[null,"The Circular Economy Commitments table should consider where the Applicant seeks to go beyond standard practice. If there are multiple phases / buildings / areas with different measures / strategies, please specify these separately within the table below."]
[null,null,null,null,"Building Layer",null,null,null,null,null,null,null,"Summary","Challenges","Actions & Counter-Actions, Who and When","Plan to Prove and Quantify"]
[null,null,null,null,"Site","Substructure","Superstructure","Shell/Skin","Services","Space ","Stuff","Construction Stuff"]
[null,"1. Is it likely the layer (or components within it) will need to be moved or otherwise modified within 5-15 years, e.g. due to changing use patterns or user requirements?",null,null,"N/A","No","No","No","Yes","Yes","Yes","N/A"]
[null,"2. Is it likely the layer (or components within it) will need to be changed, upgraded or replaced within 5-15 years, e.g. for improved performance, aesthetics",null,null,"N/A",null,null,null,null,null,null,"N/A"]
[null,"The preferred strategy is:",null,null,"-",{"$f":"IF(F73=\"Yes\",\"Design for FLEXIBILITY\",IF(F74=\"Yes\",\"Design for REPLACEABILITY\",IF(AND(F73=\"No\",F74=\"No\"),\"Design for ADAPTABILITY\",\"\")))","v":""},{"$f":"IF(G73=\"Yes\",\"Design for FLEXIBILITY\",IF(G74=\"Yes\",\"Design for REPLACEABILITY\",IF(AND(G73=\"No\",G74=\"No\"),\"Design for ADAPTABILITY\",\"\")))","v":""},"","Design for FLEXIBILITY","Design for FLEXIBILITY","Design for FLEXIBILITY","-"]
[null,"Design Principles",null,null,"All developments should apply the 6 circular economy principles, including designing for DISASSEMBLY and ADAPTABILITY, MATERIAL REUSE ON-SITE and/or RECYCLING should be maximised."]
[null,"Designing out waste",null,"Module A - Product Sourcing and Construction Stage"]
[null,null,null,"Module B - In-Use Stage"]
[null,null,null,"Module C - End-of-Life Stage"]
[null,null,null,"Module D - Benefits and Loads Beyond the System Boundary"]
[null,"Designing for longevity"]
[null,"Designing for adaptability or flexibility"]
[null,"Designing for disassembly"]
[null,"Using systems, elements or materials that can be re-used and recycled"]
[]
[]
[null,"Bill of Materials"]
[null,"Please click the + symbol to the left hand side of the Bill of Materials table to view or hide the input rows for each Building Element Category. The rows for substructure and frame have been unhidden to highlight this."]
[null,null,"BUILDING ELEMENT CATEGORY -  LEVEL 1 (based on the RICS New Rules of\nMeasurement (NRM) classification system level 2 sub-elements https://www.rics.org/globalassets/rics-website/media/products/data-products/bcis-construction/bcis-elemental-standard-form-cost-analysis-4th-nrm-edition-2012.pdf)",null,"PRODUCT AND CONSTRUCTION STAGE (MODULE A)",null,null,null,null,null,null,null,"USE STAGE (MODULE B)",null,null,null,null,"END OF LIFE STAGE (MODULE C)",null,null,null,null,"BENEFITS BEYOND THE SYSTEM BOUNDARY (MODULE D)"]
[null,null,"Building Element Category",null,"Material Type","Material quantity\n(Module A)\n(kg)","Material intensity \n(Module A) \n(kg/m2 GIA)","Performance Indicator (LPG Appendix 1)","Construction Waste Factor \n(Module A)","Construction Waste \n(Module A)\n(kg)","Recycled Content \nby mass (kg)","Recycled Content \nby value (%)","Expected Lifespan\n(years)","Number of Replacements (over assumed 60-year period)","Repair and Replacement quantities of materials\n(Module B)\n (kg)","Construction Waste Factor \n(Module B)","Construction Waste \n(Module B)\n(kg)","Design for Disassembly","Assumed End of Life Scenario\n(Description)","% Reusing ","% Recycling","% Landfill","Estimated reusable materials (kg)","Estimated reusable materials intensity\n(kg/m2 GIA)","Estimated recyclable materials (kg)","Estimated recyclable materials intensity\n(kg/m2 GIA)"]
[null,0.1,"Demolition: Toxic/Hazardous/Contaminated Material Treatment",null,"-",{"$f":"SUM(F92:F106)","v":0},{"$f":"IF(AND(F91<>0,$D$31<>0),F91/$D$31,0)","v":0},"-","-",{"$f":"SUM(J92:J106)","v":0},"-","-","-","-",{"$f":"SUM(O92:O106)","v":0},"-",{"$f":"SUM(Q92:Q106)","v":0},"-","-",{"$f":"IF(W91<>0,W91/($F$91+$O$91),0)","v":0},{"$f":"IF(Y91<>0,Y91/($F$91+$O$91),0)","v":0},{"$f":"1-T91-U91","v":1},{"$f":"SUM(W92:W106)","v":0},{"$f":"IF(AND(W91<>0,$D$31<>0),W91/$D$31,0)","v":0},{"$f":"SUM(Y92:Y106)","v":0},{"$f":"IF(AND(Y91<>0,$D$31<>0),Y91/$D$31,0)","v":0}]
[null,0.1,"Demolition: Toxic/Hazardous/Contaminated Material Treatment",null,null,null,{"$f":"IF(AND(F92<>0,$D$31<>0),F92/$D$31,0)","v":0},"-",null,{"$f":"F92*I92","v":0},null,null,null,{"$f":"IF(M92<>0,INT(60/M92),0)","v":0},{"$f":"N92*I92","v":0},null,{"$f":"P92*M92","v":0},null,null,0,0,{"$f":"1-T92-U92","v":1},{"$f":"T92*(F92+O92)","v":0},{"$f":"IF(AND(W92<>0,$D$31<>0),W92/$D$31,0)","v":0},{"$f":"U92*(F92+O92)","v":0},{"$f":"IF(AND(Y92<>0,$D$31<>0),Y92/$D$31,0)","v":0}]
[null,null,null,null,null,null,{"$f":"IF(AND(F93<>0,$D$31<>0),F93/$D$31,0)","v":0},"-",null,{"$f":"F93*I93","v":0},null,null,null,{"$f":"IF(M93<>0,INT(60/M93),0)","v":0},{"$f":"N93*I93","v":0},null,{"$f":"P93*M93","v":0},null,null,0,0,{"$f":"1-T93-U93","v":1},{"$f":"T93*(F93+O93)","v":0},{"$f":"IF(AND(W93<>0,$D$31<>0),W93/$D$31,0)","v":0},{"$f":"U93*(F93+O93)","v":0},0]
[null,null,null,null,null,null,0,"-",null,0,null,null,null,0,0,null,0,null,null,0,0,1,0,0,0,0]
[null,null,null,null,null,null,0,"-",null,0,null,null,null,0,0,null,0,null,null,0,0,1,0,0,0,0]
[null,null,null,null,null,null,0,"-",null,0,null,null,null,0,0,null,0,null,null,0,0,1,0,0,0,0]
[null,null,null,null,null,null,0,"-",null,0,null,null,null,0,0,null,0,null,null,0,0,1,0,0,0,0]
[null,null,null,null,null,null,0,"-",null,0,null,null,null,0,0,null,0,null,null,0,0,1,0,0,0,0]
[null,null,null,null,null,null,0,"-",null,0,null,null,null,0,0,null,0,null,null,0,0,1,0,0,0,0]
[null,null,null,null,null,null,0,"-",null,0,null,null,null,0,0,null,0,null,null,0,0,1,0,0,0,0]
[null,null,null,null,null,null,0,"-",null,0,null,null,null,0,0,null,0,null,null,0,0,1,0,0,0,0]
[null,null,null,null,null,null,0,"-",null,0,null,null,null,0,0,null,0,null,null,0,0,1,0,0,0,0]
[null,null,null,null,null,null,0,"-",null,0,null,null,null,0,0,null,0,null,null,0,0,1,0,0,0,0]
[null,null,null,null,null,null,0,"-",null,0,null,null,null,0,0,null,0,null,null,0,0,1,0,0,0,0]
[null,null,null,null,null,null,0,"-",null,0,null,null,null,0,0,null,0,null,null,0,0,1,0,0,0,0]
[null,null,null,null,null,null,0,"-",null,0,null,null,null,0,0,null,0,null,null,0,0,1,0,0,0,0]
[null,0.2,"Major Demolition Works",null,"-",{"$f":"SUM(F108:F122)","v":0},{"$f":"IF(AND(F107<>0,$D$31<>0),F107/$D$31,0)","v":0},"-","-",{"$f":"SUM(J108:J122)","v":0},"-","-","-","-",{"$f":"SUM(O108:O122)","v":0},"-",{"$f":"SUM(Q108:Q122)","v":0},"-","-",{"$f":"IF(W107<>0,W107/($F$107+$O$107),0)","v":0},{"$f":"IF(Y107<>0,Y107/($F$107+$O$107),0)","v":0},{"$f":"1-T107-U107","v":1},{"$f":"SUM(W108:W122)","v":0},0,{"$f":"SUM(Y108:Y122)","v":0},0]
[null,0.2,"Major Demolition Works",null,null,null,{"$f":"IF(AND(F108<>0,$D$31<>0),F108/$D$31,0)","v":0},"-",null,{"$f":"I108*F108","v":0},null,null,null,0,0,null,0,null,null,0,0,1,0,0,0,0]
[null,null,null,null,null,null,{"$f":"IF(AND(F109<>0,$D$31<>0),F109/$D$31,0)","v":0},"-",null,0,null,null,null,0,0,null,0,null,null,0,0,1,0,0,0,0]
[null,null,null,null,null,null,{"$f":"IF(AND(F110<>0,$D$31<>0),F110/$D$31,0)","v":0},"-",null,0,null,null,null,0,0,null,0,null,null,0,0,1,0,0,0,0]
[null,null,null,null,null,null,0,"-",null,0,null,null,null,0,0,null,0,null,null,0,0,1,0,0,0,0]
[null,null,null,null,null,null,0,"-",null,0,null,null,null,0,0,null,0,null,null,0,0,1,0,0,0,0]
[null,null,null,null,null,null,0,"-",null,0,null,null,null,0,0,null,0,null,null,0,0,1,0,0,0,0]
[null,null,null,null,null,null,0,"-",null,0,null,null,null,0,0,null,0,null,null,0,0,1,0,0,0,0]
[null,null,null,null,null,null,0,"-",null,0,null,null,null,0,0,null,0,null,null,0,0,1,0,0,0,0]
[null,null,null,null,null,null,0,"-",null,0,null,null,null,0,0,null,0,null,null,0,0,1,0,0,0,0]
[null,null,null,null,null,null,0,"-",null,0,null,null,null,0,0,null,0,null,null,0,0,1,0,0,0,0]
[null,null,null,null,null,null,0,"-",null,0,null,null,null,0,0,null,0,null,null,0,0,1,0,0,0,0]
[null,null,null,null,null,null,0,"-",null,0,null,null,null,0,0,null,0,null,null,0,0,1,0,0,0,0]
[null,null,null,null,null,null,0,"-",null,0,null,null,null,0,0,null,0,null,null,0,0,1,0,0,0,0]
[null,null,null,null,null,null,0,"-",null,0,null,null,null,0,0,null,0,null,null,0,0,1,0,0,0,0]
[null,null,null,null,null,null,0,"-",null,0,null,null,null,0,0,null,0,null,null,0,0,1,0,0,0,0]
[null,0.3,"Temporary Support to Adjacent Structures",null,"-",{"$f":"SUM(F124:F138)","v":0},{"$f":"IF(AND(F123<>0,$D$31<>0),F123/$D$31,0)","v":0},"-","-",{"$f":"SUM(J124:J138)","v":0},"-","-","-","-",{"$f":"SUM(O124:O138)","v":0},"-",{"$f":"SUM(Q124:Q138)","v":0},"-","-",{"$f":"IF(W123<>0,W123/($F$123+$O$123),0)","v":0},{"$f":"IF(Y123<>0,Y123/($F$123+$O$123),0)","v":0},1,{"$f":"SUM(W124:W138)","v":0},0,{"$f":"SUM(Y124:Y138)","v":0},0]
[null,0.3,"Temporary Support to Adjacent Structures",null,null,null,{"$f":"IF(AND(F124<>0,$D$31<>0),F124/$D$31,0)","v":0},"-",null,{"$f":"I124*F124","v":0},null,null,null,0,0,null,0,null,null,0,0,1,0,0,0,0]
[null,null,null,null,null,null,{"$f":"IF(AND(F125<>0,$D$31<>0),F125/$D$31,0)","v":0},"-",null,0,null,null,null,0,0,null,0,null,null,0,0,1,0,0,0,0]
[null,null,null,null,null,null,{"$f":"IF(AND(F126<>0,$D$31<>0),F126/$D$31,0)","v":0},"-",null,0,null,null,null,0,0,null,0,null,null,0,0,1,0,0,0,0]
[null,null,null,null,null,null,0,"-",null,0,null,null,null,0,0,null,0,null,null,0,0,1,0,0,0,0]
[null,null,null,null,null,null,0,"-",null,0,null,null,null,0,0,null,0,null,null,0,0,1,0,0,0,0]
[null,null,null,null,null,null,0,"-",null,0,null,null,null,0,0,null,0,null,null,0,0,1,0,0,0,0]
[null,null,null,null,null,null,0,"-",null,0,null,null,null,0,0,null,0,null,null,0,0,1,0,0,0,0]
[null,null,null,null,null,null,0,"-",null,0,null,null,null,0,0,null,0,null,null,0,0,1,0,0,0,0]
[null,null,null,null,null,null,0,"-",null,0,null,null,null,0,0,null,0,null,null,0,0,1,0,0,0,0]
[null,null,null,null,null,null,0,"-",null,0,null,null,null,0,0,null,0,null,null,0,0,1,0,0,0,0]
[null,null,null,null,null,null,0,"-",null,0,null,null,null,0,0,null,0,null,null,0,0,1,0,0,0,0]
[null,null,null,null,null,null,0,"-",null,0,null,null,null,0,0,null,0,null,null,0,0,1,0,0,0,0]
[null,null,null,null,null,null,0,"-",null,0,null,null,null,0,0,null,0,null,null,0,0,1,0,0,0,0]
[null,null,null,null,null,null,0,"-",null,0,null,null,null,0,0,null,0,null,null,0,0,1,0,0,0,0]
[null,null,null,null,null,null,0,"-",null,0,null,null,null,0,0,null,0,null,null,0,0,1,0,0,0,0]
[null,0.4,"Specialist Ground Works",null,"-",{"$f":"SUM(F140:F154)","v":0},{"$f":"IF(AND(F139<>0,$D$31<>0),F139/$D$31,0)","v":0},"-","-",{"$f":"SUM(J140:J154)","v":0},"-","-","-","-",{"$f":"SUM(O140:O154)","v":0},"-",{"$f":"SUM(Q140:Q154)","v":0},"-","-",{"$f":"IF(W139<>0,W139/($F$139+$O$139),0)","v":0},{"$f":"IF(Y139<>0,Y139/($F$139+$O$139),0)","v":0},1,{"$f":"SUM(W140:W154)","v":0},0,{"$f":"SUM(Y140:Y154)","v":0},0]
[null,0.4,"Specialist Ground Works",null,null,null,{"$f":"IF(AND(F140<>0,$D$31<>0),F140/$D$31,0)","v":0},"-",null,{"$f":"I140*F140","v":0},null,null,null,0,0,null,0,null,null,0,0,1,0,0,0,0]
[null,null,null,null,null,null,{"$f":"IF(AND(F141<>0,$D$31<>0),F141/$D$31,0)","v":0},"-",null,0,null,null,null,0,0,null,0,null,null,0,0,1,0,0,0,0]
[null,null,null,null,null,null,{"$f":"IF(AND(F142<>0,$D$31<>0),F142/$D$31,0)","v":0},"-",null,0,null,null,null,0,0,null,0,null,null,0,0,1,0,0,0,0]
[null,null,null,null,null,null,0,"-",null,0,null,null,null,0,0,null,0,null,null,0,0,1,0,0,0,0]
[null,null,null,null,null,null,0,"-",null,0,null,null,null,0,0,null,0,null,null,0,0,1,0,0,0,0]
[null,null,null,null,null,null,0,"-",null,0,null,null,null,0,0,null,0,null,null,0,0,1,0,0,0,0]
[null,null,null,null,null,null,0,"-",null,0,null,null,null,0,0,null,0,null,null,0,0,1,0,0,0,0]
[null,null,null,null,null,null,0,"-",null,0,null,null,null,0,0,null,0,null,null,0,0,1,0,0,0,0]
[null,null,null,null,null,null,0,"-",null,0,null,null,null,0,0,null,0,null,null,0,0,1,0,0,0,0]
[null,null,null,null,null,null,0,"-",null,0,null,null,null,0,0,null,0,null,null,0,0,1,0,0,0,0]
[null,null,null,null,null,null,0,"-",null,0,null,null,null,0,0,null,0,null,null,0,0,1,0,0,0,0]
[null,null,null,null,null,null,0,"-",null,0,null,null,null,0,0,null,0,null,null,0,0,1,0,0,0,0]
[null,null,null,null,null,null,0,"-",null,0,null,null,null,0,0,null,0,null,null,0,0,1,0,0,0,0]
[null,null,null,null,null,null,0,"-",null,0,null,null,null,0,0,null,0,null,null,0,0,1,0,0,0,0]
[null,null,null,null,null,null,0,"-",null,0,null,null,null,0,0,null,0,null,null,0,0,1,0,0,0,0]
[null,1,"Substructure",null,"-",{"$f":"SUM(F156:F175)","v":0},{"$f":"IF(AND(F155<>0,$D$31<>0),F155/$D$31,0)","v":0},{"$f":"SUMPRODUCT((C91:D454=\"Substructure\")*G91:G454)","v":0},"-",{"$f":"SUM(J156:J175)","v":0},"-","-","-","-",{"$f":"SUM(O156:O175)","v":0},"-",{"$f":"SUM(Q156:Q175)","v":0},"-","-",{"$f":"IF(W155<>0,W155/($F$155+$O$155),0)","v":0},{"$f":"IF(Y155<>0,Y155/($F$155+$O$155),0)","v":0},1,{"$f":"SUM(W156:W175)","v":0},0,{"$f":"SUM(Y156:Y175)","v":0},0]
[null,1,"Substructure",null,null,null,{"$f":"IF(AND(F156<>0,$D$31<>0),F156/$D$31,0)","v":0},"-",null,{"$f":"I156*F156","v":0},null,null,null,0,0,null,0,null,null,0,0,1,0,0,0,0]
[null,null,null,null,null,null,{"$f":"IF(AND(F157<>0,$D$31<>0),F157/$D$31,0)","v":0},"-",null,0,null,null,null,{"$f":"IF(M157<>0,INT(60/M157),0)","v":0},{"$f":"N157*I157","v":0},null,{"$f":"P157*M157","v":0},null,null,0,0,{"$f":"1-T157-U157","v":1},{"$f":"T157*(F157+O157)","v":0},{"$f":"IF(AND(W157<>0,$D$31<>0),W157/$D$31,0)","v":0},{"$f":"U157*(F157+O157)","v":0},0]
[null,null,null,null,null,null,{"$f":"IF(AND(F158<>0,$D$31<>0),F158/$D$31,0)","v":0},"-",null,0,null,null,null,0,0,null,0,null,null,0,0,1,0,0,0,0]
[null,null,null,null,null,null,0,"-",null,0,null,null,null,0,0,null,0,null,null,0,0,1,0,0,0,0]
[null,null,null,null,null,null,0,"-",null,0,null,null,null,0,0,null,0,null,null,0,0,1,0,0,0,0]
[null,null,null,null,null,null,0,"-",null,0,null,null,null,0,0,null,0,null,null,0,0,1,0,0,0,0]
[null,null,null,null,null,null,0,"-",null,0,null,null,null,0,0,null,0,null,null,0,0,1,0,0,0,0]
[null,null,null,null,null,null,0,"-",null,0,null,null,null,0,0,null,0,null,null,0,0,1,0,0,0,0]
[null,null,null,null,null,null,0,"-",null,0,null,null,null,0,0,null,0,null,null,0,0,1,0,0,0,0]
[null,null,null,null,null,null,0,"-",null,0,null,null,null,0,0,null,0,null,null,0,0,1,0,0,0,0]
[null,null,null,null,null,null,0,"-",null,0,null,null,null,0,0,null,0,null,null,0,0,1,0,0,0,0]
[null,null,null,null,null,null,0,"-",null,0,null,null,null,0,0,null,0,null,null,0,0,1,0,0,0,0]
[null,null,null,null,null,null,0,"-",null,0,null,null,null,0,0,null,0,null,null,0,0,1,0,0,0,0]
[null,null,null,null,null,null,0,"-",null,0,null,null,null,0,0,null,0,null,null,0,0,1,0,0,0,0]
[null,null,null,null,null,null,{"$f":"IF(AND(F170<>0,$D$31<>0),F170/$D$31,0)","v":0},"-",null,0,null,null,null,0,0,null,0,null,null,0,0,1,0,0,0,0]
[null,null,null,null,null,null,{"$f":"IF(AND(F171<>0,$D$31<>0),F171/$D$31,0)","v":0},"-",null,0,null,null,null,0,0,null,0,null,null,0,0,1,0,0,0,0]
[null,null,null,null,null,null,{"$f":"IF(AND(F172<>0,$D$31<>0),F172/$D$31,0)","v":0},"-",null,0,null,null,null,0,0,null,0,null,null,0,0,1,0,0,0,0]
[null,null,null,null,null,null,0,"-",null,0,null,null,null,0,0,null,0,null,null,0,0,1,0,0,0,0]
[null,null,null,null,null,null,0,"-",null,0,null,null,null,0,0,null,0,null,null,0,0,1,0,0,0,0]
[null,null,null,null,null,null,{"$f":"IF(AND(F175<>0,$D$31<>0),F175/$D$31,0)","v":0},"-",null,0,null,null,null,0,0,null,0,null,null,0,0,1,0,0,0,0]
[null,2.1,"Superstructure: Frame",null,"-",{"$f":"SUM(F177:F196)","v":0},{"$f":"IF(AND(F176<>0,$D$31<>0),F176/$D$31,0)","v":0},{"$f":"SUMPRODUCT((C91:D454=\"Superstructure: Frame\")*G91:G454)","v":0},"-",{"$f":"SUM(J177:J196)","v":0},"-","-","-","-",{"$f":"SUM(O177:O196)","v":0},"-",{"$f":"SUM(Q177:Q196)","v":0},"-","-",{"$f":"IF(W176<>0,W176/($F$176+$O$176),0)","v":0},{"$f":"IF(Y176<>0,Y176/($F$176+$O$176),0)","v":0},1,{"$f":"SUM(W177:W196)","v":0},0,{"$f":"SUM(Y177:Y196)","v":0},0]
[null,2.1,"Superstructure: Frame",null,null,null,{"$f":"IF(AND(F177<>0,$D$31<>0),F177/$D$31,0)","v":0},"-",null,{"$f":"I177*F177","v":0},null,null,null,0,0,null,0,null,null,0,0,1,0,0,0,0]
[null,null,null,null,null,null,{"$f":"IF(AND(F178<>0,$D$31<>0),F178/$D$31,0)","v":0},"-",null,0,null,null,null,0,0,null,0,null,null,0,0,1,0,0,0,0]
[null,null,null,null,null,null,{"$f":"IF(AND(F179<>0,$D$31<>0),F179/$D$31,0)","v":0},"-",null,0,null,null,null,0,0,null,0,null,null,0,0,1,0,0,0,0]
[null,null,null,null,null,null,0,"-",null,0,null,null,null,0,0,null,0,null,null,0,0,1,0,0,0,0]
[null,null,null,null,null,null,0,"-",null,0,null,null,null,0,0,null,0,null,null,0,0,1,0,0,0,0]
[null,null,null,null,null,null,0,"-",null,0,null,null,null,0,0,null,0,null,null,0,0,1,0,0,0,0]
[null,null,null,null,null,null,0,"-",null,0,null,null,null,0,0,null,0,null,null,0,0,1,0,0,0,0]
[null,null,null,null,null,null,0,"-",null,0,null,null,null,0,0,null,0,null,null,0,0,1,0,0,0,0]
[null,null,null,null,null,null,0,"-",null,0,null,null,null,0,0,null,0,null,null,0,0,1,0,0,0,0]
[null,null,null,null,null,null,0,"-",null,0,null,null,null,0,0,null,0,null,null,0,0,1,0,0,0,0]
[null,null,null,null,null,null,0,"-",null,0,null,null,null,0,0,null,0,null,null,0,0,1,0,0,0,0]
[null,null,null,null,null,null,0,"-",null,0,null,null,null,0,0,null,0,null,null,0,0,1,0,0,0,0]
[null,null,null,null,null,null,0,"-",null,0,null,null,null,0,0,null,0,null,null,0,0,1,0,0,0,0]
[null,null,null,null,null,null,0,"-",null,0,null,null,null,0,0,null,0,null,null,0,0,1,0,0,0,0]
[null,null,null,null,null,null,{"$f":"IF(AND(F191<>0,$D$31<>0),F191/$D$31,0)","v":0},"-",null,0,null,null,null,0,0,null,0,null,null,0,0,1,0,0,0,0]
[null,null,null,null,null,null,{"$f":"IF(AND(F192<>0,$D$31<>0),F192/$D$31,0)","v":0},"-",null,0,null,null,null,0,0,null,0,null,null,0,0,1,0,0,0,0]
[null,null,null,null,null,null,{"$f":"IF(AND(F193<>0,$D$31<>0),F193/$D$31,0)","v":0},"-",null,0,null,null,null,0,0,null,0,null,null,0,0,1,0,0,0,0]
[null,null,null,null,null,null,{"$f":"IF(AND(F194<>0,$D$31<>0),F194/$D$31,0)","v":0},"-",null,0,null,null,null,0,0,null,0,null,null,0,0,1,0,0,0,0]
[null,null,null,null,null,null,0,"-",null,0,null,null,null,0,0,null,0,null,null,0,0,1,0,0,0,0]
[null,null,null,null,null,null,0,"-",null,0,null,null,null,0,0,null,0,null,null,0,0,1,0,0,0,0]
[null,2.2000000000000002,"Superstructure: Upper Floors",null,"-",{"$f":"SUM(F198:F217)","v":0},{"$f":"IF(AND(F197<>0,$D$31<>0),F197/$D$31,0)","v":0},{"$f":"SUMPRODUCT((C176:D459=\"Superstructure: Upper Floors\")*G176:G459)","v":0},"-",{"$f":"SUM(J198:J217)","v":0},"-","-","-","-",{"$f":"SUM(O198:O217)","v":0},"-",{"$f":"SUM(Q198:Q217)","v":0},"-","-",{"$f":"IF(W197<>0,W197/($F$197+$O$197),0)","v":0},{"$f":"IF(Y197<>0,Y197/($F$197+$O$197),0)","v":0},1,{"$f":"SUM(W198:W217)","v":0},0,{"$f":"SUM(Y198:Y217)","v":0},0]
[null,2.2000000000000002,"Superstructure: Upper Floors",null,null,null,{"$f":"IF(AND(F198<>0,$D$31<>0),F198/$D$31,0)","v":0},"-",null,{"$f":"I198*F198","v":0},null,null,null,0,0,null,0,null,null,0,0,1,0,0,0,0]
[null,null,null,null,null,null,{"$f":"IF(AND(F199<>0,$D$31<>0),F199/$D$31,0)","v":0},"-",null,0,null,null,null,0,0,null,0,null,null,0,0,1,0,0,0,0]
[null,null,null,null,null,null,{"$f":"IF(AND(F200<>0,$D$31<>0),F200/$D$31,0)","v":0},"-",null,0,null,null,null,0,0,null,0,null,null,0,0,1,0,0,0,0]
[null,null,null,null,null,null,0,"-",null,0,null,null,null,0,0,null,0,null,null,0,0,1,0,0,0,0]
[null,null,null,null,null,null,0,"-",null,0,null,null,null,0,0,null,0,null,null,0,0,1,0,0,0,0]
[null,null,null,null,null,null,0,"-",null,0,null,null,null,0,0,null,0,null,null,0,0,1,0,0,0,0]
[null,null,null,null,null,null,0,"-",null,0,null,null,null,0,0,null,0,null,null,0,0,1,0,0,0,0]
[null,null,null,null,null,null,0,"-",null,0,null,null,null,0,0,null,0,null,null,0,0,1,0,0,0,0]
[null,null,null,null,null,null,0,"-",null,0,null,null,null,0,0,null,0,null,null,0,0,1,0,0,0,0]
[null,null,null,null,null,null,0,"-",null,0,null,null,null,0,0,null,0,null,null,0,0,1,0,0,0,0]
[null,null,null,null,null,null,0,"-",null,0,null,null,null,0,0,null,0,null,null,0,0,1,0,0,0,0]
[null,null,null,null,null,null,0,"-",null,0,null,null,null,0,0,null,0,null,null,0,0,1,0,0,0,0]
[null,null,null,null,null,null,0,"-",null,0,null,null,null,0,0,null,0,null,null,0,0,1,0,0,0,0]
[null,null,null,null,null,null,0,"-",null,0,null,null,null,0,0,null,0,null,null,0,0,1,0,0,0,0]
[null,null,null,null,null,null,{"$f":"IF(AND(F212<>0,$D$31<>0),F212/$D$31,0)","v":0},"-",null,0,null,null,null,0,0,null,0,null,null,0,0,1,0,0,0,0]
[null,null,null,null,null,null,{"$f":"IF(AND(F213<>0,$D$31<>0),F213/$D$31,0)","v":0},"-",null,0,null,null,null,0,0,null,0,null,null,0,0,1,0,0,0,0]
[null,null,null,null,null,null,{"$f":"IF(AND(F214<>0,$D$31<>0),F214/$D$31,0)","v":0},"-",null,0,null,null,null,0,0,null,0,null,null,0,0,1,0,0,0,0]
[null,null,null,null,null,null,{"$f":"IF(AND(F215<>0,$D$31<>0),F215/$D$31,0)","v":0},"-",null,0,null,null,null,0,0,null,0,null,null,0,0,1,0,0,0,0]
[null,null,null,null,null,null,0,"-",null,0,null,null,null,0,0,null,0,null,null,0,0,1,0,0,0,0]
[null,null,null,null,null,null,0,"-",null,{"$f":"I217*F217","v":0},null,null,null,0,0,null,0,null,null,0,0,1,0,0,0,0]
[null,2.2999999999999998,"Superstructure: Roof",null,"-",{"$f":"SUM(F219:F238)","v":0},{"$f":"IF(AND(F218<>0,$D$31<>0),F218/$D$31,0)","v":0},{"$f":"SUMPRODUCT((C91:D454=\"Superstructure: Roof\")*G91:G454)","v":0},"-",{"$f":"SUM(J219:J238)","v":0},"-","-","-","-",{"$f":"SUM(O219:O238)","v":0},"-",{"$f":"SUM(Q219:Q238)","v":0},"-","-",{"$f":"IF(W218<>0,W218/($F$218+$O$218),0)","v":0},{"$f":"IF(Y218<>0,Y218/($F$218+$O$218),0)","v":0},1,{"$f":"SUM(W219:W238)","v":0},0,{"$f":"SUM(Y219:Y238)","v":0},0]
[null,2.2999999999999998,"Superstructure: Roof",null,null,null,{"$f":"IF(AND(F219<>0,$D$31<>0),F219/$D$31,0)","v":0},"-",null,{"$f":"I219*F219","v":0},null,null,null,0,0,null,0,null,null,0,0,1,0,0,0,0]
[null,null,null,null,null,null,{"$f":"IF(AND(F220<>0,$D$31<>0),F220/$D$31,0)","v":0},"-",null,0,null,null,null,0,0,null,0,null,null,0,0,1,0,0,0,0]
[null,null,null,null,null,null,{"$f":"IF(AND(F221<>0,$D$31<>0),F221/$D$31,0)","v":0},"-",null,0,null,null,null,{"$f":"IF(M221<>0,INT(60/M221),0)","v":0},{"$f":"N221*I221","v":0},null,{"$f":"P221*M221","v":0},null,null,0,0,{"$f":"1-T221-U221","v":1},{"$f":"T221*(F221+O221)","v":0},{"$f":"IF(AND(W221<>0,$D$31<>0),W221/$D$31,0)","v":0},{"$f":"U221*(F221+O221)","v":0},0]
[null,null,null,null,null,null,0,"-",null,0,null,null,null,0,0,null,0,null,null,0,0,1,0,0,0,0]
[null,null,null,null,null,null,0,"-",null,0,null,null,null,0,0,null,0,null,null,0,0,1,0,0,0,0]
[null,null,null,null,null,null,0,"-",null,0,null,null,null,0,0,null,0,null,null,0,0,1,0,0,0,0]
[null,null,null,null,null,null,0,"-",null,0,null,null,null,0,0,null,0,null,null,0,0,1,0,0,0,0]
[null,null,null,null,null,null,0,"-",null,0,null,null,null,0,0,null,0,null,null,0,0,1,0,0,0,0]
[null,null,null,null,null,null,0,"-",null,0,null,null,null,0,0,null,0,null,null,0,0,1,0,0,0,0]
[null,null,null,null,null,null,0,"-",null,0,null,null,null,0,0,null,0,null,null,0,0,1,0,0,0,0]
[null,null,null,null,null,null,0,"-",null,0,null,null,null,0,0,null,0,null,null,0,0,1,0,0,0,0]
[null,null,null,null,null,null,0,"-",null,0,null,null,null,0,0,null,0,null,null,0,0,1,0,0,0,0]
[null,null,null,null,null,null,0,"-",null,0,null,null,null,0,0,null,0,null,null,0,0,1,0,0,0,0]
[null,null,null,null,null,null,0,"-",null,0,null,null,null,0,0,null,0,null,null,0,0,1,0,0,0,0]
[null,null,null,null,null,null,{"$f":"IF(AND(F233<>0,$D$31<>0),F233/$D$31,0)","v":0},"-",null,0,null,null,null,0,0,null,0,null,null,0,0,1,0,0,0,0]
[null,null,null,null,null,null,{"$f":"IF(AND(F234<>0,$D$31<>0),F234/$D$31,0)","v":0},"-",null,0,null,null,null,0,0,null,0,null,null,0,0,1,0,0,0,0]
[null,null,null,null,null,null,{"$f":"IF(AND(F235<>0,$D$31<>0),F235/$D$31,0)","v":0},"-",null,0,null,null,null,0,0,null,0,null,null,0,0,1,0,0,0,0]
[null,null,null,null,null,null,{"$f":"IF(AND(F236<>0,$D$31<>0),F236/$D$31,0)","v":0},"-",null,0,null,null,null,0,0,null,0,null,null,0,0,1,0,0,0,0]
[null,null,null,null,null,null,0,"-",null,0,null,null,null,0,0,null,0,null,null,0,0,1,0,0,0,0]
[null,null,null,null,null,null,0,"-",null,0,null,null,null,0,0,null,0,null,null,0,0,1,0,0,0,0]
[null,2.4,"Superstructure: Stairs and Ramps",null,"-",{"$f":"SUM(F240:F254)","v":0},{"$f":"IF(AND(F239<>0,$D$31<>0),F239/$D$31,0)","v":0},"-","-",{"$f":"SUM(J240:J254)","v":0},"-","-","-","-",{"$f":"SUM(O240:O254)","v":0},"-",{"$f":"SUM(Q240:Q254)","v":0},"-","-",{"$f":"IF(W239<>0,W239/($F$239+$O$239),0)","v":0},{"$f":"IF(Y239<>0,Y239/($F$239+$O$239),0)","v":0},1,{"$f":"SUM(W240:W254)","v":0},0,{"$f":"SUM(Y240:Y254)","v":0},0]
[null,2.4,"Superstructure: Stairs and Ramps",null,null,null,{"$f":"IF(AND(F240<>0,$D$31<>0),F240/$D$31,0)","v":0},"-",null,{"$f":"I240*F240","v":0},null,null,null,0,0,null,0,null,null,0,0,1,0,0,0,0]
[null,null,null,null,null,null,{"$f":"IF(AND(F241<>0,$D$31<>0),F241/$D$31,0)","v":0},"-",null,0,null,null,null,0,0,null,0,null,null,0,0,1,0,0,0,0]
[null,null,null,null,null,null,{"$f":"IF(AND(F242<>0,$D$31<>0),F242/$D$31,0)","v":0},"-",null,0,null,null,null,0,0,null,0,null,null,0,0,1,0,0,0,0]
[null,null,null,null,null,null,0,"-",null,0,null,null,null,0,0,null,0,null,null,0,0,1,0,0,0,0]
[null,null,null,null,null,null,0,"-",null,0,null,null,null,0,0,null,0,null,null,0,0,1,0,0,0,0]
[null,null,null,null,null,null,0,"-",null,0,null,null,null,0,0,null,0,null,null,0,0,1,0,0,0,0]
[null,null,null,null,null,null,0,"-",null,0,null,null,null,0,0,null,0,null,null,0,0,1,0,0,0,0]
[null,null,null,null,null,null,0,"-",null,0,null,null,null,0,0,null,0,null,null,0,0,1,0,0,0,0]
[null,null,null,null,null,null,0,"-",null,0,null,null,null,0,0,null,0,null,null,0,0,1,0,0,0,0]
[null,null,null,null,null,null,0,"-",null,0,null,null,null,0,0,null,0,null,null,0,0,1,0,0,0,0]
[null,null,null,null,null,null,0,"-",null,0,null,null,null,0,0,null,0,null,null,0,0,1,0,0,0,0]
[null,null,null,null,null,null,0,"-",null,0,null,null,null,0,0,null,0,null,null,0,0,1,0,0,0,0]
[null,null,null,null,null,null,0,"-",null,0,null,null,null,0,0,null,0,null,null,0,0,1,0,0,0,0]
[null,null,null,null,null,null,0,"-",null,0,null,null,null,0,0,null,0,null,null,0,0,1,0,0,0,0]
[null,null,null,null,null,null,{"$f":"IF(AND(F254<>0,$D$31<>0),F254/$D$31,0)","v":0},"-",null,0,null,null,null,0,0,null,0,null,null,0,0,1,0,0,0,0]
[null,2.5,"Superstructure: External Walls",null,"-",{"$f":"SUM(F256:F275)","v":0},{"$f":"IF(AND(F255<>0,$D$31<>0),F255/$D$31,0)","v":0},{"$f":"SUMPRODUCT((C91:D454=\"Superstructure: External Walls\")*G91:G454)+SUMPRODUCT((C91:D454=\"Superstructure: Windows and External Doors\")*G91:G454)","v":0},"-",{"$f":"SUM(J256:J275)","v":0},"-","-","-","-",{"$f":"SUM(O256:O275)","v":0},"-",{"$f":"SUM(Q256:Q275)","v":0},"-","-",{"$f":"IF(W255<>0,W255/($F$255+$O$255),0)","v":0},{"$f":"IF(Y255<>0,Y255/($F$255+$O$255),0)","v":0},1,{"$f":"SUM(W256:W275)","v":0},0,{"$f":"SUM(Y256:Y275)","v":0},0]
[null,2.5,"Superstructure: External Walls",null,null,null,{"$f":"IF(AND(F256<>0,$D$31<>0),F256/$D$31,0)","v":0},"-",null,{"$f":"I256*F256","v":0},null,null,null,0,0,null,0,null,null,0,0,1,0,0,0,0]
[null,null,null,null,null,null,{"$f":"IF(AND(F257<>0,$D$31<>0),F257/$D$31,0)","v":0},"-",null,0,null,null,null,0,0,null,0,null,null,0,0,1,0,0,0,0]
[null,null,null,null,null,null,{"$f":"IF(AND(F258<>0,$D$31<>0),F258/$D$31,0)","v":0},"-",null,0,null,null,null,0,0,null,0,null,null,0,0,1,0,0,0,0]
[null,null,null,null,null,null,0,"-",null,0,null,null,null,0,0,null,0,null,null,0,0,1,0,0,0,0]
[null,null,null,null,null,null,0,"-",null,0,null,null,null,0,0,null,0,null,null,0,0,1,0,0,0,0]
[null,null,null,null,null,null,0,"-",null,0,null,null,null,0,0,null,0,null,null,0,0,1,0,0,0,0]
[null,null,null,null,null,null,0,"-",null,0,null,null,null,0,0,null,0,null,null,0,0,1,0,0,0,0]
[null,null,null,null,null,null,0,"-",null,0,null,null,null,0,0,null,0,null,null,0,0,1,0,0,0,0]
[null,null,null,null,null,null,0,"-",null,0,null,null,null,0,0,null,0,null,null,0,0,1,0,0,0,0]
[null,null,null,null,null,null,0,"-",null,0,null,null,null,0,0,null,0,null,null,0,0,1,0,0,0,0]
[null,null,null,null,null,null,0,"-",null,0,null,null,null,0,0,null,0,null,null,0,0,1,0,0,0,0]
[null,null,null,null,null,null,0,"-",null,0,null,null,null,0,0,null,0,null,null,0,0,1,0,0,0,0]
[null,null,null,null,null,null,0,"-",null,0,null,null,null,0,0,null,0,null,null,0,0,1,0,0,0,0]
[null,null,null,null,null,null,0,"-",null,0,null,null,null,0,0,null,0,null,null,0,0,1,0,0,0,0]
[null,null,null,null,null,null,{"$f":"IF(AND(F270<>0,$D$31<>0),F270/$D$31,0)","v":0},"-",null,0,null,null,null,0,0,null,0,null,null,0,0,1,0,0,0,0]
[null,null,null,null,null,null,{"$f":"IF(AND(F271<>0,$D$31<>0),F271/$D$31,0)","v":0},"-",null,0,null,null,null,0,0,null,0,null,null,0,0,1,0,0,0,0]
[null,null,null,null,null,null,{"$f":"IF(AND(F272<>0,$D$31<>0),F272/$D$31,0)","v":0},"-",null,0,null,null,null,0,0,null,0,null,null,0,0,1,0,0,0,0]
[null,null,null,null,null,null,{"$f":"IF(AND(F273<>0,$D$31<>0),F273/$D$31,0)","v":0},"-",null,0,null,null,null,0,0,null,0,null,null,0,0,1,0,0,0,0]
[null,null,null,null,null,null,0,"-",null,0,null,null,null,0,0,null,0,null,null,0,0,1,0,0,0,0]
[null,null,null,null,null,null,0,"-",null,0,null,null,null,0,0,null,0,null,null,0,0,1,0,0,0,0]
[null,2.6,"Superstructure: Windows and External Doors",null,"-",{"$f":"SUM(F277:F291)","v":0},{"$f":"IF(AND(F276<>0,$D$31<>0),F276/$D$31,0)","v":0},{"$f":"SUMPRODUCT((C91:D454=\"Superstructure: External Walls\")*G91:G454)+SUMPRODUCT((C91:D454=\"Superstructure: Windows and External Doors\")*G91:G454)","v":0},"-",{"$f":"SUM(J277:J291)","v":0},"-","-","-","-",{"$f":"SUM(O277:O291)","v":0},"-",{"$f":"SUM(Q277:Q291)","v":0},"-","-",{"$f":"IF(W276<>0,W276/($F$276+$O$276),0)","v":0},{"$f":"IF(Y276<>0,Y276/($F$276+$O$276),0)","v":0},1,{"$f":"SUM(W277:W291)","v":0},0,{"$f":"SUM(Y277:Y291)","v":0},0]
[null,2.6,"Superstructure: Windows and External Doors",null,null,null,{"$f":"IF(AND(F277<>0,$D$31<>0),F277/$D$31,0)","v":0},"-",null,0,null,null,null,0,0,null,0,null,null,0,0,1,0,0,0,0]
[null,null,null,null,null,null,{"$f":"IF(AND(F278<>0,$D$31<>0),F278/$D$31,0)","v":0},"-",null,0,null,null,null,0,0,null,0,null,null,0,0,1,0,0,0,0]
[null,null,null,null,null,null,{"$f":"IF(AND(F279<>0,$D$31<>0),F279/$D$31,0)","v":0},"-",null,0,null,null,null,0,0,null,0,null,null,0,0,1,0,0,0,0]
[null,null,null,null,null,null,0,"-",null,0,null,null,null,0,0,null,0,null,null,0,0,1,0,0,0,0]
[null,null,null,null,null,null,0,"-",null,0,null,null,null,0,0,null,0,null,null,0,0,1,0,0,0,0]
[null,null,null,null,null,null,0,"-",null,0,null,null,null,0,0,null,0,null,null,0,0,1,0,0,0,0]
[null,null,null,null,null,null,0,"-",null,0,null,null,null,0,0,null,0,null,null,0,0,1,0,0,0,0]
[null,null,null,null,null,null,0,"-",null,0,null,null,null,0,0,null,0,null,null,0,0,1,0,0,0,0]
[null,null,null,null,null,null,0,"-",null,0,null,null,null,{"$f":"IF(M285<>0,INT(60/M285),0)","v":0},{"$f":"N285*I285","v":0},null,{"$f":"P285*M285","v":0},null,null,0,0,{"$f":"1-T285-U285","v":1},{"$f":"T285*(F285+O285)","v":0},{"$f":"IF(AND(W285<>0,$D$31<>0),W285/$D$31,0)","v":0},{"$f":"U285*(F285+O285)","v":0},0]
[null,null,null,null,null,null,0,"-",null,0,null,null,null,0,0,null,0,null,null,0,0,1,0,0,0,0]
[null,null,null,null,null,null,0,"-",null,0,null,null,null,0,0,null,0,null,null,0,0,1,0,0,0,0]
[null,null,null,null,null,null,0,"-",null,0,null,null,null,0,0,null,0,null,null,0,0,1,0,0,0,0]
[null,null,null,null,null,null,0,"-",null,0,null,null,null,0,0,null,0,null,null,0,0,1,0,0,0,0]
[null,null,null,null,null,null,0,"-",null,0,null,null,null,0,0,null,0,null,null,0,0,1,0,0,0,0]
[null,null,null,null,null,null,{"$f":"IF(AND(F291<>0,$D$31<>0),F291/$D$31,0)","v":0},"-",null,0,null,null,null,0,0,null,0,null,null,0,0,1,0,0,0,0]
[null,2.7,"Superstructure: Internal Walls and Partitions",null,"-",{"$f":"SUM(F293:F312)","v":0},{"$f":"IF(AND(F292<>0,$D$31<>0),F292/$D$31,0)","v":0},{"$f":"SUMPRODUCT((C91:D454=\"Superstructure: Internal Doors\")*G91:G454)+SUMPRODUCT((C91:D454=\"Superstructure: Internal Walls and Partitions\")*G91:G454)","v":0},"-",{"$f":"SUM(J293:J312)","v":0},"-","-","-","-",{"$f":"SUM(O293:O312)","v":0},"-",{"$f":"SUM(Q293:Q312)","v":0},"-","-",{"$f":"IF(W292<>0,W292/($F$292+$O$292),0)","v":0},{"$f":"IF(Y292<>0,Y292/($F$292+$O$292),0)","v":0},1,{"$f":"SUM(W293:W312)","v":0},0,{"$f":"SUM(Y293:Y312)","v":0},0]
[null,2.7,"Superstructure: Internal Walls and Partitions",null,null,null,{"$f":"IF(AND(F293<>0,$D$31<>0),F293/$D$31,0)","v":0},"-",null,0,null,null,null,0,0,null,0,null,null,0,0,1,0,0,0,0]
[null,null,null,null,null,null,{"$f":"IF(AND(F294<>0,$D$31<>0),F294/$D$31,0)","v":0},"-",null,0,null,null,null,0,0,null,0,null,null,0,0,1,0,0,0,0]
[null,null,null,null,null,null,{"$f":"IF(AND(F295<>0,$D$31<>0),F295/$D$31,0)","v":0},"-",null,0,null,null,null,0,0,null,0,null,null,0,0,1,0,0,0,0]
[null,null,null,null,null,null,0,"-",null,0,null,null,null,0,0,null,0,null,null,0,0,1,0,0,0,0]
[null,null,null,null,null,null,0,"-",null,0,null,null,null,0,0,null,0,null,null,0,0,1,0,0,0,0]
[null,null,null,null,null,null,0,"-",null,0,null,null,null,0,0,null,0,null,null,0,0,1,0,0,0,0]
[null,null,null,null,null,null,0,"-",null,0,null,null,null,0,0,null,0,null,null,0,0,1,0,0,0,0]
[null,null,null,null,null,null,0,"-",null,0,null,null,null,0,0,null,0,null,null,0,0,1,0,0,0,0]
[null,null,null,null,null,null,0,"-",null,0,null,null,null,0,0,null,0,null,null,0,0,1,0,0,0,0]
[null,null,null,null,null,null,0,"-",null,0,null,null,null,0,0,null,0,null,null,0,0,1,0,0,0,0]
[null,null,null,null,null,null,0,"-",null,0,null,null,null,0,0,null,0,null,null,0,0,1,0,0,0,0]
[null,null,null,null,null,null,0,"-",null,0,null,null,null,0,0,null,0,null,null,0,0,1,0,0,0,0]
[null,null,null,null,null,null,0,"-",null,0,null,null,null,0,0,null,0,null,null,0,0,1,0,0,0,0]
[null,null,null,null,null,null,0,"-",null,0,null,null,null,0,0,null,0,null,null,0,0,1,0,0,0,0]
[null,null,null,null,null,null,{"$f":"IF(AND(F307<>0,$D$31<>0),F307/$D$31,0)","v":0},"-",null,0,null,null,null,0,0,null,0,null,null,0,0,1,0,0,0,0]
[null,null,null,null,null,null,{"$f":"IF(AND(F308<>0,$D$31<>0),F308/$D$31,0)","v":0},"-",null,0,null,null,null,0,0,null,0,null,null,0,0,1,0,0,0,0]
[null,null,null,null,null,null,{"$f":"IF(AND(F309<>0,$D$31<>0),F309/$D$31,0)","v":0},"-",null,0,null,null,null,0,0,null,0,null,null,0,0,1,0,0,0,0]
[null,null,null,null,null,null,{"$f":"IF(AND(F310<>0,$D$31<>0),F310/$D$31,0)","v":0},"-",null,0,null,null,null,0,0,null,0,null,null,0,0,1,0,0,0,0]
[null,null,null,null,null,null,0,"-",null,0,null,null,null,0,0,null,0,null,null,0,0,1,0,0,0,0]
[null,null,null,null,null,null,0,"-",null,0,null,null,null,0,0,null,0,null,null,0,0,1,0,0,0,0]
[null,2.8,"Superstructure: Internal Doors",null,"-",{"$f":"SUM(F314:F328)","v":0},{"$f":"IF(AND(F313<>0,$D$31<>0),F313/$D$31,0)","v":0},{"$f":"SUMPRODUCT((C91:D454=\"Superstructure: Internal Doors\")*G91:G454)+SUMPRODUCT((C91:D454=\"Superstructure: Internal Walls and Partitions\")*G91:G454)","v":0},"-",{"$f":"SUM(J314:J328)","v":0},"-","-","-","-",{"$f":"SUM(O314:O328)","v":0},"-",{"$f":"SUM(Q314:Q328)","v":0},"-","-",{"$f":"IF(W313<>0,W313/($F$313+$O$313),0)","v":0},{"$f":"IF(Y313<>0,Y313/($F$313+$O$313),0)","v":0},1,{"$f":"SUM(W314:W328)","v":0},0,{"$f":"SUM(Y314:Y328)","v":0},0]
[null,2.8,"Superstructure: Internal Doors",null,null,null,{"$f":"IF(AND(F314<>0,$D$31<>0),F314/$D$31,0)","v":0},"-",null,0,null,null,null,0,0,null,0,null,null,0,0,1,0,0,0,0]
[null,null,null,null,null,null,{"$f":"IF(AND(F315<>0,$D$31<>0),F315/$D$31,0)","v":0},"-",null,0,null,null,null,0,0,null,0,null,null,0,0,1,0,0,0,0]
[null,null,null,null,null,null,{"$f":"IF(AND(F316<>0,$D$31<>0),F316/$D$31,0)","v":0},"-",null,0,null,null,null,0,0,null,0,null,null,0,0,1,0,0,0,0]
[null,null,null,null,null,null,0,"-",null,0,null,null,null,0,0,null,0,null,null,0,0,1,0,0,0,0]
[null,null,null,null,null,null,0,"-",null,0,null,null,null,0,0,null,0,null,null,0,0,1,0,0,0,0]
[null,null,null,null,null,null,0,"-",null,0,null,null,null,0,0,null,0,null,null,0,0,1,0,0,0,0]
[null,null,null,null,null,null,0,"-",null,{"$f":"I320*F320","v":0},null,null,null,0,0,null,0,null,null,0,0,1,0,0,0,0]
[null,null,null,null,null,null,0,"-",null,0,null,null,null,0,0,null,0,null,null,0,0,1,0,0,0,0]
[null,null,null,null,null,null,0,"-",null,0,null,null,null,0,0,null,0,null,null,0,0,1,0,0,0,0]
[null,null,null,null,null,null,0,"-",null,0,null,null,null,0,0,null,0,null,null,0,0,1,0,0,0,0]
[null,null,null,null,null,null,0,"-",null,0,null,null,null,0,0,null,0,null,null,0,0,1,0,0,0,0]
[null,null,null,null,null,null,0,"-",null,0,null,null,null,0,0,null,0,null,null,0,0,1,0,0,0,0]
[null,null,null,null,null,null,0,"-",null,0,null,null,null,0,0,null,0,null,null,0,0,1,0,0,0,0]
[null,null,null,null,null,null,0,"-",null,0,null,null,null,0,0,null,0,null,null,0,0,1,0,0,0,0]
[null,null,null,null,null,null,{"$f":"IF(AND(F328<>0,$D$31<>0),F328/$D$31,0)","v":0},"-",null,0,null,null,null,0,0,null,0,null,null,0,0,1,0,0,0,0]
[null,3,"Finishes",null,"-",{"$f":"SUM(F330:F349)","v":0},{"$f":"IF(AND(F329<>0,$D$31<>0),F329/$D$31,0)","v":0},"-","-",{"$f":"SUM(J330:J349)","v":0},"-","-","-","-",{"$f":"SUM(O330:O349)","v":0},"-",{"$f":"SUM(Q330:Q349)","v":0},"-","-",{"$f":"IF(W329<>0,W329/($F$329+$O$329),0)","v":0},{"$f":"IF(Y329<>0,Y329/($F$329+$O$329),0)","v":0},1,{"$f":"SUM(W330:W349)","v":0},0,{"$f":"SUM(Y330:Y349)","v":0},0]
[null,3,"Finishes",null,null,null,{"$f":"IF(AND(F330<>0,$D$31<>0),F330/$D$31,0)","v":0},"-",null,0,null,null,null,0,0,null,0,null,null,0,0,1,0,0,0,0]
[null,null,null,null,null,null,{"$f":"IF(AND(F331<>0,$D$31<>0),F331/$D$31,0)","v":0},"-",null,0,null,null,null,0,0,null,0,null,null,0,0,1,0,0,0,0]
[null,null,null,null,null,null,{"$f":"IF(AND(F332<>0,$D$31<>0),F332/$D$31,0)","v":0},"-",null,0,null,null,null,0,0,null,0,null,null,0,0,1,0,0,0,0]
[null,null,null,null,null,null,0,"-",null,0,null,null,null,0,0,null,0,null,null,0,0,1,0,0,0,0]
[null,null,null,null,null,null,0,"-",null,0,null,null,null,0,0,null,0,null,null,0,0,1,0,0,0,0]
[null,null,null,null,null,null,0,"-",null,0,null,null,null,0,0,null,0,null,null,0,0,1,0,0,0,0]
[null,null,null,null,null,null,0,"-",null,0,null,null,null,0,0,null,0,null,null,0,0,1,0,0,0,0]
[null,null,null,null,null,null,0,"-",null,0,null,null,null,0,0,null,0,null,null,0,0,1,0,0,0,0]
[null,null,null,null,null,null,0,"-",null,0,null,null,null,0,0,null,0,null,null,0,0,1,0,0,0,0]
[null,null,null,null,null,null,0,"-",null,0,null,null,null,0,0,null,0,null,null,0,0,1,0,0,0,0]
[null,null,null,null,null,null,0,"-",null,0,null,null,null,0,0,null,0,null,null,0,0,1,0,0,0,0]
[null,null,null,null,null,null,0,"-",null,0,null,null,null,0,0,null,0,null,null,0,0,1,0,0,0,0]
[null,null,null,null,null,null,0,"-",null,0,null,null,null,0,0,null,0,null,null,0,0,1,0,0,0,0]
[null,null,null,null,null,null,0,"-",null,0,null,null,null,0,0,null,0,null,null,0,0,1,0,0,0,0]
[null,null,null,null,null,null,{"$f":"IF(AND(F344<>0,$D$31<>0),F344/$D$31,0)","v":0},"-",null,0,null,null,null,0,0,null,0,null,null,0,0,1,0,0,0,0]
[null,null,null,null,null,null,{"$f":"IF(AND(F345<>0,$D$31<>0),F345/$D$31,0)","v":0},"-",null,0,null,null,null,0,0,null,0,null,null,0,0,1,0,0,0,0]
[null,null,null,null,null,null,{"$f":"IF(AND(F346<>0,$D$31<>0),F346/$D$31,0)","v":0},"-",null,0,null,null,null,0,0,null,0,null,null,0,0,1,0,0,0,0]
[null,null,null,null,null,null,{"$f":"IF(AND(F347<>0,$D$31<>0),F347/$D$31,0)","v":0},"-",null,0,null,null,null,0,0,null,0,null,null,0,0,1,0,0,0,0]
[null,null,null,null,null,null,0,"-",null,0,null,null,null,0,0,null,0,null,null,0,0,1,0,0,0,0]
[null,null,null,null,null,null,0,"-",null,0,null,null,null,{"$f":"IF(M349<>0,INT(60/M349),0)","v":0},{"$f":"N349*I349","v":0},null,{"$f":"P349*M349","v":0},null,null,0,0,{"$f":"1-T349-U349","v":1},{"$f":"T349*(F349+O349)","v":0},{"$f":"IF(AND(W349<>0,$D$31<>0),W349/$D$31,0)","v":0},{"$f":"U349*(F349+O349)","v":0},0]
[null,4,"Fittings, furnishings & equipment (FFE)",null,"-",{"$f":"SUM(F351:F370)","v":0},{"$f":"IF(AND(F350<>0,$D$31<>0),F350/$D$31,0)","v":0},"-","-",{"$f":"SUM(J351:J370)","v":0},"-","-","-","-",{"$f":"SUM(O351:O370)","v":0},"-",{"$f":"SUM(Q351:Q370)","v":0},"-","-",{"$f":"IF(W350<>0,W350/($F$350+$O$350),0)","v":0},{"$f":"IF(Y350<>0,Y350/($F$350+$O$350),0)","v":0},1,{"$f":"SUM(W351:W370)","v":0},0,{"$f":"SUM(Y351:Y370)","v":0},0]
[null,4,"Fittings, furnishings & equipment (FFE)",null,null,null,{"$f":"IF(AND(F351<>0,$D$31<>0),F351/$D$31,0)","v":0},"-",null,0,null,null,null,0,0,null,0,null,null,0,0,1,0,0,0,0]
[null,null,null,null,null,null,{"$f":"IF(AND(F352<>0,$D$31<>0),F352/$D$31,0)","v":0},"-",null,0,null,null,null,0,0,null,0,null,null,0,0,1,0,0,0,0]
[null,null,null,null,null,null,{"$f":"IF(AND(F353<>0,$D$31<>0),F353/$D$31,0)","v":0},"-",null,0,null,null,null,0,0,null,0,null,null,0,0,1,0,0,0,0]
[null,null,null,null,null,null,0,"-",null,0,null,null,null,0,0,null,0,null,null,0,0,1,0,0,0,0]
[null,null,null,null,null,null,0,"-",null,0,null,null,null,0,0,null,0,null,null,0,0,1,0,0,0,0]
[null,null,null,null,null,null,0,"-",null,0,null,null,null,0,0,null,0,null,null,0,0,1,0,0,0,0]
[null,null,null,null,null,null,0,"-",null,0,null,null,null,0,0,null,0,null,null,0,0,1,0,0,0,0]
[null,null,null,null,null,null,0,"-",null,0,null,null,null,0,0,null,0,null,null,0,0,1,0,0,0,0]
[null,null,null,null,null,null,0,"-",null,0,null,null,null,0,0,null,0,null,null,0,0,1,0,0,0,0]
[null,null,null,null,null,null,0,"-",null,0,null,null,null,0,0,null,0,null,null,0,0,1,0,0,0,0]
[null,null,null,null,null,null,0,"-",null,0,null,null,null,0,0,null,0,null,null,0,0,1,0,0,0,0]
[null,null,null,null,null,null,0,"-",null,0,null,null,null,0,0,null,0,null,null,0,0,1,0,0,0,0]
[null,null,null,null,null,null,0,"-",null,0,null,null,null,0,0,null,0,null,null,0,0,1,0,0,0,0]
[null,null,null,null,null,null,0,"-",null,0,null,null,null,0,0,null,0,null,null,0,0,1,0,0,0,0]
[null,null,null,null,null,null,{"$f":"IF(AND(F365<>0,$D$31<>0),F365/$D$31,0)","v":0},"-",null,0,null,null,null,0,0,null,0,null,null,0,0,1,0,0,0,0]
[null,null,null,null,null,null,{"$f":"IF(AND(F366<>0,$D$31<>0),F366/$D$31,0)","v":0},"-",null,0,null,null,null,0,0,null,0,null,null,0,0,1,0,0,0,0]
[null,null,null,null,null,null,{"$f":"IF(AND(F367<>0,$D$31<>0),F367/$D$31,0)","v":0},"-",null,0,null,null,null,0,0,null,0,null,null,0,0,1,0,0,0,0]
[null,null,null,null,null,null,{"$f":"IF(AND(F368<>0,$D$31<>0),F368/$D$31,0)","v":0},"-",null,0,null,null,null,0,0,null,0,null,null,0,0,1,0,0,0,0]
[null,null,null,null,null,null,0,"-",null,0,null,null,null,0,0,null,0,null,null,0,0,1,0,0,0,0]
[null,null,null,null,null,null,0,"-",null,0,null,null,null,0,0,null,0,null,null,0,0,1,0,0,0,0]
[null,5,"Services (MEP)",null,"-",{"$f":"SUM(F372:F391)","v":0},{"$f":"IF(AND(F371<>0,$D$31<>0),F371/$D$31,0)","v":0},"-","-",{"$f":"SUM(J372:J391)","v":0},"-","-","-","-",{"$f":"SUM(O372:O391)","v":0},"-",{"$f":"SUM(Q372:Q391)","v":0},"-","-",{"$f":"IF(W371<>0,W371/($F$371+$O$371),0)","v":0},{"$f":"IF(Y371<>0,Y371/($F$371+$O$371),0)","v":0},1,{"$f":"SUM(W372:W391)","v":0},0,{"$f":"SUM(Y372:Y391)","v":0},0]
[null,5,"Services (MEP)",null,null,null,{"$f":"IF(AND(F372<>0,$D$31<>0),F372/$D$31,0)","v":0},"-",null,0,null,null,null,0,0,null,0,null,null,0,0,1,0,0,0,0]
[null,null,null,null,null,null,{"$f":"IF(AND(F373<>0,$D$31<>0),F373/$D$31,0)","v":0},"-",null,0,null,null,null,0,0,null,0,null,null,0,0,1,0,0,0,0]
[null,null,null,null,null,null,{"$f":"IF(AND(F374<>0,$D$31<>0),F374/$D$31,0)","v":0},"-",null,0,null,null,null,0,0,null,0,null,null,0,0,1,0,0,0,0]
[null,null,null,null,null,null,0,"-",null,0,null,null,null,0,0,null,0,null,null,0,0,1,0,0,0,0]
[null,null,null,null,null,null,0,"-",null,0,null,null,null,0,0,null,0,null,null,0,0,1,0,0,0,0]
[null,null,null,null,null,null,0,"-",null,0,null,null,null,0,0,null,0,null,null,0,0,1,0,0,0,0]
[null,null,null,null,null,null,0,"-",null,0,null,null,null,0,0,null,0,null,null,0,0,1,0,0,0,0]
[null,null,null,null,null,null,0,"-",null,0,null,null,null,0,0,null,0,null,null,0,0,1,0,0,0,0]
[null,null,null,null,null,null,0,"-",null,0,null,null,null,0,0,null,0,null,null,0,0,1,0,0,0,0]
[null,null,null,null,null,null,0,"-",null,0,null,null,null,0,0,null,0,null,null,0,0,1,0,0,0,0]
[null,null,null,null,null,null,0,"-",null,0,null,null,null,0,0,null,0,null,null,0,0,1,0,0,0,0]
[null,null,null,null,null,null,0,"-",null,0,null,null,null,0,0,null,0,null,null,0,0,1,0,0,0,0]
[null,null,null,null,null,null,0,"-",null,{"$f":"I384*F384","v":0},null,null,null,0,0,null,0,null,null,0,0,1,0,0,0,0]
[null,null,null,null,null,null,0,"-",null,0,null,null,null,0,0,null,0,null,null,0,0,1,0,0,0,0]
[null,null,null,null,null,null,{"$f":"IF(AND(F386<>0,$D$31<>0),F386/$D$31,0)","v":0},"-",null,0,null,null,null,0,0,null,0,null,null,0,0,1,0,0,0,0]
[null,null,null,null,null,null,{"$f":"IF(AND(F387<>0,$D$31<>0),F387/$D$31,0)","v":0},"-",null,0,null,null,null,0,0,null,0,null,null,0,0,1,0,0,0,0]
[null,null,null,null,null,null,{"$f":"IF(AND(F388<>0,$D$31<>0),F388/$D$31,0)","v":0},"-",null,0,null,null,null,0,0,null,0,null,null,0,0,1,0,0,0,0]
[null,null,null,null,null,null,{"$f":"IF(AND(F389<>0,$D$31<>0),F389/$D$31,0)","v":0},"-",null,0,null,null,null,0,0,null,0,null,null,0,0,1,0,0,0,0]
[null,null,null,null,null,null,0,"-",null,0,null,null,null,0,0,null,0,null,null,0,0,1,0,0,0,0]
[null,null,null,null,null,null,0,"-",null,0,null,null,null,0,0,null,0,null,null,0,0,1,0,0,0,0]
[null,6,"Prefabricated Buildings and Building Units",null,"-",{"$f":"SUM(F393:F412)","v":0},{"$f":"IF(AND(F392<>0,$D$31<>0),F392/$D$31,0)","v":0},"-","-",{"$f":"SUM(J393:J412)","v":0},"-","-","-","-",{"$f":"SUM(O393:O412)","v":0},"-",{"$f":"SUM(Q393:Q412)","v":0},"-","-",{"$f":"IF(W392<>0,W392/($F$392+$O$392),0)","v":0},{"$f":"IF(Y392<>0,Y392/($F$392+$O$392),0)","v":0},1,{"$f":"SUM(W393:W412)","v":0},0,{"$f":"SUM(Y393:Y412)","v":0},0]
[null,6,"Prefabricated Buildings and Building Units",null,null,null,{"$f":"IF(AND(F393<>0,$D$31<>0),F393/$D$31,0)","v":0},"-",null,0,null,null,null,0,0,null,0,null,null,0,0,1,0,0,0,0]
[null,null,null,null,null,null,{"$f":"IF(AND(F394<>0,$D$31<>0),F394/$D$31,0)","v":0},"-",null,0,null,null,null,0,0,null,0,null,null,0,0,1,0,0,0,0]
[null,null,null,null,null,null,{"$f":"IF(AND(F395<>0,$D$31<>0),F395/$D$31,0)","v":0},"-",null,0,null,null,null,0,0,null,0,null,null,0,0,1,0,0,0,0]
[null,null,null,null,null,null,0,"-",null,0,null,null,null,0,0,null,0,null,null,0,0,1,0,0,0,0]
[null,null,null,null,null,null,0,"-",null,0,null,null,null,0,0,null,0,null,null,0,0,1,0,0,0,0]
[null,null,null,null,null,null,0,"-",null,0,null,null,null,0,0,null,0,null,null,0,0,1,0,0,0,0]
[null,null,null,null,null,null,0,"-",null,0,null,null,null,0,0,null,0,null,null,0,0,1,0,0,0,0]
[null,null,null,null,null,null,0,"-",null,0,null,null,null,0,0,null,0,null,null,0,0,1,0,0,0,0]
[null,null,null,null,null,null,0,"-",null,0,null,null,null,0,0,null,0,null,null,0,0,1,0,0,0,0]
[null,null,null,null,null,null,0,"-",null,0,null,null,null,0,0,null,0,null,null,0,0,1,0,0,0,0]
[null,null,null,null,null,null,0,"-",null,0,null,null,null,0,0,null,0,null,null,0,0,1,0,0,0,0]
[null,null,null,null,null,null,0,"-",null,0,null,null,null,0,0,null,0,null,null,0,0,1,0,0,0,0]
[null,null,null,null,null,null,0,"-",null,0,null,null,null,0,0,null,0,null,null,0,0,1,0,0,0,0]
[null,null,null,null,null,null,0,"-",null,0,null,null,null,0,0,null,0,null,null,0,0,1,0,0,0,0]
[null,null,null,null,null,null,{"$f":"IF(AND(F407<>0,$D$31<>0),F407/$D$31,0)","v":0},"-",null,0,null,null,null,0,0,null,0,null,null,0,0,1,0,0,0,0]
[null,null,null,null,null,null,{"$f":"IF(AND(F408<>0,$D$31<>0),F408/$D$31,0)","v":0},"-",null,0,null,null,null,0,0,null,0,null,null,0,0,1,0,0,0,0]
[null,null,null,null,null,null,{"$f":"IF(AND(F409<>0,$D$31<>0),F409/$D$31,0)","v":0},"-",null,0,null,null,null,0,0,null,0,null,null,0,0,1,0,0,0,0]
[null,null,null,null,null,null,{"$f":"IF(AND(F410<>0,$D$31<>0),F410/$D$31,0)","v":0},"-",null,0,null,null,null,0,0,null,0,null,null,0,0,1,0,0,0,0]
[null,null,null,null,null,null,0,"-",null,0,null,null,null,0,0,null,0,null,null,0,0,1,0,0,0,0]
[null,null,null,null,null,null,0,"-",null,0,null,null,null,0,0,null,0,null,null,0,0,1,0,0,0,0]
[null,7,"Work to Existing Building",null,"-",{"$f":"SUM(F414:F433)","v":0},{"$f":"IF(AND(F413<>0,$D$31<>0),F413/$D$31,0)","v":0},"-","-",{"$f":"SUM(J414:J433)","v":0},"-","-","-","-",{"$f":"SUM(O414:O433)","v":0},"-",{"$f":"SUM(Q414:Q433)","v":0},"-","-",{"$f":"IF(W413<>0,W413/($F$413+$O$413),0)","v":0},{"$f":"IF(Y413<>0,Y413/($F$413+$O$413),0)","v":0},{"$f":"1-T413-U413","v":1},{"$f":"SUM(W414:W433)","v":0},{"$f":"IF(AND(W413<>0,$D$31<>0),W413/$D$31,0)","v":0},{"$f":"SUM(Y414:Y433)","v":0},0]
[null,7,"Work to Existing Building",null,null,null,{"$f":"IF(AND(F414<>0,$D$31<>0),F414/$D$31,0)","v":0},"-",null,0,null,null,null,{"$f":"IF(M414<>0,INT(60/M414),0)","v":0},{"$f":"N414*I414","v":0},null,{"$f":"P414*M414","v":0},null,null,0,0,1,{"$f":"T414*(F414+O414)","v":0},0,{"$f":"U414*(F414+O414)","v":0},0]
[null,null,null,null,null,null,{"$f":"IF(AND(F415<>0,$D$31<>0),F415/$D$31,0)","v":0},"-",null,0,null,null,null,0,0,null,0,null,null,0,0,1,0,0,0,0]
[null,null,null,null,null,null,{"$f":"IF(AND(F416<>0,$D$31<>0),F416/$D$31,0)","v":0},"-",null,0,null,null,null,0,0,null,0,null,null,0,0,1,0,0,0,0]
[null,null,null,null,null,null,0,"-",null,0,null,null,null,0,0,null,0,null,null,0,0,1,0,0,0,0]
[null,null,null,null,null,null,0,"-",null,0,null,null,null,0,0,null,0,null,null,0,0,1,0,0,0,0]
[null,null,null,null,null,null,0,"-",null,0,null,null,null,0,0,null,0,null,null,0,0,1,0,0,0,0]
[null,null,null,null,null,null,0,"-",null,0,null,null,null,0,0,null,0,null,null,0,0,1,0,0,0,0]
[null,null,null,null,null,null,0,"-",null,0,null,null,null,0,0,null,0,null,null,0,0,1,0,0,0,0]
[null,null,null,null,null,null,0,"-",null,0,null,null,null,{"$f":"IF(M422<>0,INT(60/M422),0)","v":0},0,null,0,null,null,0,0,1,0,0,0,0]
[null,null,null,null,null,null,0,"-",null,0,null,null,null,0,0,null,0,null,null,0,0,1,0,0,0,0]
[null,null,null,null,null,null,0,"-",null,0,null,null,null,0,0,null,0,null,null,0,0,1,0,0,0,0]
[null,null,null,null,null,null,0,"-",null,0,null,null,null,0,0,null,0,null,null,0,0,1,0,0,0,0]
[null,null,null,null,null,null,0,"-",null,0,null,null,null,0,0,null,0,null,null,0,0,1,0,0,0,0]
[null,null,null,null,null,null,0,"-",null,0,null,null,null,0,0,null,0,null,null,0,0,1,0,0,0,0]
[null,null,null,null,null,null,{"$f":"IF(AND(F428<>0,$D$31<>0),F428/$D$31,0)","v":0},"-",null,0,null,null,null,0,0,null,0,null,null,0,0,1,0,0,0,0]
[null,null,null,null,null,null,{"$f":"IF(AND(F429<>0,$D$31<>0),F429/$D$31,0)","v":0},"-",null,0,null,null,null,0,0,null,0,null,null,0,0,1,0,0,0,0]
[null,null,null,null,null,null,{"$f":"IF(AND(F430<>0,$D$31<>0),F430/$D$31,0)","v":0},"-",null,0,null,null,null,0,0,null,0,null,null,0,0,1,0,0,0,0]
[null,null,null,null,null,null,{"$f":"IF(AND(F431<>0,$D$31<>0),F431/$D$31,0)","v":0},"-",null,0,null,null,null,0,0,null,0,null,null,0,0,1,0,0,0,0]
[null,null,null,null,null,null,0,"-",null,0,null,null,null,0,0,null,0,null,null,0,0,1,0,0,0,0]
[null,null,null,null,null,null,0,"-",null,0,null,null,null,0,0,null,0,null,null,0,0,1,0,0,0,0]
[null,8,"External works",null,"-",{"$f":"SUM(F435:F454)","v":0},{"$f":"IF(AND(F434<>0,$D$31<>0),F434/$D$31,0)","v":0},"-","-",{"$f":"SUM(J435:J454)","v":0},"-","-","-","-",{"$f":"SUM(O435:O454)","v":0},"-",{"$f":"SUM(Q435:Q454)","v":0},"-","-",{"$f":"IF(W434<>0,W434/($F$434+$O$434),0)","v":0},{"$f":"IF(Y434<>0,Y434/($F$434+$O$434),0)","v":0},1,{"$f":"SUM(W435:W454)","v":0},0,{"$f":"SUM(Y435:Y454)","v":0},0]
[null,8,"External works",null,null,null,null,"-",null,0,null,null,null,0,0,null,0,null,null,0,0,1,0,0,0,0]
[null,null,null,null,null,null,{"$f":"IF(AND(F436<>0,$D$31<>0),F436/$D$31,0)","v":0},"-",null,0,null,null,null,0,0,null,0,null,null,0,0,1,0,0,0,0]
[null,null,null,null,null,null,{"$f":"IF(AND(F437<>0,$D$31<>0),F437/$D$31,0)","v":0},"-",null,0,null,null,null,0,0,null,0,null,null,0,0,1,0,0,0,0]
[null,null,null,null,null,null,{"$f":"IF(AND(F438<>0,$D$31<>0),F438/$D$31,0)","v":0},"-",null,0,null,null,null,0,0,null,0,null,null,0,0,1,0,0,0,0]
[null,null,null,null,null,null,0,"-",null,0,null,null,null,0,0,null,0,null,null,0,0,1,0,0,0,0]
[null,null,null,null,null,null,0,"-",null,0,null,null,null,0,0,null,0,null,null,0,0,1,0,0,0,0]
[null,null,null,null,null,null,0,"-",null,0,null,null,null,0,0,null,0,null,null,0,0,1,0,0,0,0]
[null,null,null,null,null,null,0,"-",null,0,null,null,null,0,0,null,0,null,null,0,0,1,0,0,0,0]
[null,null,null,null,null,null,0,"-",null,0,null,null,null,0,0,null,0,null,null,0,0,1,0,0,0,0]
[null,null,null,null,null,null,0,"-",null,0,null,null,null,0,0,null,0,null,null,0,0,1,0,0,0,0]
[null,null,null,null,null,null,0,"-",null,0,null,null,null,0,0,null,0,null,null,0,0,1,0,0,0,0]
[null,null,null,null,null,null,0,"-",null,0,null,null,null,0,0,null,0,null,null,0,0,1,0,0,0,0]
[null,null,null,null,null,null,0,"-",null,0,null,null,null,0,0,null,0,null,null,0,0,1,0,0,0,0]
[null,null,null,null,null,null,0,"-",null,{"$f":"I448*F448","v":0},null,null,null,0,0,null,0,null,null,0,0,1,0,0,0,0]
[null,null,null,null,null,null,0,"-",null,0,null,null,null,0,0,null,0,null,null,0,0,1,0,0,0,0]
[null,null,null,null,null,null,{"$f":"IF(AND(F450<>0,$D$31<>0),F450/$D$31,0)","v":0},"-",null,0,null,null,null,0,0,null,0,null,null,0,0,1,0,0,0,0]
[null,null,null,null,null,null,0,"-",null,0,null,null,null,0,0,null,0,null,null,0,0,1,0,0,0,0]
[null,null,null,null,null,null,0,"-",null,0,null,null,null,0,0,null,0,null,null,0,0,1,0,0,0,0]
[null,null,null,null,null,null,0,"-",null,{"$f":"I453*F453","v":0},null,null,null,{"$f":"IF(M453<>0,INT(60/M453),0)","v":0},0,null,0,null,null,0,0,1,0,0,0,0]
[null,null,null,null,null,null,0,"-",null,{"$f":"I454*F454","v":0},null,null,null,{"$f":"IF(M454<>0,INT(60/M454),0)","v":0},{"$f":"N454*I454","v":0},null,{"$f":"P454*M454","v":0},null,null,0,0,1,{"$f":"T454*(F454+O454)","v":0},0,0,{"$f":"IF(AND(Y454<>0,$D$31<>0),Y454/$D$31,0)","v":0}]
[null,null,"Overall",null,null,{"$f":"SUM(F91,F107,F123,F139,F155,F176,F197,F218,F239,F255,F276,F292,F313,F329,F350,F371,F392,F413,F434)","v":0},0,null,null,{"$f":"SUM(J91,J107,J123,J139,J155,J176,J197,J218,J239,J255,J276,J292,J313,J329,J350,J371,J392,J413,J434)","v":0},null,null,null,null,{"$f":"SUM(O91,O107,O123,O139,O155,O176,O197,O218,O239,O255,O276,O292,O313,O329,O350,O371,O392,O413,O434)","v":0},null,{"$f":"SUM(Q91:Q454)","v":0},null,null,{"$f":"IF(AND($F$455<>0,$O$455<>0),SUM(W91,W107,W123,W139,W155,W176,W197,W218,W239,W255,W276,W292,W313,W329,W350,W371,W392,W413,W434)/($F$455+$O$455),0)","v":0},{"$f":"IF(AND($F$455<>0,$O$455<>0),SUM(Y91,Y107,Y123,Y139,Y155,Y176,Y197,Y218,Y239,Y255,Y276,Y292,Y313,Y329,Y350,Y371,Y392,Y413,Y434)/($F$455+$O$455),0)","v":0},{"$f":"1-T455-U455","v":1},{"$f":"SUM(W91:W454)","v":0},{"$f":"SUM(X91:X454)","v":0},{"$f":"SUM(Y91:Y454)","v":0},{"$f":"SUM(Z91:Z454)","v":0}]
[]
[]
[]
[]
[null,"Recycling and Waste Reporting table"]
[null,"The light green-coloured cells should be completed to achieve 'pioneering' status."]
[null,null,null,null,"TOTAL ESTIMATES OF WASTE",null,null,"WASTE MANAGEMENT ROUTES",null,null,null,null,null,"SUMMARY"]
[null,null,null,null,"Overall Waste \n(tonnes)","Overall Waste\n(tonnes/m2 GIA)","Performance Indicator (LPG Appendix 1)","REUSE ",null,"RECYCLE",null,"OTHER DISPOSAL",null,"Total Reuse (%)","Total Recycle (%)","Total Reuse and Recycle (%)","Total Waste Reported (%)"]
[null,null,"Type of Waste","Source of Information",null,null,null,"Reuse Onsite (%)","Reuse Offsite (%)","Recycle Onsite(%)","Recycle Offsite (%)","To Landfill (%)","To Other Management (%)"]
[null,null,null,null,"PRODUCT AND CONSTRUCTION STAGE (MODULE A)"]
[null,1,"Demolition Waste",null,null,{"$f":"IF($D$31>0,IF(E466>0,E466/$D$31,0),0)","v":0},{"$f":"F466","v":0},null,null,null,null,null,null,{"$f":"SUM(H466:I466)","v":0},{"$f":"SUM(J466:K466)","v":0},{"$f":"SUM(N466:O466)","v":0},{"$f":"SUM(H466:M466)","v":0}]
[null,2.1,"Excavation Waste",null,null,{"$f":"IF($D$31>0,IF(E467>0,E467/$D$31,0),0)","v":0},{"$f":"F467","v":0},null,null,null,null,null,null,{"$f":"SUM(H467:I467)","v":0},{"$f":"SUM(J467:K467)","v":0},{"$f":"SUM(N467:O467)","v":0},{"$f":"SUM(H467:M467)","v":0}]
[null,2.8,"Construction Waste",null,null,{"$f":"IF($D$31>0,IF(E468>0,E468/$D$31,0),0)","v":0},{"$f":"F468","v":0},null,null,null,null,null,null,{"$f":"SUM(H468:I468)","v":0},{"$f":"SUM(J468:K468)","v":0},{"$f":"SUM(N468:O468)","v":0},{"$f":"SUM(H468:M468)","v":0}]
[null,null,null,null,"USE STAGE (MODULE B)"]
[null,3,"Demolition / Strip-out Waste",null,{"$f":"IF(ISNUMBER(O455),O455/1000,0)","v":0},{"$f":"IF($D$31>0,IF(E470>0,E470/$D$31,0),0)","v":0},"-",null,null,null,null,null,null,{"$f":"SUM(H470:I470)","v":0},{"$f":"SUM(J470:K470)","v":0},{"$f":"SUM(N470:O470)","v":0},{"$f":"SUM(H470:M470)","v":0}]
[null,4,"Construction Waste",null,{"$f":"IF(ISNUMBER(Q455),Q455/1000,0)","v":0},{"$f":"IF($D$31>0,IF(E471>0,E471/$D$31,0),0)","v":0},"-",null,null,null,null,null,null,{"$f":"SUM(H471:I471)","v":0},{"$f":"SUM(J471:K471)","v":0},{"$f":"SUM(N471:O471)","v":0},{"$f":"SUM(H471:M471)","v":0}]
[null,null,null,null,"Overall Waste (tonnes/annum)","Overall Waste (tonnes/annum\n/m2)","Performance Indicator (LPG Appendix 1)","Reuse Onsite (%)","Reuse Offsite (%)","Recycle Offsite(%)","Recycle Offsite (%)","To Landfill (%)","To Other Management (%)","Total Reuse (%)","Total Recycle (%)","Total Reuse and Recycle (%)","Total Waste Reported (%)"]
[null,5,"Municipal Waste",null,null,{"$f":"IF($D$31>0,IF(E473>0,E473/$D$31,0),0)","v":0},{"$f":"F473","v":0},null,null,null,null,null,null,{"$f":"SUM(H473:I473)","v":0},{"$f":"SUM(J473:K473)","v":0},{"$f":"SUM(N473:O473)","v":0},{"$f":"SUM(H473:M473)","v":0}]
[null,6,"Industrial Waste (if applicable)",null,null,"-","-",null,null,null,null,null,null,{"$f":"SUM(H474:I474)","v":0},{"$f":"SUM(J474:K474)","v":0},{"$f":"SUM(N474:O474)","v":0},{"$f":"SUM(H474:M474)","v":0}]
[null,null,null,null,"MODULE A - MODULE C"]
[null,null,null,null,"Overall Materials \n(tonnes)","Overall Materials (Modules A-C) (tonnes\n/m2)","-","Reuse Onsite (%)","Reuse Offsite (%)","Recycle Offsite(%)","Recycle Offsite (%)","To Landfill (%)","To Other Management (%)","Total Reuse (%)","Total Recycle (%)","Total Reuse and Recycle (%)","Total Waste Reported (%)"]
[null,7,"Total Materials",null,{"$f":"IF(AND(ISNUMBER(F455),ISNUMBER(J455),ISNUMBER(O455),ISNUMBER(Q455)),((Q455+O455+F455+J455)/1000),0)","v":0},{"$f":"IF($D$31>0,IF(E477>0,E477/$D$31,0),0)","v":0},"-",null,null,null,null,null,null,{"$f":"SUM(H477:I477)","v":0},{"$f":"SUM(J477:K477)","v":0},{"$f":"SUM(N477:O477)","v":0},{"$f":"SUM(H477:M477)","v":0}]
[]
[]
[null,"Circular Economy Targets"]
[null,"Circular economy targets for existing and new development",null,"Policy Requirement","Target Aiming For (%)","Policy Met?","Explanation (How will performance against this metric be secured through design, implementation and monitoring?)"]
[null,"Demolition waste materials (non-hazardous)",null,"Minimum of 95% diverted from landfill for reuse, recycling or recovery.",0.95,{"$f":"IF(ISNUMBER(E482),IF(E482>100%,\"Input not valid\",IF(E482=95%,\"Yes\",IF(100%>=E482>95%,\"Exceeds Policy\",\"No\"))),\"\")","v":"Yes"}]
[null,"Excavation waste materials",null,"Minimum of 95% diverted from landfill for beneficial reuse.",0.95,{"$f":"IF(ISNUMBER(E483),IF(E483>100%,\"Input not valid\",IF(E483=95%,\"Yes\",IF(100%>=E483>95%,\"Exceeds Policy\",\"No\"))),\"\")","v":"Yes"}]
[null,"Construction waste materials",null,"Minimum of 95% diverted from landfill for reuse, recycling or recovery.",0.95,"Yes"]
[null,"Municipal waste",null,"Minimum 65% recycling rate by 2030.",0.65,{"$f":"IF(ISNUMBER(E485),IF(E485>100%,\"Input not valid\",IF(E485=65%,\"Yes\",IF(100%>=E485>65%,\"Exceeds Policy\",\"No\"))),\"\")","v":"Yes"}]
[null,"Recycled content",null,"Minimum 20% of the building material elements to be comprised of recycled or reused content.",0.2,{"$f":"IF(ISNUMBER(E486),IF(E486>100%,\"Input not valid\",IF(E486=20%,\"Yes\",IF(100%>=E486>20%,\"Exceeds Policy\",\"No\"))),\"\")","v":"Yes"}]
[null,"Additional requirements",null,"Policy Requirement","Please acknowledge acceptance for a planning condition",null,"Please set out an indicative timescale and responsible party for the provision of this information"]
[null,"Reserved Matters Reporting",null,"A condition will be attached to an approval of a referable outline planning permission, securing the submission of a CE Statement as a reserved matter. Applications for reserved matters will be required to review and address the information provided at outline stage and update any default values used as far as possible. ","It is accepted that the Reserved Matters Reporting will be conditioned"]

{"sheet":"Detailed Application Stage","index":3,"n_rows":488,"n_cols":26,"rows_kept":488,"cut":false,"hidden":false,"merged":[[76,12,83,12],[76,13,83,13],[76,14,83,14],[76,15,83,15],[461,13,461,16],[486,1,486,2],[486,6,486,8],[486,4,486,5],[487,1,487,2],[487,6,487,8],[487,4,487,5],[483,1,483,2],[484,1,484,2],[485,1,485,2],[480,6,480,8],[481,6,481,8],[482,6,482,8],[483,6,483,8],[484,6,484,8],[485,6,485,8],[462,13,463,13],[462,14,463,14],[462,15,463,15],[462,16,463,16],[462,11,462,12],[482,1,482,2],[480,1,480,2],[481,1,481,2],[75,4,75,11],[72,1,72,3],[462,9,462,10],[462,7,462,8],[461,7,461,12],[461,4,461,6],[462,6,463,6],[462,4,463,4],[462,5,463,5],[81,1,81,3],[76,1,79,2],[80,1,80,3],[88,2,88,3],[89,2,89,3],[90,2,90,3],[123,1,137,1],[123,2,137,3],[138,2,138,3],[139,1,153,1],[139,2,153,3],[107,1,121,1],[107,2,121,3],[122,2,122,3],[196,2,196,3],[53,1,53,2],[41,1,41,2],[42,1,42,2],[43,1,43,2],[44,1,44,2],[70,1,71,3],[82,1,82,3],[83,1,83,3],[57,1,57,2],[54,1,54,2],[55,1,55,2],[75,1,75,3],[73,1,73,3],[74,1,74,3],[56,1,56,2],[88,17,88,21],[106,2,106,3],[0,0,1,6],[3,0,3,5],[4,0,4,2],[4,4,4,5],[35,1,35,2],[34,1,34,2],[36,1,36,2],[37,1,37,2],[38,1,38,2],[39,1,39,2],[5,2,5,3],[70,13,75,13],[70,14,75,14],[70,15,75,15],[70,4,70,11],[70,12,75,12],[40,1,40,2],[50,1,50,2],[51,1,51,2],[91,1,105,1],[91,2,105,3],[52,1,52,2],[197,1,216,1],[197,2,216,3],[217,2,217,3],[218,1,237,1],[218,2,237,3],[154,2,154,3],[155,1,174,1],[155,2,174,3],[175,2,175,3],[176,1,195,1],[176,2,195,3],[275,2,275,3],[276,1,290,1],[276,2,290,3],[291,2,291,3],[292,1,311,1],[292,2,311,3],[238,2,238,3],[239,1,253,1],[239,2,253,3],[254,2,254,3],[255,1,274,1],[255,2,274,3],[88,22,88,25],[433,2,433,3],[434,1,453,1],[434,2,453,3],[88,4,88,11],[88,12,88,16],[391,2,391,3],[392,1,411,1],[392,2,411,3],[412,2,412,3],[413,1,432,1],[413,2,432,3],[349,2,349,3],[350,1,369,1],[350,2,369,3],[370,2,370,3],[371,1,390,1],[371,2,390,3],[312,2,312,3],[313,1,327,1],[313,2,327,3],[328,2,328,3],[329,1,348,1],[329,2,348,3]]}
[]
[]
[]
["Detailed Application Stage - Circular Economy Statement"]
[]
[null,null,"Project details"]
[null,null,"Project name","Ham Close Regeneration"]
[null,null,"Planning application reference number (if applicable)"]
[null,null,"Applicant","Hill Residential"]
[null,null,"London Borough","Richmond Upon Thames"]
[null,null,"Brief description of the project","The Development proposals comprise the demolition of existing buildings on-site and phased mixed-use development comprising 452 residential homes (Class C3) up to six storeys; a Community/Leisure Facility (Class F2) of up to 3 storeys in height, a “MakerLabs” (sui generis) of up to 2 storeys together with basement car parking and site wide landscaping."]
[null,null,"Author/s","Hill  Residential"]
[null,null,"Date of assessment","2022-04-07"]
[null,null,"Number of Use Types",3]
[null,null,"Use Class / Type","Floor Area by use type (m2)"]
[null,null,"C3",41817.4]
[null,null,"F2",716]
[null,null,"Sui generis",130]
[null,null,"Use Class / Type 4","Use Class / Type 4 GIA"]
[null,null,"Use Class / Type 5","Use Class / Type 5 GIA"]
[null,null,"Use Class / Type 6","Use Class / Type 6 GIA"]
[null,null,"Use Class / Type 7","Use Class / Type 7 GIA"]
[null,null,"Use Class / Type 8","Use Class / Type 8 GIA"]
[null,null,"Use Class / Type 9","Use Class / Type 9 GIA"]
[null,null,"Use Class / Type 10","Use Class / Type 10 GIA"]
[null,null,"Use Class / Type 11","Use Class / Type 11 GIA"]
[null,null,"Use Class / Type 12","Use Class / Type 12 GIA"]
[null,null,"Use Class / Type 13","Use Class / Type 13 GIA"]
[null,null,"Use Class / Type 14","Use Class / Type 14 GIA"]
[null,null,"Use Class / Type 15","Use Class / Type 15 GIA"]
[null,null,"Overall GIA (m2)",{"$f":"SUM(D16:D30)","v":42663.4}]
[]
[]
[null,"Circular Economy Design Approaches"]
[null,"Circular Economy Design Approaches for Existing Structures / Buildings",null,"Applicant Response"]
[null,"Is there an existing building on the site?",null,"Yes"]
[null,"Is it technically feasible to retain the building(s) in whole or in part?",null,"No"]
[null,"Are there any building materials or elements available on site that can be used?"]
[null,"Is the existing building, or parts of the building, suited to the requirements for the site?"]
[null,"Is it technically feasible to recover the 'residual value' of the buildings elements or materials?",null,"No"]
[null,"The preferred strategy is:",null,"NEW BUILDING"]
[null,"The preferred strategy is:",null,"RETAIN and RETROFIT"]
[null,"The preferred strategy is:",null,"PARTIAL RETENTION and REFURBISHMENT"]
[null,"The preferred strategy is:",null,"DISASSEMBLE/DECONSTRUCT AND REUSE"]
[null,"The preferred strategy is:",null,"DEMOLISH/DECONSTRUCT AND RECYCLE"]
[null,"Circular Economy Design Approach","Phase/Building/Area/Layer","Strategic Response"]
[null,"Refurbish"]
[null,"Repurpose"]
[null,"Disassemble / Deconstruct and Reuse"]
[null,"Demolish / Deconstruct and Recycle","All areas","The existing site is not suitable for re-purposing, as such the existing buildings and hardstanding shall be demolished, and recovery of materials maximised in-line with GLA targets. \nThe site is allocated in local plan for redevelopment. A suitable low-density site (192 units) has been selected to be redeveloped to provide 452 residential units, representing a high efficiency use of land and space. \n\nA demolition audit shall be required prior to start on site to ascertain quantities of materials and identify the most valuable end-use for wastes streams, to maximise opportunities for re-use and recycling of materials, for on-site and off-site applications."]
[null,"Circular Economy Design Approaches for New Buildings, Infrastructure and Layers Over the Lifetime of the Development",null,"Applicant Response"]
[null,"Is the whole building designed to have a short life on its current site? (e.g. less than 10 yrs)",null,"No"]
[null,"Is there likely to be a need for building of a similar size (etc.) in different locations in the future?"]
[null,"Is it foreseeable that the building will need to change use/function within its design life?",null,"No"]
[null,"The preferred strategy is:",null,"Design for BUILDING RELOCATION"]
[null,"The preferred strategy is:",null,"Design for COMPONENT / MATERIAL REUSE"]
[null,"The preferred strategy is:",null,"Design for ADAPTABILITY"]
[null,"All developments should apply the 6 Circular Economy principles, including:",null,"Designing for DISASSEMBLY and ADAPTABILITY, MATERIAL REUSE ON-SITE and/or RECYCLING should be maximised"]
[null,"Circular Economy Design Approach","Phase/Building/Area/Layer","Strategic Response"]
[null,"Building relocation"]
[null,"Component or material reuse","All areas","The Applicant will facilitate the sustainable sourcing of materials, targeting the use of recycled material and content which can be re-used."]
[null,"Adaptability","Community Facilities","The Community Centre and Maker Labs spaces are likely to undergo use changes intermittently, and as such will be guided by the requirement for adaptability. However, these are not likely to undergo changes as frequently as commercial spaces so are also guided by longevity. \n\nMassing optimisation studies have been undertaken to review and reduce the overall building form and massing, thus reducing material quantum."]
[null,"Flexibility"]
[null,"Replaceability"]
[null,"Disassembly","All areas","As far as practicable, the Applicant shall look to maximise the use of recycled content within the Development where feasible. The use of pre-fabricated elements shall be prioritised, as these reduce construction waste, and include the use of precast floors and stairs."]
[null,"Longevity","Residential","The residential section of the Development is not intended for regular change and as such will primarily be guided by the requirement for longevity. As such these sections of the Development will be designed to meet long term needs while being durable and resilient to a changing climate."]
[]
[]
[null,"Circular Economy Design Principles by Building Layer"]
[null,"The Circular Economy Commitments table should consider where the Applicant seeks to go beyond standard practice. If there are multiple phases / buildings / areas with different measures / strategies, please specify these separately within the table below."]
[null,null,null,null,"Building Layer",null,null,null,null,null,null,null,"Summary","Challenges","Actions & Counter-Actions, Who and When","Plan to Prove and Quantify"]
[null,null,null,null,"Site","Substructure","Superstructure","Shell/Skin","Services","Space ","Stuff","Construction Stuff"]
[null,"Is it likely the layer (or components within it) will need to be moved or otherwise modified within 5-15 years, e.g. due to changing use patterns or user requirements?",null,null,"N/A","No","No","No","No","Yes","Yes","N/A"]
[null,"Is it likely the layer (or components within it) will need to be changed, upgraded or replaced within 5-15 years, e.g. for improved performance, aesthetics",null,null,"N/A","No","No","No","Yes",null,null,"N/A"]
[null,"The preferred strategy is:",null,null,"-",{"$f":"IF(F73=\"Yes\",\"Design for FLEXIBILITY\",IF(F74=\"Yes\",\"Design for REPLACEABILITY\",IF(AND(F73=\"No\",F74=\"No\"),\"Design for ADAPTABILITY\",\"\")))","v":"Design for ADAPTABILITY"},{"$f":"IF(G73=\"Yes\",\"Design for FLEXIBILITY\",IF(G74=\"Yes\",\"Design for REPLACEABILITY\",IF(AND(G73=\"No\",G74=\"No\"),\"Design for ADAPTABILITY\",\"\")))","v":"Design for ADAPTABILITY"},"Design for ADAPTABILITY","Design for REPLACEABILITY","Design for FLEXIBILITY","Design for FLEXIBILITY","-"]
[null,"Design Principles",null,null,"All developments should apply the 6 circular economy principles, including designing for DISASSEMBLY and ADAPTABILITY, MATERIAL REUSE ON-SITE and/or RECYCLING should be maximised."]
[null,"Designing out waste",null,"Module A - Product Sourcing and Construction Stage","Building form factor will be optimised where possible to increase efficiency and thus reduce the comparative thickness of insulation and overall area of facade required.\n\nThe landscape design will seek to maximise the use of soft landscape where practicable to increase permeability and reduce extensive areas of hard surface.","slab type, foundation type, façade construction has been considered within the WLC assessment to reduce embodied carbon and total building weight. This reduces the quantity of materials used in the construction process. Floor plates will be rationalised as much as possible to maximise material efficiency whilst achieving a balance between form factor and dual aspect provision.\n\nA review of opportunities to use recycled aggregates and GGBS in the substructure shall be reviewed as the design progresses.","Optimising the slab thickness to balance concrete and reinforcement requirement where feasible.\nApartment cores and communal stairs are of consistent design and layout across the scheme where possible.","The Development’s building envelope has been set out to brick dimensions, along with all openings, i.e., external doors and windows on the envelope, to minimise brick cutting and wastage.\n\nAluminium and timber composite windows are proposed which will contain FSC certified timber and highly recyclable aluminium. Internal framing products to be specified with a high recycled content. All timber will be FSC certified.","Services have been fully coordinated during design phase. Standardised typical M&E Cupboard has been provided to all residential units.\n\nThere are standardised bathroom/en-suite layouts which have been developed for the scheme.\nUse of repetitive unit design. Stacking of the same flat types has been utilised wherever possible.\n\nThis minimises the need to have horizontal pipework runs across the scheme.","Community Centre fit-out to client specification – minimises the use of speculative finishes. Massing optimisation studies have been undertaken to review and reduce the overall building form and massing, thus reducing material quantum","N/A","N/A","The whole-life cycle carbon and circular economy workshops demonstrate that efficient design has allowed for the quantities of materials to be reduced.\n\nAdditional opportunities will be reviewed as the design progresses.\n\nAn efficient building design will ensure that energy consumption and carbon emissions are minimised. \n\nA detailed strategy has been developed to ensure that energy consumption is minimised.\n\nThe site shall endeavour to source materials with low embodied carbon and from a sustainable supply chain.\n\nDesign for longevity with robust materials and systems that are capable of handling any change.\n\nMaximising design efficiency to effectively design to waste through careful coordination of services.\n\nPre-demolition audit will quantify suitable materials on site for reuse and recycling. Excavation will be minimised through cut and fill.\n\nDevelop a resource management plan for the site. \n\nWaste storage to satisfy LPA requirements.","\nRefer to Detailed Circular Economy Statement (Energist UK), section 4 'circular economy narrative' for full details. In summary:\n\nValue engineering, site constraints and programming.\n\nSuitability of aggregate from demolition works.\n\nSupply chain and sustainable sourcing of materials hard to monitor.\n\nPossibility of contamination of excavation waste.\n\nA lack of understanding of existing materials and their practical applications at pre-planning impacts potential reuse opportunities and recovery. \n\nMany contractors do not evaluate waste disposal further than the first-tier waste handler, the subsequent journey and final disposal or recycling site of waste is often unknown. \n\nEnsuring that occupants and building users within the Development participate in the waste segregation and recycling process could be difficult to enforce.","Refer to Detailed Circular Economy Statement (Energist UK), section 4 'circular economy narrative' for full details. In summary:\n\nSufficient allocation of resources and an allowance within the programme will help ensure that material efficiency is reviewed at appropriate stages and kept as a key agenda item. \n\nThere is a risk that the sustainable procurement plan is not implemented throughout the supply chain. \n\nThe design team will need to ensure that all relevant specification clauses and drawings are appropriately referenced and included within the tender pack and forms a contractual obligation. \n\nDeveloping a comprehensive disassembly and end-of-life strategy may be challenging.\n\nSufficient allocation of resources and an allowance within the programme will help ensure that these topics are reviewed at appropriate stages and kept as a key agenda item. \n\nMaterial efficiency workshops to be scheduled during key stages to review commitments and ensure targets are being implemented.\n\nResearch required into local waste handling facilities and their onward disposal routes to understand opportunities for legal, transparent waste disposal.\n\nBy providing clearly segregated waste areas within refuse stores, this will help to facilitate appropriate sorting. An operational waste management plan, and occupant/building user guides will help inform occupants on procedures.","Continuation of material efficiency workshops and coordination with the design team to evaluate embodied carbon and waste minimisation through design is maximised. \n\nAs part of the tender process contractual obligations will need to incorporate targets, metrics, and specifications clauses which maximise opportunities to minimise quantities of materials used on site. \n\nImplement monitoring and reporting procedures to ensure opportunities are realised by contractors and their supply chain partners.\n\nAs part of RIBA Stage 3 - 4, the team will continue to examine Circular Economy principles including the key issues of longevity, adaptability, flexibility etc. Workshops during detailed design to facilitate the inclusion for disassembly and end-of-life plans for key building elements.\n\nInclusion of plans within the O&M manuals at RIBA 6 handover for future use.\n\nIncorporation of waste targets into the tender pack and specification clauses, to form part of contractual obligations for main contractor and supply chain.\n\nImplement monitoring and reporting procedures to ensure waste is being accurately and carefully recorded for post completion reporting purposes, and to identify areas where future improvements can be made.\n\nWaste schedule shall be provided showing that the appropriate area (sqm) has been allowed for within the design. This shall be reflected in the refuse and waste storage drawings for residential and community elements. "]
[null,null,null,"Module B - In-Use Stage","The planting strategies will seek to reflect local environments or habitats where practicable. Both these and the tree planting strategy will include consideration for native species.\n\nA resource management plan will be developed to monitor and record waste arisings, and help to establish targets in line with GLA guidance i.e., 95% diversion from landfill for construction, demolition, and excavation waste, and 65% municipal waste","N/A","Use of a reinforced concrete frame which will last for at least the design life of the Development and can be extended with sufficient maintenance.","Highly efficient building fabric to reduce energy demand in line with GLA and LBRuT targets. The Energy Strategy demonstrates that the proposed strategy offers a betterment over the 10% residential and 15% non-residential carbon emission reduction target for Be Lean design proposals alone.","The proposed strategy is to implement a site-wide communal heat network with the heating and hot water demand supplied by high efficiency heat pumps. \n\nDynamic overheating assessment carried out, reducing the requirement for cooling plant.","Provision of energy and water meters to each tenant to facilitate monitoring in-use.\n\nOpportunities for reducing energy and water consumption will be promoted to tenants through home user guides.","N/A","N/A","The site shall endeavour to source materials with low embodied carbon and from a sustainable supply chain."]
[null,null,null,"Module C - End-of-Life Stage","BREEAM MAT05 credit has been targeted requiring strategies for material robustness, durability, and adaptability, which encapsulates the commercial and residential areas of the Development.","The use of pre-fabricated elements shall be prioritised, as these reduce construction waste, and include the use of precast floors and stairs.","The use of pre-fabricated elements shall be prioritised, as these reduce construction waste, and include the use of precast floors and stairs.","The external skin will be predominantly brick, which is a natural, durable, and reusable material.\n\nThe use of pre-fabricated elements shall be prioritised, as these reduce construction waste, and include the use of precast floors and stairs.","MEP services and energy centre designed for ease of access and for ease of replacement in the future, with direct access to the Energy Centre from the exterior of the building with large doors to enable easy replacement of MEP equipment.","BREEAM MAT05 credit has been targeted requiring strategies for material robustness, durability, and adaptability, which encapsulates the commercial and residential areas of the Development.","N/A","N/A"]
[null,null,null,"Module D - Benefits and Loads Beyond the System Boundary",null,null,null,null,null,null,"N/A","N/A"]
[null,"Designing for longevity",null,null,"The site is a residential scheme and will therefore inherently be designed for longevity. Use of a reinforced concrete frame which will last for at least the design life of the Development and can be extended with sufficient maintenance.","Use of a reinforced concrete frame which will last for at least the design life of the Development and can be extended with sufficient maintenance.","Use of a reinforced concrete frame which will last for at least the design life of the Development and can be extended with sufficient maintenance.","External brick cladding and clay tile hanging will be used which will have a lifespan beyond the design life of the Development.","High efficiency interior and exterior LED lighting has been specified to reduce quantities and improve operational life span.","BREEAM MAT05 credit has been targeted requiring strategies for material robustness, durability, and adaptability, which encapsulates the commercial and residential areas of the Development.","N/A","N/A","Design for longevity with robust materials and systems that are capable of handling any change"]
[null,"Designing for adaptability or flexibility",null,null,"BREEAM MAT05 credit has been targeted requiring strategies for material robustness, durability, and adaptability, which encapsulates the commercial and residential areas of the Development.","N/A","Lightweight partitioning within apartments means no load bearing partitions will be provided, which maximises internal remodelling for adaptability for future tenants.","Curtain walling system fixed to the structural slabs and soffits. This can be removed and replaced in the event of a major refurbishment and are easily accessible from outside of the building using MEWP or similar relevant machinery","MEP services and energy centre designed for ease of access and for ease of replacement in the future, with direct access to the Energy Centre from the exterior of the building with large doors to enable easy replacement of MEP equipment.\n\nFuture connection to local DHN when available - plant switch-over maximised and allocated pipework routes to minimise disruption.","Internal walls, non-structural to provide options for adaptability and refurbishment beyond the design life of the Development","N/A","N/A"]
[null,"Designing for disassembly",null,null,"The Development is a regeneration scheme of a development no longer fit for purpose and has been identified as a regeneration site under Local Plan policy. The current proposals are not prohibitive of future reuse. ","As a concrete structure, it will be difficult to design for disassembly.\n\nUse of a reinforced concrete frame which will last for at least the design life of the Development and can be extended with sufficient maintenance. Minimum design life of 50 years in accordance with Eurocode design standard requirements and LABC standards.","As a concrete structure, it will be difficult to design for disassembly, however it is proposed to maximise the use of pre-fabricated components, such as balconies and stairs. ","Curtain walling system fixed to the structural slabs and soffits. This can be removed and replaced in the event of a major refurbishment and are easily accessible from outside of the building using MEWP or similar relevant machinery","Specify products which are componentised and can be repaired by replacing failed components, for example LED luminaires with replaceable lamps rather than chip on board luminaires. Specify products which are easily dismantled and do not have fixings such as screws etc.\n\nFor the community facilities it is proposed that the services and fittings to be exposed as part of the overall internal aesthetic, therefore these elements will be easy to maintain and replace.","Lightweight partitioning within apartments means no load bearing partitions will be provided, which maximises internal remodelling for adaptability for future tenants.","N/A","N/A"]
[null,"Using systems, elements or materials that can be re-used and recycled",null,null,"Bricks from the demolition of the western boundary brick wall and the existing Maker Labs shall be reclaimed and re-used elsewhere on site\n\nRe-use of topsoil and subsoil to be explored within soft landscape build ups. All are subject to testing for appropriateness and subject to potential remediation","Basement designed so part of the temporary works structure, required to create a temporary watertight barrier to allow the phased construction of the basement, can be retained and used to provide permanent support to the completed structure","As a concrete structure, it will be difficult to design for disassembly, however it is proposed to maximise the use of pre-fabricated components, such as balconies and stairs. ","The external skin will be predominantly brick, which is a natural, durable, and reusable material","Specify products which are componentised and can be repaired by replacing failed components, for example LED luminaires with replaceable lamps rather than chip on board luminaires. Specify products which are easily dismantled and do not have fixings such as screws etc.","Lightweight partitioning within apartments means no load bearing partitions will be provided, which maximises internal remodelling for adaptability for future tenants.","N/A","N/A"]
[]
[]
[null,"Bill of Materials"]
[null,"Please click the + symbol to the left hand side of the Bill of Materials table to view or hide the input rows for each Building Element Category. The rows for substructure and frame have been unhidden to highlight this."]
[null,null,"BUILDING ELEMENT CATEGORY -  LEVEL 1 (based on the RICS New Rules of\nMeasurement (NRM) classification system level 2 sub-elements https://www.rics.org/globalassets/rics-website/media/products/data-products/bcis-construction/bcis-elemental-standard-form-cost-analysis-4th-nrm-edition-2012.pdf)",null,"PRODUCT AND CONSTRUCTION STAGE (MODULE A)",null,null,null,null,null,null,null,"USE STAGE (MODULE B)",null,null,null,null,"END OF LIFE STAGE (MODULE C)",null,null,null,null,"BENEFITS BEYOND THE SYSTEM BOUNDARY (MODULE D)"]
[null,null,"Building Element Category",null,"Material Type","Material quantity\n(Module A)\n(kg)","Material intensity \n(Module A) \n(kg/m2 GIA)","Performance Indicator (LPG Appendix 1)","Construction Waste Factor \n(Module A)","Construction Waste \n(Module A)\n(kg)","Recycled Content \nby mass (kg)","Recycled Content \nby value (%)","Expected Lifespan\n(years)","Number of Replacements (over assumed 60-year period)","Repair and Replacement quantities of materials\n(Module B)\n (kg)","Construction Waste Factor \n(Module B)","Construction Waste \n(Module B)\n(kg)","Design for Disassembly","Assumed End of Life Scenario\n(Description)","% Reusing ","% Recycling","% Landfill","Estimated reusable materials (kg)","Estimated reusable materials intensity\n(kg/m2 GIA)","Estimated recyclable materials (kg)","Estimated recyclable materials intensity\n(kg/m2 GIA)"]
[null,0.1,"Demolition: Toxic/Hazardous/Contaminated Material Treatment",null,"-",{"$f":"SUM(F92:F106)","v":0},{"$f":"IF(AND(F91<>0,$D$31<>0),F91/$D$31,0)","v":0},"-","-",{"$f":"SUM(J92:J106)","v":0},"-","-","-","-",{"$f":"SUM(O92:O106)","v":0},"-",{"$f":"SUM(Q92:Q106)","v":0},"-","-",{"$f":"IF(W91<>0,W91/($F$91+$O$91),0)","v":0},{"$f":"IF(Y91<>0,Y91/($F$91+$O$91),0)","v":0},{"$f":"1-T91-U91","v":1},{"$f":"SUM(W92:W106)","v":0},{"$f":"IF(AND(W91<>0,$D$31<>0),W91/$D$31,0)","v":0},{"$f":"SUM(Y92:Y106)","v":0},{"$f":"IF(AND(Y91<>0,$D$31<>0),Y91/$D$31,0)","v":0}]
[null,0.1,"Demolition: Toxic/Hazardous/Contaminated Material Treatment",null,null,null,{"$f":"IF(AND(F92<>0,$D$31<>0),F92/$D$31,0)","v":0},"-",null,{"$f":"F92*I92","v":0},null,null,null,{"$f":"IF(M92<>0,INT(60/M92),0)","v":0},{"$f":"N92*I92","v":0},null,{"$f":"P92*M92","v":0},null,null,0,0,{"$f":"1-T92-U92","v":1},{"$f":"T92*(F92+O92)","v":0},{"$f":"IF(AND(W92<>0,$D$31<>0),W92/$D$31,0)","v":0},{"$f":"U92*(F92+O92)","v":0},{"$f":"IF(AND(Y92<>0,$D$31<>0),Y92/$D$31,0)","v":0}]
[null,null,null,null,null,null,{"$f":"IF(AND(F93<>0,$D$31<>0),F93/$D$31,0)","v":0},"-",null,{"$f":"F93*I93","v":0},null,null,null,{"$f":"IF(M93<>0,INT(60/M93),0)","v":0},{"$f":"N93*I93","v":0},null,{"$f":"P93*M93","v":0},null,null,0,0,{"$f":"1-T93-U93","v":1},{"$f":"T93*(F93+O93)","v":0},{"$f":"IF(AND(W93<>0,$D$31<>0),W93/$D$31,0)","v":0},{"$f":"U93*(F93+O93)","v":0},0]
[null,null,null,null,null,null,0,"-",null,0,null,null,null,0,0,null,0,null,null,0,0,1,0,0,0,0]
[null,null,null,null,null,null,0,"-",null,0,null,null,null,0,0,null,0,null,null,0,0,1,0,0,0,0]
[null,null,null,null,null,null,0,"-",null,0,null,null,null,0,0,null,0,null,null,0,0,1,0,0,0,0]
[null,null,null,null,null,null,0,"-",null,0,null,null,null,0,0,null,0,null,null,0,0,1,0,0,0,0]
[null,null,null,null,null,null,0,"-",null,0,null,null,null,0,0,null,0,null,null,0,0,1,0,0,0,0]
[null,null,null,null,null,null,0,"-",null,0,null,null,null,0,0,null,0,null,null,0,0,1,0,0,0,0]
[null,null,null,null,null,null,0,"-",null,0,null,null,null,0,0,null,0,null,null,0,0,1,0,0,0,0]
[null,null,null,null,null,null,0,"-",null,0,null,null,null,0,0,null,0,null,null,0,0,1,0,0,0,0]
[null,null,null,null,null,null,0,"-",null,0,null,null,null,0,0,null,0,null,null,0,0,1,0,0,0,0]
[null,null,null,null,null,null,0,"-",null,0,null,null,null,0,0,null,0,null,null,0,0,1,0,0,0,0]
[null,null,null,null,null,null,0,"-",null,0,null,null,null,0,0,null,0,null,null,0,0,1,0,0,0,0]
[null,null,null,null,null,null,0,"-",null,0,null,null,null,0,0,null,0,null,null,0,0,1,0,0,0,0]
[null,null,null,null,null,null,0,"-",null,0,null,null,null,0,0,null,0,null,null,0,0,1,0,0,0,0]
[null,0.2,"Major Demolition Works",null,"-",{"$f":"SUM(F108:F122)","v":2132940},{"$f":"IF(AND(F107<>0,$D$31<>0),F107/$D$31,0)","v":49.99460896224867},"-","-",{"$f":"SUM(J108:J122)","v":{"$error":"#VALUE!"}},"-","-","-","-",{"$f":"SUM(O108:O122)","v":{"$error":"#VALUE!"}},"-",{"$f":"SUM(Q108:Q122)","v":0},"-","-",{"$f":"IF(W107<>0,W107/($F$107+$O$107),0)","v":{"$error":"#VALUE!"}},{"$f":"IF(Y107<>0,Y107/($F$107+$O$107),0)","v":{"$error":"#VALUE!"}},{"$f":"1-T107-U107","v":{"$error":"#VALUE!"}},{"$f":"SUM(W108:W122)","v":{"$error":"#VALUE!"}},{"$error":"#VALUE!"},{"$f":"SUM(Y108:Y122)","v":{"$error":"#VALUE!"}},{"$error":"#VALUE!"}]
[null,0.2,"Major Demolition Works",null,"Concrete; Steel rebar; Brick; Cement board; Steel stud; Mineral Wool; Plasterboard  ",2132940,{"$f":"IF(AND(F108<>0,$D$31<>0),F108/$D$31,0)","v":49.99460896224867},"-","Variable",{"$f":"I108*F108","v":{"$error":"#VALUE!"}},null,null,60,1,{"$error":"#VALUE!"},null,0,null,null,0,0,1,{"$error":"#VALUE!"},{"$error":"#VALUE!"},{"$error":"#VALUE!"},{"$error":"#VALUE!"}]
[null,null,null,null,null,null,{"$f":"IF(AND(F109<>0,$D$31<>0),F109/$D$31,0)","v":0},"-",null,0,null,null,null,0,0,null,0,null,null,0,0,1,0,0,0,0]
[null,null,null,null,null,null,{"$f":"IF(AND(F110<>0,$D$31<>0),F110/$D$31,0)","v":0},"-",null,0,null,null,null,0,0,null,0,null,null,0,0,1,0,0,0,0]
[null,null,null,null,null,null,0,"-",null,0,null,null,null,0,0,null,0,null,null,0,0,1,0,0,0,0]
[null,null,null,null,null,null,0,"-",null,0,null,null,null,0,0,null,0,null,null,0,0,1,0,0,0,0]
[null,null,null,null,null,null,0,"-",null,0,null,null,null,0,0,null,0,null,null,0,0,1,0,0,0,0]
[null,null,null,null,null,null,0,"-",null,0,null,null,null,0,0,null,0,null,null,0,0,1,0,0,0,0]
[null,null,null,null,null,null,0,"-",null,0,null,null,null,0,0,null,0,null,null,0,0,1,0,0,0,0]
[null,null,null,null,null,null,0,"-",null,0,null,null,null,0,0,null,0,null,null,0,0,1,0,0,0,0]
[null,null,null,null,null,null,0,"-",null,0,null,null,null,0,0,null,0,null,null,0,0,1,0,0,0,0]
[null,null,null,null,null,null,0,"-",null,0,null,null,null,0,0,null,0,null,null,0,0,1,0,0,0,0]
[null,null,null,null,null,null,0,"-",null,0,null,null,null,0,0,null,0,null,null,0,0,1,0,0,0,0]
[null,null,null,null,null,null,0,"-",null,0,null,null,null,0,0,null,0,null,null,0,0,1,0,0,0,0]
[null,null,null,null,null,null,0,"-",null,0,null,null,null,0,0,null,0,null,null,0,0,1,0,0,0,0]
[null,null,null,null,null,null,0,"-",null,0,null,null,null,0,0,null,0,null,null,0,0,1,0,0,0,0]
[null,0.3,"Temporary Support to Adjacent Structures",null,"-",{"$f":"SUM(F124:F138)","v":0},{"$f":"IF(AND(F123<>0,$D$31<>0),F123/$D$31,0)","v":0},"-","-",{"$f":"SUM(J124:J138)","v":0},"-","-","-","-",{"$f":"SUM(O124:O138)","v":0},"-",{"$f":"SUM(Q124:Q138)","v":0},"-","-",{"$f":"IF(W123<>0,W123/($F$123+$O$123),0)","v":0},{"$f":"IF(Y123<>0,Y123/($F$123+$O$123),0)","v":0},1,{"$f":"SUM(W124:W138)","v":0},0,{"$f":"SUM(Y124:Y138)","v":0},0]
[null,0.3,"Temporary Support to Adjacent Structures",null,null,null,{"$f":"IF(AND(F124<>0,$D$31<>0),F124/$D$31,0)","v":0},"-",null,{"$f":"I124*F124","v":0},null,null,null,0,0,null,0,null,null,0,0,1,0,0,0,0]
[null,null,null,null,null,null,{"$f":"IF(AND(F125<>0,$D$31<>0),F125/$D$31,0)","v":0},"-",null,0,null,null,null,0,0,null,0,null,null,0,0,1,0,0,0,0]
[null,null,null,null,null,null,{"$f":"IF(AND(F126<>0,$D$31<>0),F126/$D$31,0)","v":0},"-",null,0,null,null,null,0,0,null,0,null,null,0,0,1,0,0,0,0]
[null,null,null,null,null,null,0,"-",null,0,null,null,null,0,0,null,0,null,null,0,0,1,0,0,0,0]
[null,null,null,null,null,null,0,"-",null,0,null,null,null,0,0,null,0,null,null,0,0,1,0,0,0,0]
[null,null,null,null,null,null,0,"-",null,0,null,null,null,0,0,null,0,null,null,0,0,1,0,0,0,0]
[null,null,null,null,null,null,0,"-",null,0,null,null,null,0,0,null,0,null,null,0,0,1,0,0,0,0]
[null,null,null,null,null,null,0,"-",null,0,null,null,null,0,0,null,0,null,null,0,0,1,0,0,0,0]
[null,null,null,null,null,null,0,"-",null,0,null,null,null,0,0,null,0,null,null,0,0,1,0,0,0,0]
[null,null,null,null,null,null,0,"-",null,0,null,null,null,0,0,null,0,null,null,0,0,1,0,0,0,0]
[null,null,null,null,null,null,0,"-",null,0,null,null,null,0,0,null,0,null,null,0,0,1,0,0,0,0]
[null,null,null,null,null,null,0,"-",null,0,null,null,null,0,0,null,0,null,null,0,0,1,0,0,0,0]
[null,null,null,null,null,null,0,"-",null,0,null,null,null,0,0,null,0,null,null,0,0,1,0,0,0,0]
[null,null,null,null,null,null,0,"-",null,0,null,null,null,0,0,null,0,null,null,0,0,1,0,0,0,0]
[null,null,null,null,null,null,0,"-",null,0,null,null,null,0,0,null,0,null,null,0,0,1,0,0,0,0]
[null,0.4,"Specialist Ground Works",null,"-",{"$f":"SUM(F140:F154)","v":0},{"$f":"IF(AND(F139<>0,$D$31<>0),F139/$D$31,0)","v":0},"-","-",{"$f":"SUM(J140:J154)","v":0},"-","-","-","-",{"$f":"SUM(O140:O154)","v":0},"-",{"$f":"SUM(Q140:Q154)","v":0},"-","-",{"$f":"IF(W139<>0,W139/($F$139+$O$139),0)","v":0},{"$f":"IF(Y139<>0,Y139/($F$139+$O$139),0)","v":0},1,{"$f":"SUM(W140:W154)","v":0},0,{"$f":"SUM(Y140:Y154)","v":0},0]
[null,0.4,"Specialist Ground Works",null,null,null,{"$f":"IF(AND(F140<>0,$D$31<>0),F140/$D$31,0)","v":0},"-",null,{"$f":"I140*F140","v":0},null,null,null,0,0,null,0,null,null,0,0,1,0,0,0,0]
[null,null,null,null,null,null,{"$f":"IF(AND(F141<>0,$D$31<>0),F141/$D$31,0)","v":0},"-",null,0,null,null,null,0,0,null,0,null,null,0,0,1,0,0,0,0]
[null,null,null,null,null,null,{"$f":"IF(AND(F142<>0,$D$31<>0),F142/$D$31,0)","v":0},"-",null,0,null,null,null,0,0,null,0,null,null,0,0,1,0,0,0,0]
[null,null,null,null,null,null,0,"-",null,0,null,null,null,0,0,null,0,null,null,0,0,1,0,0,0,0]
[null,null,null,null,null,null,0,"-",null,0,null,null,null,0,0,null,0,null,null,0,0,1,0,0,0,0]
[null,null,null,null,null,null,0,"-",null,0,null,null,null,0,0,null,0,null,null,0,0,1,0,0,0,0]
[null,null,null,null,null,null,0,"-",null,0,null,null,null,0,0,null,0,null,null,0,0,1,0,0,0,0]
[null,null,null,null,null,null,0,"-",null,0,null,null,null,0,0,null,0,null,null,0,0,1,0,0,0,0]
[null,null,null,null,null,null,0,"-",null,0,null,null,null,0,0,null,0,null,null,0,0,1,0,0,0,0]
[null,null,null,null,null,null,0,"-",null,0,null,null,null,0,0,null,0,null,null,0,0,1,0,0,0,0]
[null,null,null,null,null,null,0,"-",null,0,null,null,null,0,0,null,0,null,null,0,0,1,0,0,0,0]
[null,null,null,null,null,null,0,"-",null,0,null,null,null,0,0,null,0,null,null,0,0,1,0,0,0,0]
[null,null,null,null,null,null,0,"-",null,0,null,null,null,0,0,null,0,null,null,0,0,1,0,0,0,0]
[null,null,null,null,null,null,0,"-",null,0,null,null,null,0,0,null,0,null,null,0,0,1,0,0,0,0]
[null,null,null,null,null,null,0,"-",null,0,null,null,null,0,0,null,0,null,null,0,0,1,0,0,0,0]
[null,1,"Substructure",null,"-",{"$f":"SUM(F156:F175)","v":82132704},{"$f":"IF(AND(F155<>0,$D$31<>0),F155/$D$31,0)","v":1925.1326429679771},{"$f":"SUMPRODUCT((C91:D454=\"Substructure\")*G91:G454)","v":3850.2652859359541},"-",{"$f":"SUM(J156:J175)","v":{"$error":"#VALUE!"}},"-","-","-","-",{"$f":"SUM(O156:O175)","v":{"$error":"#VALUE!"}},"-",{"$f":"SUM(Q156:Q175)","v":0},"-","-",{"$f":"IF(W155<>0,W155/($F$155+$O$155),0)","v":{"$error":"#VALUE!"}},{"$f":"IF(Y155<>0,Y155/($F$155+$O$155),0)","v":{"$error":"#VALUE!"}},{"$error":"#VALUE!"},{"$f":"SUM(W156:W175)","v":{"$error":"#VALUE!"}},{"$error":"#VALUE!"},{"$f":"SUM(Y156:Y175)","v":{"$error":"#VALUE!"}},{"$error":"#VALUE!"}]
[null,1,"Substructure",null,"Concrete & Steel rebar",82132704,{"$f":"IF(AND(F156<>0,$D$31<>0),F156/$D$31,0)","v":1925.1326429679771},"-","Variable",{"$f":"I156*F156","v":{"$error":"#VALUE!"}},{"$f":"F156*L156","v":16426540.800000001},0.2,60,1,{"$error":"#VALUE!"},null,0,null,null,0,0,1,{"$error":"#VALUE!"},{"$error":"#VALUE!"},{"$error":"#VALUE!"},{"$error":"#VALUE!"}]
[null,null,null,null,null,null,{"$f":"IF(AND(F157<>0,$D$31<>0),F157/$D$31,0)","v":0},"-",null,0,null,null,null,{"$f":"IF(M157<>0,INT(60/M157),0)","v":0},{"$f":"N157*I157","v":0},null,{"$f":"P157*M157","v":0},null,null,0,0,{"$f":"1-T157-U157","v":1},{"$f":"T157*(F157+O157)","v":0},{"$f":"IF(AND(W157<>0,$D$31<>0),W157/$D$31,0)","v":0},{"$f":"U157*(F157+O157)","v":0},0]
[null,null,null,null,null,null,{"$f":"IF(AND(F158<>0,$D$31<>0),F158/$D$31,0)","v":0},"-",null,0,null,null,null,0,0,null,0,null,null,0,0,1,0,0,0,0]
[null,null,null,null,null,null,0,"-",null,0,null,null,null,0,0,null,0,null,null,0,0,1,0,0,0,0]
[null,null,null,null,null,null,0,"-",null,0,null,null,null,0,0,null,0,null,null,0,0,1,0,0,0,0]
[null,null,null,null,null,null,0,"-",null,0,null,null,null,0,0,null,0,null,null,0,0,1,0,0,0,0]
[null,null,null,null,null,null,0,"-",null,0,null,null,null,0,0,null,0,null,null,0,0,1,0,0,0,0]
[null,null,null,null,null,null,0,"-",null,0,null,null,null,0,0,null,0,null,null,0,0,1,0,0,0,0]
[null,null,null,null,null,null,0,"-",null,0,null,null,null,0,0,null,0,null,null,0,0,1,0,0,0,0]
[null,null,null,null,null,null,0,"-",null,0,null,null,null,0,0,null,0,null,null,0,0,1,0,0,0,0]
[null,null,null,null,null,null,0,"-",null,0,null,null,null,0,0,null,0,null,null,0,0,1,0,0,0,0]
[null,null,null,null,null,null,0,"-",null,0,null,null,null,0,0,null,0,null,null,0,0,1,0,0,0,0]
[null,null,null,null,null,null,0,"-",null,0,null,null,null,0,0,null,0,null,null,0,0,1,0,0,0,0]
[null,null,null,null,null,null,0,"-",null,0,null,null,null,0,0,null,0,null,null,0,0,1,0,0,0,0]
[null,null,null,null,null,null,{"$f":"IF(AND(F170<>0,$D$31<>0),F170/$D$31,0)","v":0},"-",null,0,null,null,null,0,0,null,0,null,null,0,0,1,0,0,0,0]
[null,null,null,null,null,null,{"$f":"IF(AND(F171<>0,$D$31<>0),F171/$D$31,0)","v":0},"-",null,0,null,null,null,0,0,null,0,null,null,0,0,1,0,0,0,0]
[null,null,null,null,null,null,{"$f":"IF(AND(F172<>0,$D$31<>0),F172/$D$31,0)","v":0},"-",null,0,null,null,null,0,0,null,0,null,null,0,0,1,0,0,0,0]
[null,null,null,null,null,null,0,"-",null,0,null,null,null,0,0,null,0,null,null,0,0,1,0,0,0,0]
[null,null,null,null,null,null,0,"-",null,0,null,null,null,0,0,null,0,null,null,0,0,1,0,0,0,0]
[null,null,null,null,null,null,{"$f":"IF(AND(F175<>0,$D$31<>0),F175/$D$31,0)","v":0},"-",null,0,null,null,null,0,0,null,0,null,null,0,0,1,0,0,0,0]
[null,2.1,"Superstructure: Frame",null,"-",{"$f":"SUM(F177:F196)","v":3863000},{"$f":"IF(AND(F176<>0,$D$31<>0),F176/$D$31,0)","v":90.545994927736658},{"$f":"SUMPRODUCT((C91:D454=\"Superstructure: Frame\")*G91:G454)","v":181.09198985547332},"-",{"$f":"SUM(J177:J196)","v":{"$error":"#VALUE!"}},"-","-","-","-",{"$f":"SUM(O177:O196)","v":{"$error":"#VALUE!"}},"-",{"$f":"SUM(Q177:Q196)","v":0},"-","-",{"$f":"IF(W176<>0,W176/($F$176+$O$176),0)","v":{"$error":"#VALUE!"}},{"$f":"IF(Y176<>0,Y176/($F$176+$O$176),0)","v":{"$error":"#VALUE!"}},{"$error":"#VALUE!"},{"$f":"SUM(W177:W196)","v":{"$error":"#VALUE!"}},{"$error":"#VALUE!"},{"$f":"SUM(Y177:Y196)","v":{"$error":"#VALUE!"}},{"$error":"#VALUE!"}]
[null,2.1,"Superstructure: Frame",null,"Concrete & Steel rebar",3863000,{"$f":"IF(AND(F177<>0,$D$31<>0),F177/$D$31,0)","v":90.545994927736658},"-","Variable",{"$f":"I177*F177","v":{"$error":"#VALUE!"}},{"$f":"F177*L177","v":772600},0.2,60,1,{"$error":"#VALUE!"},null,0,null,null,0,0,1,{"$error":"#VALUE!"},{"$error":"#VALUE!"},{"$error":"#VALUE!"},{"$error":"#VALUE!"}]
[null,null,null,null,null,null,{"$f":"IF(AND(F178<>0,$D$31<>0),F178/$D$31,0)","v":0},"-",null,0,null,null,null,0,0,null,0,null,null,0,0,1,0,0,0,0]
[null,null,null,null,null,null,{"$f":"IF(AND(F179<>0,$D$31<>0),F179/$D$31,0)","v":0},"-",null,0,null,null,null,0,0,null,0,null,null,0,0,1,0,0,0,0]
[null,null,null,null,null,null,0,"-",null,0,null,null,null,0,0,null,0,null,null,0,0,1,0,0,0,0]
[null,null,null,null,null,null,0,"-",null,0,null,null,null,0,0,null,0,null,null,0,0,1,0,0,0,0]
[null,null,null,null,null,null,0,"-",null,0,null,null,null,0,0,null,0,null,null,0,0,1,0,0,0,0]
[null,null,null,null,null,null,0,"-",null,0,null,null,null,0,0,null,0,null,null,0,0,1,0,0,0,0]
[null,null,null,null,null,null,0,"-",null,0,null,null,null,0,0,null,0,null,null,0,0,1,0,0,0,0]
[null,null,null,null,null,null,0,"-",null,0,null,null,null,0,0,null,0,null,null,0,0,1,0,0,0,0]
[null,null,null,null,null,null,0,"-",null,0,null,null,null,0,0,null,0,null,null,0,0,1,0,0,0,0]
[null,null,null,null,null,null,0,"-",null,0,null,null,null,0,0,null,0,null,null,0,0,1,0,0,0,0]
[null,null,null,null,null,null,0,"-",null,0,null,null,null,0,0,null,0,null,null,0,0,1,0,0,0,0]
[null,null,null,null,null,null,0,"-",null,0,null,null,null,0,0,null,0,null,null,0,0,1,0,0,0,0]
[null,null,null,null,null,null,0,"-",null,0,null,null,null,0,0,null,0,null,null,0,0,1,0,0,0,0]
[null,null,null,null,null,null,{"$f":"IF(AND(F191<>0,$D$31<>0),F191/$D$31,0)","v":0},"-",null,0,null,null,null,0,0,null,0,null,null,0,0,1,0,0,0,0]
[null,null,null,null,null,null,{"$f":"IF(AND(F192<>0,$D$31<>0),F192/$D$31,0)","v":0},"-",null,0,null,null,null,0,0,null,0,null,null,0,0,1,0,0,0,0]
[null,null,null,null,null,null,{"$f":"IF(AND(F193<>0,$D$31<>0),F193/$D$31,0)","v":0},"-",null,0,null,null,null,0,0,null,0,null,null,0,0,1,0,0,0,0]
[null,null,null,null,null,null,{"$f":"IF(AND(F194<>0,$D$31<>0),F194/$D$31,0)","v":0},"-",null,0,null,null,null,0,0,null,0,null,null,0,0,1,0,0,0,0]
[null,null,null,null,null,null,0,"-",null,0,null,null,null,0,0,null,0,null,null,0,0,1,0,0,0,0]
[null,null,null,null,null,null,0,"-",null,0,null,null,null,0,0,null,0,null,null,0,0,1,0,0,0,0]
[null,2.2000000000000002,"Superstructure: Upper Floors",null,"-",{"$f":"SUM(F198:F217)","v":30060923},{"$f":"IF(AND(F197<>0,$D$31<>0),F197/$D$31,0)","v":704.60682927286621},{"$f":"SUMPRODUCT((C176:D459=\"Superstructure: Upper Floors\")*G176:G459)","v":1409.2136585457324},"-",{"$f":"SUM(J198:J217)","v":{"$error":"#VALUE!"}},"-","-","-","-",{"$f":"SUM(O198:O217)","v":{"$error":"#VALUE!"}},"-",{"$f":"SUM(Q198:Q217)","v":0},"-","-",{"$f":"IF(W197<>0,W197/($F$197+$O$197),0)","v":{"$error":"#VALUE!"}},{"$f":"IF(Y197<>0,Y197/($F$197+$O$197),0)","v":{"$error":"#VALUE!"}},{"$error":"#VALUE!"},{"$f":"SUM(W198:W217)","v":{"$error":"#VALUE!"}},{"$error":"#VALUE!"},{"$f":"SUM(Y198:Y217)","v":{"$error":"#VALUE!"}},{"$error":"#VALUE!"}]
[null,2.2000000000000002,"Superstructure: Upper Floors",null,"Concrete & Steel rebar; Cement Screed",30060923,{"$f":"IF(AND(F198<>0,$D$31<>0),F198/$D$31,0)","v":704.60682927286621},"-","Variable",{"$f":"I198*F198","v":{"$error":"#VALUE!"}},{"$f":"F198*L198","v":6012184.6000000006},0.2,60,1,{"$error":"#VALUE!"},null,0,null,null,0,0,1,{"$error":"#VALUE!"},{"$error":"#VALUE!"},{"$error":"#VALUE!"},{"$error":"#VALUE!"}]
[null,null,null,null,null,null,{"$f":"IF(AND(F199<>0,$D$31<>0),F199/$D$31,0)","v":0},"-",null,0,null,null,null,0,0,null,0,null,null,0,0,1,0,0,0,0]
[null,null,null,null,null,null,{"$f":"IF(AND(F200<>0,$D$31<>0),F200/$D$31,0)","v":0},"-",null,0,null,null,null,0,0,null,0,null,null,0,0,1,0,0,0,0]
[null,null,null,null,null,null,0,"-",null,0,null,null,null,0,0,null,0,null,null,0,0,1,0,0,0,0]
[null,null,null,null,null,null,0,"-",null,0,null,null,null,0,0,null,0,null,null,0,0,1,0,0,0,0]
[null,null,null,null,null,null,0,"-",null,0,null,null,null,0,0,null,0,null,null,0,0,1,0,0,0,0]
[null,null,null,null,null,null,0,"-",null,0,null,null,null,0,0,null,0,null,null,0,0,1,0,0,0,0]
[null,null,null,null,null,null,0,"-",null,0,null,null,null,0,0,null,0,null,null,0,0,1,0,0,0,0]
[null,null,null,null,null,null,0,"-",null,0,null,null,null,0,0,null,0,null,null,0,0,1,0,0,0,0]
[null,null,null,null,null,null,0,"-",null,0,null,null,null,0,0,null,0,null,null,0,0,1,0,0,0,0]
[null,null,null,null,null,null,0,"-",null,0,null,null,null,0,0,null,0,null,null,0,0,1,0,0,0,0]
[null,null,null,null,null,null,0,"-",null,0,null,null,null,0,0,null,0,null,null,0,0,1,0,0,0,0]
[null,null,null,null,null,null,0,"-",null,0,null,null,null,0,0,null,0,null,null,0,0,1,0,0,0,0]
[null,null,null,null,null,null,0,"-",null,0,null,null,null,0,0,null,0,null,null,0,0,1,0,0,0,0]
[null,null,null,null,null,null,{"$f":"IF(AND(F212<>0,$D$31<>0),F212/$D$31,0)","v":0},"-",null,0,null,null,null,0,0,null,0,null,null,0,0,1,0,0,0,0]
[null,null,null,null,null,null,{"$f":"IF(AND(F213<>0,$D$31<>0),F213/$D$31,0)","v":0},"-",null,0,null,null,null,0,0,null,0,null,null,0,0,1,0,0,0,0]
[null,null,null,null,null,null,{"$f":"IF(AND(F214<>0,$D$31<>0),F214/$D$31,0)","v":0},"-",null,0,null,null,null,0,0,null,0,null,null,0,0,1,0,0,0,0]
[null,null,null,null,null,null,{"$f":"IF(AND(F215<>0,$D$31<>0),F215/$D$31,0)","v":0},"-",null,0,null,null,null,0,0,null,0,null,null,0,0,1,0,0,0,0]
[null,null,null,null,null,null,0,"-",null,0,null,null,null,0,0,null,0,null,null,0,0,1,0,0,0,0]
[null,null,null,null,null,null,0,"-",null,{"$f":"I217*F217","v":0},null,null,null,0,0,null,0,null,null,0,0,1,0,0,0,0]
[null,2.2999999999999998,"Superstructure: Roof",null,"-",{"$f":"SUM(F219:F238)","v":9173453},{"$f":"IF(AND(F218<>0,$D$31<>0),F218/$D$31,0)","v":215.01926710013734},{"$f":"SUMPRODUCT((C91:D454=\"Superstructure: Roof\")*G91:G454)","v":430.03853420027468},"-",{"$f":"SUM(J219:J238)","v":{"$error":"#VALUE!"}},"-","-","-","-",{"$f":"SUM(O219:O238)","v":{"$error":"#VALUE!"}},"-",{"$f":"SUM(Q219:Q238)","v":0},"-","-",{"$f":"IF(W218<>0,W218/($F$218+$O$218),0)","v":{"$error":"#VALUE!"}},{"$f":"IF(Y218<>0,Y218/($F$218+$O$218),0)","v":{"$error":"#VALUE!"}},{"$error":"#VALUE!"},{"$f":"SUM(W219:W238)","v":{"$error":"#VALUE!"}},{"$error":"#VALUE!"},{"$f":"SUM(Y219:Y238)","v":{"$error":"#VALUE!"}},{"$error":"#VALUE!"}]
[null,2.2999999999999998,"Superstructure: Roof",null,"Slate; Asphalt; PIR; Aluminium",9173453,{"$f":"IF(AND(F219<>0,$D$31<>0),F219/$D$31,0)","v":215.01926710013734},"-","Variable",{"$f":"I219*F219","v":{"$error":"#VALUE!"}},{"$f":"F219*L219","v":1834690.6},0.2,60,1,{"$error":"#VALUE!"},null,0,null,null,0,0,1,{"$error":"#VALUE!"},{"$error":"#VALUE!"},{"$error":"#VALUE!"},{"$error":"#VALUE!"}]
[null,null,null,null,null,null,{"$f":"IF(AND(F220<>0,$D$31<>0),F220/$D$31,0)","v":0},"-",null,0,null,null,null,0,0,null,0,null,null,0,0,1,0,0,0,0]
[null,null,null,null,null,null,{"$f":"IF(AND(F221<>0,$D$31<>0),F221/$D$31,0)","v":0},"-",null,0,null,null,null,{"$f":"IF(M221<>0,INT(60/M221),0)","v":0},{"$f":"N221*I221","v":0},null,{"$f":"P221*M221","v":0},null,null,0,0,{"$f":"1-T221-U221","v":1},{"$f":"T221*(F221+O221)","v":0},{"$f":"IF(AND(W221<>0,$D$31<>0),W221/$D$31,0)","v":0},{"$f":"U221*(F221+O221)","v":0},0]
[null,null,null,null,null,null,0,"-",null,0,null,null,null,0,0,null,0,null,null,0,0,1,0,0,0,0]
[null,null,null,null,null,null,0,"-",null,0,null,null,null,0,0,null,0,null,null,0,0,1,0,0,0,0]
[null,null,null,null,null,null,0,"-",null,0,null,null,null,0,0,null,0,null,null,0,0,1,0,0,0,0]
[null,null,null,null,null,null,0,"-",null,0,null,null,null,0,0,null,0,null,null,0,0,1,0,0,0,0]
[null,null,null,null,null,null,0,"-",null,0,null,null,null,0,0,null,0,null,null,0,0,1,0,0,0,0]
[null,null,null,null,null,null,0,"-",null,0,null,null,null,0,0,null,0,null,null,0,0,1,0,0,0,0]
[null,null,null,null,null,null,0,"-",null,0,null,null,null,0,0,null,0,null,null,0,0,1,0,0,0,0]
[null,null,null,null,null,null,0,"-",null,0,null,null,null,0,0,null,0,null,null,0,0,1,0,0,0,0]
[null,null,null,null,null,null,0,"-",null,0,null,null,null,0,0,null,0,null,null,0,0,1,0,0,0,0]
[null,null,null,null,null,null,0,"-",null,0,null,null,null,0,0,null,0,null,null,0,0,1,0,0,0,0]
[null,null,null,null,null,null,0,"-",null,0,null,null,null,0,0,null,0,null,null,0,0,1,0,0,0,0]
[null,null,null,null,null,null,{"$f":"IF(AND(F233<>0,$D$31<>0),F233/$D$31,0)","v":0},"-",null,0,null,null,null,0,0,null,0,null,null,0,0,1,0,0,0,0]
[null,null,null,null,null,null,{"$f":"IF(AND(F234<>0,$D$31<>0),F234/$D$31,0)","v":0},"-",null,0,null,null,null,0,0,null,0,null,null,0,0,1,0,0,0,0]
[null,null,null,null,null,null,{"$f":"IF(AND(F235<>0,$D$31<>0),F235/$D$31,0)","v":0},"-",null,0,null,null,null,0,0,null,0,null,null,0,0,1,0,0,0,0]
[null,null,null,null,null,null,{"$f":"IF(AND(F236<>0,$D$31<>0),F236/$D$31,0)","v":0},"-",null,0,null,null,null,0,0,null,0,null,null,0,0,1,0,0,0,0]
[null,null,null,null,null,null,0,"-",null,0,null,null,null,0,0,null,0,null,null,0,0,1,0,0,0,0]
[null,null,null,null,null,null,0,"-",null,0,null,null,null,0,0,null,0,null,null,0,0,1,0,0,0,0]
[null,2.4,"Superstructure: Stairs and Ramps",null,"-",{"$f":"SUM(F240:F254)","v":1258370},{"$f":"IF(AND(F239<>0,$D$31<>0),F239/$D$31,0)","v":29.49530510929743},"-","-",{"$f":"SUM(J240:J254)","v":{"$error":"#VALUE!"}},"-","-","-","-",{"$f":"SUM(O240:O254)","v":{"$error":"#VALUE!"}},"-",{"$f":"SUM(Q240:Q254)","v":0},"-","-",{"$f":"IF(W239<>0,W239/($F$239+$O$239),0)","v":{"$error":"#VALUE!"}},{"$f":"IF(Y239<>0,Y239/($F$239+$O$239),0)","v":{"$error":"#VALUE!"}},{"$error":"#VALUE!"},{"$f":"SUM(W240:W254)","v":{"$error":"#VALUE!"}},{"$error":"#VALUE!"},{"$f":"SUM(Y240:Y254)","v":{"$error":"#VALUE!"}},{"$error":"#VALUE!"}]
[null,2.4,"Superstructure: Stairs and Ramps",null,"Concrete & Steel rebar",1258370,{"$f":"IF(AND(F240<>0,$D$31<>0),F240/$D$31,0)","v":29.49530510929743},"-","Variable",{"$f":"I240*F240","v":{"$error":"#VALUE!"}},{"$f":"F240*L240","v":251674},0.2,60,1,{"$error":"#VALUE!"},null,0,null,null,0,0,1,{"$error":"#VALUE!"},{"$error":"#VALUE!"},{"$error":"#VALUE!"},{"$error":"#VALUE!"}]
[null,null,null,null,null,null,{"$f":"IF(AND(F241<>0,$D$31<>0),F241/$D$31,0)","v":0},"-",null,0,null,null,null,0,0,null,0,null,null,0,0,1,0,0,0,0]
[null,null,null,null,null,null,{"$f":"IF(AND(F242<>0,$D$31<>0),F242/$D$31,0)","v":0},"-",null,0,null,null,null,0,0,null,0,null,null,0,0,1,0,0,0,0]
[null,null,null,null,null,null,0,"-",null,0,null,null,null,0,0,null,0,null,null,0,0,1,0,0,0,0]
[null,null,null,null,null,null,0,"-",null,0,null,null,null,0,0,null,0,null,null,0,0,1,0,0,0,0]
[null,null,null,null,null,null,0,"-",null,0,null,null,null,0,0,null,0,null,null,0,0,1,0,0,0,0]
[null,null,null,null,null,null,0,"-",null,0,null,null,null,0,0,null,0,null,null,0,0,1,0,0,0,0]
[null,null,null,null,null,null,0,"-",null,0,null,null,null,0,0,null,0,null,null,0,0,1,0,0,0,0]
[null,null,null,null,null,null,0,"-",null,0,null,null,null,0,0,null,0,null,null,0,0,1,0,0,0,0]
[null,null,null,null,null,null,0,"-",null,0,null,null,null,0,0,null,0,null,null,0,0,1,0,0,0,0]
[null,null,null,null,null,null,0,"-",null,0,null,null,null,0,0,null,0,null,null,0,0,1,0,0,0,0]
[null,null,null,null,null,null,0,"-",null,0,null,null,null,0,0,null,0,null,null,0,0,1,0,0,0,0]
[null,null,null,null,null,null,0,"-",null,0,null,null,null,0,0,null,0,null,null,0,0,1,0,0,0,0]
[null,null,null,null,null,null,0,"-",null,0,null,null,null,0,0,null,0,null,null,0,0,1,0,0,0,0]
[null,null,null,null,null,null,{"$f":"IF(AND(F254<>0,$D$31<>0),F254/$D$31,0)","v":0},"-",null,0,null,null,null,0,0,null,0,null,null,0,0,1,0,0,0,0]
[null,2.5,"Superstructure: External Walls",null,"-",{"$f":"SUM(F256:F275)","v":7910310},{"$f":"IF(AND(F255<>0,$D$31<>0),F255/$D$31,0)","v":185.41208623785258},{"$f":"SUMPRODUCT((C91:D454=\"Superstructure: External Walls\")*G91:G454)+SUMPRODUCT((C91:D454=\"Superstructure: Windows and External Doors\")*G91:G454)","v":389.64822306707856},"-",{"$f":"SUM(J256:J275)","v":{"$error":"#VALUE!"}},"-","-","-","-",{"$f":"SUM(O256:O275)","v":{"$error":"#VALUE!"}},"-",{"$f":"SUM(Q256:Q275)","v":0},"-","-",{"$f":"IF(W255<>0,W255/($F$255+$O$255),0)","v":{"$error":"#VALUE!"}},{"$f":"IF(Y255<>0,Y255/($F$255+$O$255),0)","v":{"$error":"#VALUE!"}},{"$error":"#VALUE!"},{"$f":"SUM(W256:W275)","v":{"$error":"#VALUE!"}},{"$error":"#VALUE!"},{"$f":"SUM(Y256:Y275)","v":{"$error":"#VALUE!"}},{"$error":"#VALUE!"}]
[null,2.5,"Superstructure: External Walls",null,"Brick; Cement board; Steel stud; Mineral Wool; Plasterboard  ",7910310,{"$f":"IF(AND(F256<>0,$D$31<>0),F256/$D$31,0)","v":185.41208623785258},"-","Variable",{"$f":"I256*F256","v":{"$error":"#VALUE!"}},{"$f":"F256*L256","v":1582062},0.2,60,1,{"$error":"#VALUE!"},null,0,null,null,0,0,1,{"$error":"#VALUE!"},{"$error":"#VALUE!"},{"$error":"#VALUE!"},{"$error":"#VALUE!"}]
[null,null,null,null,null,null,{"$f":"IF(AND(F257<>0,$D$31<>0),F257/$D$31,0)","v":0},"-",null,0,null,null,null,0,0,null,0,null,null,0,0,1,0,0,0,0]
[null,null,null,null,null,null,{"$f":"IF(AND(F258<>0,$D$31<>0),F258/$D$31,0)","v":0},"-",null,0,null,null,null,0,0,null,0,null,null,0,0,1,0,0,0,0]
[null,null,null,null,null,null,0,"-",null,0,null,null,null,0,0,null,0,null,null,0,0,1,0,0,0,0]
[null,null,null,null,null,null,0,"-",null,0,null,null,null,0,0,null,0,null,null,0,0,1,0,0,0,0]
[null,null,null,null,null,null,0,"-",null,0,null,null,null,0,0,null,0,null,null,0,0,1,0,0,0,0]
[null,null,null,null,null,null,0,"-",null,0,null,null,null,0,0,null,0,null,null,0,0,1,0,0,0,0]
[null,null,null,null,null,null,0,"-",null,0,null,null,null,0,0,null,0,null,null,0,0,1,0,0,0,0]
[null,null,null,null,null,null,0,"-",null,0,null,null,null,0,0,null,0,null,null,0,0,1,0,0,0,0]
[null,null,null,null,null,null,0,"-",null,0,null,null,null,0,0,null,0,null,null,0,0,1,0,0,0,0]
[null,null,null,null,null,null,0,"-",null,0,null,null,null,0,0,null,0,null,null,0,0,1,0,0,0,0]
[null,null,null,null,null,null,0,"-",null,0,null,null,null,0,0,null,0,null,null,0,0,1,0,0,0,0]
[null,null,null,null,null,null,0,"-",null,0,null,null,null,0,0,null,0,null,null,0,0,1,0,0,0,0]
[null,null,null,null,null,null,0,"-",null,0,null,null,null,0,0,null,0,null,null,0,0,1,0,0,0,0]
[null,null,null,null,null,null,{"$f":"IF(AND(F270<>0,$D$31<>0),F270/$D$31,0)","v":0},"-",null,0,null,null,null,0,0,null,0,null,null,0,0,1,0,0,0,0]
[null,null,null,null,null,null,{"$f":"IF(AND(F271<>0,$D$31<>0),F271/$D$31,0)","v":0},"-",null,0,null,null,null,0,0,null,0,null,null,0,0,1,0,0,0,0]
[null,null,null,null,null,null,{"$f":"IF(AND(F272<>0,$D$31<>0),F272/$D$31,0)","v":0},"-",null,0,null,null,null,0,0,null,0,null,null,0,0,1,0,0,0,0]
[null,null,null,null,null,null,{"$f":"IF(AND(F273<>0,$D$31<>0),F273/$D$31,0)","v":0},"-",null,0,null,null,null,0,0,null,0,null,null,0,0,1,0,0,0,0]
[null,null,null,null,null,null,0,"-",null,0,null,null,null,0,0,null,0,null,null,0,0,1,0,0,0,0]
[null,null,null,null,null,null,0,"-",null,0,null,null,null,0,0,null,0,null,null,0,0,1,0,0,0,0]
[null,2.6,"Superstructure: Windows and External Doors",null,"-",{"$f":"SUM(F277:F291)","v":401549},{"$f":"IF(AND(F276<>0,$D$31<>0),F276/$D$31,0)","v":9.4120252956866999},{"$f":"SUMPRODUCT((C91:D454=\"Superstructure: External Walls\")*G91:G454)+SUMPRODUCT((C91:D454=\"Superstructure: Windows and External Doors\")*G91:G454)","v":389.64822306707856},"-",{"$f":"SUM(J277:J291)","v":{"$error":"#VALUE!"}},"-","-","-","-",{"$f":"SUM(O277:O291)","v":{"$error":"#VALUE!"}},"-",{"$f":"SUM(Q277:Q291)","v":0},"-","-",{"$f":"IF(W276<>0,W276/($F$276+$O$276),0)","v":{"$error":"#VALUE!"}},{"$f":"IF(Y276<>0,Y276/($F$276+$O$276),0)","v":{"$error":"#VALUE!"}},{"$error":"#VALUE!"},{"$f":"SUM(W277:W291)","v":{"$error":"#VALUE!"}},{"$error":"#VALUE!"},{"$f":"SUM(Y277:Y291)","v":{"$error":"#VALUE!"}},{"$error":"#VALUE!"}]
[null,2.6,"Superstructure: Windows and External Doors",null,"Aluminium frame double glazing window",401549,{"$f":"IF(AND(F277<>0,$D$31<>0),F277/$D$31,0)","v":9.4120252956866999},"-","Variable",{"$error":"#VALUE!"},{"$f":"F277*L277","v":80309.8},0.2,60,1,{"$error":"#VALUE!"},null,0,null,null,0,0,1,{"$error":"#VALUE!"},{"$error":"#VALUE!"},{"$error":"#VALUE!"},{"$error":"#VALUE!"}]
[null,null,null,null,null,null,{"$f":"IF(AND(F278<>0,$D$31<>0),F278/$D$31,0)","v":0},"-",null,0,null,null,null,0,0,null,0,null,null,0,0,1,0,0,0,0]
[null,null,null,null,null,null,{"$f":"IF(AND(F279<>0,$D$31<>0),F279/$D$31,0)","v":0},"-",null,0,null,null,null,0,0,null,0,null,null,0,0,1,0,0,0,0]
[null,null,null,null,null,null,0,"-",null,0,null,null,null,0,0,null,0,null,null,0,0,1,0,0,0,0]
[null,null,null,null,null,null,0,"-",null,0,null,null,null,0,0,null,0,null,null,0,0,1,0,0,0,0]
[null,null,null,null,null,null,0,"-",null,0,null,null,null,0,0,null,0,null,null,0,0,1,0,0,0,0]
[null,null,null,null,null,null,0,"-",null,0,null,null,null,0,0,null,0,null,null,0,0,1,0,0,0,0]
[null,null,null,null,null,null,0,"-",null,0,null,null,null,0,0,null,0,null,null,0,0,1,0,0,0,0]
[null,null,null,null,null,null,0,"-",null,0,null,null,null,{"$f":"IF(M285<>0,INT(60/M285),0)","v":0},{"$f":"N285*I285","v":0},null,{"$f":"P285*M285","v":0},null,null,0,0,{"$f":"1-T285-U285","v":1},{"$f":"T285*(F285+O285)","v":0},{"$f":"IF(AND(W285<>0,$D$31<>0),W285/$D$31,0)","v":0},{"$f":"U285*(F285+O285)","v":0},0]
[null,null,null,null,null,null,0,"-",null,0,null,null,null,0,0,null,0,null,null,0,0,1,0,0,0,0]
[null,null,null,null,null,null,0,"-",null,0,null,null,null,0,0,null,0,null,null,0,0,1,0,0,0,0]
[null,null,null,null,null,null,0,"-",null,0,null,null,null,0,0,null,0,null,null,0,0,1,0,0,0,0]
[null,null,null,null,null,null,0,"-",null,0,null,null,null,0,0,null,0,null,null,0,0,1,0,0,0,0]
[null,null,null,null,null,null,0,"-",null,0,null,null,null,0,0,null,0,null,null,0,0,1,0,0,0,0]
[null,null,null,null,null,null,{"$f":"IF(AND(F291<>0,$D$31<>0),F291/$D$31,0)","v":0},"-",null,0,null,null,null,0,0,null,0,null,null,0,0,1,0,0,0,0]
[null,2.7,"Superstructure: Internal Walls and Partitions",null,"-",{"$f":"SUM(F293:F312)","v":6275404},{"$f":"IF(AND(F292<>0,$D$31<>0),F292/$D$31,0)","v":147.09104290797265},{"$f":"SUMPRODUCT((C91:D454=\"Superstructure: Internal Doors\")*G91:G454)+SUMPRODUCT((C91:D454=\"Superstructure: Internal Walls and Partitions\")*G91:G454)","v":296.65722844405275},"-",{"$f":"SUM(J293:J312)","v":{"$error":"#VALUE!"}},"-","-","-","-",{"$f":"SUM(O293:O312)","v":{"$error":"#VALUE!"}},"-",{"$f":"SUM(Q293:Q312)","v":0},"-","-",{"$f":"IF(W292<>0,W292/($F$292+$O$292),0)","v":{"$error":"#VALUE!"}},{"$f":"IF(Y292<>0,Y292/($F$292+$O$292),0)","v":{"$error":"#VALUE!"}},{"$error":"#VALUE!"},{"$f":"SUM(W293:W312)","v":{"$error":"#VALUE!"}},{"$error":"#VALUE!"},{"$f":"SUM(Y293:Y312)","v":{"$error":"#VALUE!"}},{"$error":"#VALUE!"}]
[null,2.7,"Superstructure: Internal Walls and Partitions",null,"Plasterboard; Steel stud; Concrete block; Mineral Wool",6275404,{"$f":"IF(AND(F293<>0,$D$31<>0),F293/$D$31,0)","v":147.09104290797265},"-","Variable",{"$error":"#VALUE!"},{"$f":"F293*L293","v":1255080.8},0.2,60,1,{"$error":"#VALUE!"},null,0,null,null,0,0,1,{"$error":"#VALUE!"},{"$error":"#VALUE!"},{"$error":"#VALUE!"},{"$error":"#VALUE!"}]
[null,null,null,null,null,null,{"$f":"IF(AND(F294<>0,$D$31<>0),F294/$D$31,0)","v":0},"-",null,0,null,null,null,0,0,null,0,null,null,0,0,1,0,0,0,0]
[null,null,null,null,null,null,{"$f":"IF(AND(F295<>0,$D$31<>0),F295/$D$31,0)","v":0},"-",null,0,null,null,null,0,0,null,0,null,null,0,0,1,0,0,0,0]
[null,null,null,null,null,null,0,"-",null,0,null,null,null,0,0,null,0,null,null,0,0,1,0,0,0,0]
[null,null,null,null,null,null,0,"-",null,0,null,null,null,0,0,null,0,null,null,0,0,1,0,0,0,0]
[null,null,null,null,null,null,0,"-",null,0,null,null,null,0,0,null,0,null,null,0,0,1,0,0,0,0]
[null,null,null,null,null,null,0,"-",null,0,null,null,null,0,0,null,0,null,null,0,0,1,0,0,0,0]
[null,null,null,null,null,null,0,"-",null,0,null,null,null,0,0,null,0,null,null,0,0,1,0,0,0,0]
[null,null,null,null,null,null,0,"-",null,0,null,null,null,0,0,null,0,null,null,0,0,1,0,0,0,0]
[null,null,null,null,null,null,0,"-",null,0,null,null,null,0,0,null,0,null,null,0,0,1,0,0,0,0]
[null,null,null,null,null,null,0,"-",null,0,null,null,null,0,0,null,0,null,null,0,0,1,0,0,0,0]
[null,null,null,null,null,null,0,"-",null,0,null,null,null,0,0,null,0,null,null,0,0,1,0,0,0,0]
[null,null,null,null,null,null,0,"-",null,0,null,null,null,0,0,null,0,null,null,0,0,1,0,0,0,0]
[null,null,null,null,null,null,0,"-",null,0,null,null,null,0,0,null,0,null,null,0,0,1,0,0,0,0]
[null,null,null,null,null,null,{"$f":"IF(AND(F307<>0,$D$31<>0),F307/$D$31,0)","v":0},"-",null,0,null,null,null,0,0,null,0,null,null,0,0,1,0,0,0,0]
[null,null,null,null,null,null,{"$f":"IF(AND(F308<>0,$D$31<>0),F308/$D$31,0)","v":0},"-",null,0,null,null,null,0,0,null,0,null,null,0,0,1,0,0,0,0]
[null,null,null,null,null,null,{"$f":"IF(AND(F309<>0,$D$31<>0),F309/$D$31,0)","v":0},"-",null,0,null,null,null,0,0,null,0,null,null,0,0,1,0,0,0,0]
[null,null,null,null,null,null,{"$f":"IF(AND(F310<>0,$D$31<>0),F310/$D$31,0)","v":0},"-",null,0,null,null,null,0,0,null,0,null,null,0,0,1,0,0,0,0]
[null,null,null,null,null,null,0,"-",null,0,null,null,null,0,0,null,0,null,null,0,0,1,0,0,0,0]
[null,null,null,null,null,null,0,"-",null,0,null,null,null,0,0,null,0,null,null,0,0,1,0,0,0,0]
[null,2.8,"Superstructure: Internal Doors",null,"-",{"$f":"SUM(F314:F328)","v":52799},{"$f":"IF(AND(F313<>0,$D$31<>0),F313/$D$31,0)","v":1.2375713140537321},{"$f":"SUMPRODUCT((C91:D454=\"Superstructure: Internal Doors\")*G91:G454)+SUMPRODUCT((C91:D454=\"Superstructure: Internal Walls and Partitions\")*G91:G454)","v":296.65722844405275},"-",{"$f":"SUM(J314:J328)","v":{"$error":"#VALUE!"}},"-","-","-","-",{"$f":"SUM(O314:O328)","v":{"$error":"#VALUE!"}},"-",{"$f":"SUM(Q314:Q328)","v":0},"-","-",{"$f":"IF(W313<>0,W313/($F$313+$O$313),0)","v":{"$error":"#VALUE!"}},{"$f":"IF(Y313<>0,Y313/($F$313+$O$313),0)","v":{"$error":"#VALUE!"}},{"$error":"#VALUE!"},{"$f":"SUM(W314:W328)","v":{"$error":"#VALUE!"}},{"$error":"#VALUE!"},{"$f":"SUM(Y314:Y328)","v":{"$error":"#VALUE!"}},{"$error":"#VALUE!"}]
[null,2.8,"Superstructure: Internal Doors",null,"Wood doors",52799,{"$f":"IF(AND(F314<>0,$D$31<>0),F314/$D$31,0)","v":1.2375713140537321},"-","Variable",{"$error":"#VALUE!"},{"$f":"F314*L314","v":10559.800000000001},0.2,60,1,{"$error":"#VALUE!"},null,0,null,null,0,0,1,{"$error":"#VALUE!"},{"$error":"#VALUE!"},{"$error":"#VALUE!"},{"$error":"#VALUE!"}]
[null,null,null,null,null,null,{"$f":"IF(AND(F315<>0,$D$31<>0),F315/$D$31,0)","v":0},"-",null,0,null,null,null,0,0,null,0,null,null,0,0,1,0,0,0,0]
[null,null,null,null,null,null,{"$f":"IF(AND(F316<>0,$D$31<>0),F316/$D$31,0)","v":0},"-",null,0,null,null,null,0,0,null,0,null,null,0,0,1,0,0,0,0]
[null,null,null,null,null,null,0,"-",null,0,null,null,null,0,0,null,0,null,null,0,0,1,0,0,0,0]
[null,null,null,null,null,null,0,"-",null,0,null,null,null,0,0,null,0,null,null,0,0,1,0,0,0,0]
[null,null,null,null,null,null,0,"-",null,0,null,null,null,0,0,null,0,null,null,0,0,1,0,0,0,0]
[null,null,null,null,null,null,0,"-",null,{"$f":"I320*F320","v":0},null,null,null,0,0,null,0,null,null,0,0,1,0,0,0,0]
[null,null,null,null,null,null,0,"-",null,0,null,null,null,0,0,null,0,null,null,0,0,1,0,0,0,0]
[null,null,null,null,null,null,0,"-",null,0,null,null,null,0,0,null,0,null,null,0,0,1,0,0,0,0]
[null,null,null,null,null,null,0,"-",null,0,null,null,null,0,0,null,0,null,null,0,0,1,0,0,0,0]
[null,null,null,null,null,null,0,"-",null,0,null,null,null,0,0,null,0,null,null,0,0,1,0,0,0,0]
[null,null,null,null,null,null,0,"-",null,0,null,null,null,0,0,null,0,null,null,0,0,1,0,0,0,0]
[null,null,null,null,null,null,0,"-",null,0,null,null,null,0,0,null,0,null,null,0,0,1,0,0,0,0]
[null,null,null,null,null,null,0,"-",null,0,null,null,null,0,0,null,0,null,null,0,0,1,0,0,0,0]
[null,null,null,null,null,null,{"$f":"IF(AND(F328<>0,$D$31<>0),F328/$D$31,0)","v":0},"-",null,0,null,null,null,0,0,null,0,null,null,0,0,1,0,0,0,0]
[null,3,"Finishes",null,"-",{"$f":"SUM(F330:F349)","v":258540},{"$f":"IF(AND(F329<>0,$D$31<>0),F329/$D$31,0)","v":6.0599952183839072},"-","-",{"$f":"SUM(J330:J349)","v":{"$error":"#VALUE!"}},"-","-","-","-",{"$f":"SUM(O330:O349)","v":{"$error":"#VALUE!"}},"-",{"$f":"SUM(Q330:Q349)","v":0},"-","-",{"$f":"IF(W329<>0,W329/($F$329+$O$329),0)","v":{"$error":"#VALUE!"}},{"$f":"IF(Y329<>0,Y329/($F$329+$O$329),0)","v":{"$error":"#VALUE!"}},{"$error":"#VALUE!"},{"$f":"SUM(W330:W349)","v":{"$error":"#VALUE!"}},{"$error":"#VALUE!"},{"$f":"SUM(Y330:Y349)","v":{"$error":"#VALUE!"}},{"$error":"#VALUE!"}]
[null,3,"Finishes",null,"Carpet",258540,{"$f":"IF(AND(F330<>0,$D$31<>0),F330/$D$31,0)","v":6.0599952183839072},"-","Variable",{"$error":"#VALUE!"},{"$f":"F330*L330","v":51708},0.2,15,4,{"$error":"#VALUE!"},null,0,null,null,0,0,1,{"$error":"#VALUE!"},{"$error":"#VALUE!"},{"$error":"#VALUE!"},{"$error":"#VALUE!"}]
[null,null,null,null,null,null,{"$f":"IF(AND(F331<>0,$D$31<>0),F331/$D$31,0)","v":0},"-",null,0,null,null,null,0,0,null,0,null,null,0,0,1,0,0,0,0]
[null,null,null,null,null,null,{"$f":"IF(AND(F332<>0,$D$31<>0),F332/$D$31,0)","v":0},"-",null,0,null,null,null,0,0,null,0,null,null,0,0,1,0,0,0,0]
[null,null,null,null,null,null,0,"-",null,0,null,null,null,0,0,null,0,null,null,0,0,1,0,0,0,0]
[null,null,null,null,null,null,0,"-",null,0,null,null,null,0,0,null,0,null,null,0,0,1,0,0,0,0]
[null,null,null,null,null,null,0,"-",null,0,null,null,null,0,0,null,0,null,null,0,0,1,0,0,0,0]
[null,null,null,null,null,null,0,"-",null,0,null,null,null,0,0,null,0,null,null,0,0,1,0,0,0,0]
[null,null,null,null,null,null,0,"-",null,0,null,null,null,0,0,null,0,null,null,0,0,1,0,0,0,0]
[null,null,null,null,null,null,0,"-",null,0,null,null,null,0,0,null,0,null,null,0,0,1,0,0,0,0]
[null,null,null,null,null,null,0,"-",null,0,null,null,null,0,0,null,0,null,null,0,0,1,0,0,0,0]
[null,null,null,null,null,null,0,"-",null,0,null,null,null,0,0,null,0,null,null,0,0,1,0,0,0,0]
[null,null,null,null,null,null,0,"-",null,0,null,null,null,0,0,null,0,null,null,0,0,1,0,0,0,0]
[null,null,null,null,null,null,0,"-",null,0,null,null,null,0,0,null,0,null,null,0,0,1,0,0,0,0]
[null,null,null,null,null,null,0,"-",null,0,null,null,null,0,0,null,0,null,null,0,0,1,0,0,0,0]
[null,null,null,null,null,null,{"$f":"IF(AND(F344<>0,$D$31<>0),F344/$D$31,0)","v":0},"-",null,0,null,null,null,0,0,null,0,null,null,0,0,1,0,0,0,0]
[null,null,null,null,null,null,{"$f":"IF(AND(F345<>0,$D$31<>0),F345/$D$31,0)","v":0},"-",null,0,null,null,null,0,0,null,0,null,null,0,0,1,0,0,0,0]
[null,null,null,null,null,null,{"$f":"IF(AND(F346<>0,$D$31<>0),F346/$D$31,0)","v":0},"-",null,0,null,null,null,0,0,null,0,null,null,0,0,1,0,0,0,0]
[null,null,null,null,null,null,{"$f":"IF(AND(F347<>0,$D$31<>0),F347/$D$31,0)","v":0},"-",null,0,null,null,null,0,0,null,0,null,null,0,0,1,0,0,0,0]
[null,null,null,null,null,null,0,"-",null,0,null,null,null,0,0,null,0,null,null,0,0,1,0,0,0,0]
[null,null,null,null,null,null,0,"-",null,0,null,null,null,{"$f":"IF(M349<>0,INT(60/M349),0)","v":0},{"$f":"N349*I349","v":0},null,{"$f":"P349*M349","v":0},null,null,0,0,{"$f":"1-T349-U349","v":1},{"$f":"T349*(F349+O349)","v":0},{"$f":"IF(AND(W349<>0,$D$31<>0),W349/$D$31,0)","v":0},{"$f":"U349*(F349+O349)","v":0},0]
[null,4,"Fittings, furnishings & equipment (FFE)",null,"-",{"$f":"SUM(F351:F370)","v":0},{"$f":"IF(AND(F350<>0,$D$31<>0),F350/$D$31,0)","v":0},"-","-",{"$f":"SUM(J351:J370)","v":0},"-","-","-","-",{"$f":"SUM(O351:O370)","v":0},"-",{"$f":"SUM(Q351:Q370)","v":0},"-","-",{"$f":"IF(W350<>0,W350/($F$350+$O$350),0)","v":0},{"$f":"IF(Y350<>0,Y350/($F$350+$O$350),0)","v":0},1,{"$f":"SUM(W351:W370)","v":0},0,{"$f":"SUM(Y351:Y370)","v":0},0]
[null,4,"Fittings, furnishings & equipment (FFE)",null,null,null,{"$f":"IF(AND(F351<>0,$D$31<>0),F351/$D$31,0)","v":0},"-",null,0,null,null,null,0,0,null,0,null,null,0,0,1,0,0,0,0]
[null,null,null,null,null,null,{"$f":"IF(AND(F352<>0,$D$31<>0),F352/$D$31,0)","v":0},"-",null,0,null,null,null,0,0,null,0,null,null,0,0,1,0,0,0,0]
[null,null,null,null,null,null,{"$f":"IF(AND(F353<>0,$D$31<>0),F353/$D$31,0)","v":0},"-",null,0,null,null,null,0,0,null,0,null,null,0,0,1,0,0,0,0]
[null,null,null,null,null,null,0,"-",null,0,null,null,null,0,0,null,0,null,null,0,0,1,0,0,0,0]
[null,null,null,null,null,null,0,"-",null,0,null,null,null,0,0,null,0,null,null,0,0,1,0,0,0,0]
[null,null,null,null,null,null,0,"-",null,0,null,null,null,0,0,null,0,null,null,0,0,1,0,0,0,0]
[null,null,null,null,null,null,0,"-",null,0,null,null,null,0,0,null,0,null,null,0,0,1,0,0,0,0]
[null,null,null,null,null,null,0,"-",null,0,null,null,null,0,0,null,0,null,null,0,0,1,0,0,0,0]
[null,null,null,null,null,null,0,"-",null,0,null,null,null,0,0,null,0,null,null,0,0,1,0,0,0,0]
[null,null,null,null,null,null,0,"-",null,0,null,null,null,0,0,null,0,null,null,0,0,1,0,0,0,0]
[null,null,null,null,null,null,0,"-",null,0,null,null,null,0,0,null,0,null,null,0,0,1,0,0,0,0]
[null,null,null,null,null,null,0,"-",null,0,null,null,null,0,0,null,0,null,null,0,0,1,0,0,0,0]
[null,null,null,null,null,null,0,"-",null,0,null,null,null,0,0,null,0,null,null,0,0,1,0,0,0,0]
[null,null,null,null,null,null,0,"-",null,0,null,null,null,0,0,null,0,null,null,0,0,1,0,0,0,0]
[null,null,null,null,null,null,{"$f":"IF(AND(F365<>0,$D$31<>0),F365/$D$31,0)","v":0},"-",null,0,null,null,null,0,0,null,0,null,null,0,0,1,0,0,0,0]
[null,null,null,null,null,null,{"$f":"IF(AND(F366<>0,$D$31<>0),F366/$D$31,0)","v":0},"-",null,0,null,null,null,0,0,null,0,null,null,0,0,1,0,0,0,0]
[null,null,null,null,null,null,{"$f":"IF(AND(F367<>0,$D$31<>0),F367/$D$31,0)","v":0},"-",null,0,null,null,null,0,0,null,0,null,null,0,0,1,0,0,0,0]
[null,null,null,null,null,null,{"$f":"IF(AND(F368<>0,$D$31<>0),F368/$D$31,0)","v":0},"-",null,0,null,null,null,0,0,null,0,null,null,0,0,1,0,0,0,0]
[null,null,null,null,null,null,0,"-",null,0,null,null,null,0,0,null,0,null,null,0,0,1,0,0,0,0]
[null,null,null,null,null,null,0,"-",null,0,null,null,null,0,0,null,0,null,null,0,0,1,0,0,0,0]
[null,5,"Services (MEP)",null,"-",{"$f":"SUM(F372:F391)","v":307798},{"$f":"IF(AND(F371<>0,$D$31<>0),F371/$D$31,0)","v":7.2145679903617621},"-","-",{"$f":"SUM(J372:J391)","v":{"$error":"#VALUE!"}},"-","-","-","-",{"$f":"SUM(O372:O391)","v":{"$error":"#VALUE!"}},"-",{"$f":"SUM(Q372:Q391)","v":0},"-","-",{"$f":"IF(W371<>0,W371/($F$371+$O$371),0)","v":{"$error":"#VALUE!"}},{"$f":"IF(Y371<>0,Y371/($F$371+$O$371),0)","v":{"$error":"#VALUE!"}},{"$error":"#VALUE!"},{"$f":"SUM(W372:W391)","v":{"$error":"#VALUE!"}},{"$error":"#VALUE!"},{"$f":"SUM(Y372:Y391)","v":{"$error":"#VALUE!"}},{"$error":"#VALUE!"}]
[null,5,"Services (MEP)",null,"Metal ",307798,{"$f":"IF(AND(F372<>0,$D$31<>0),F372/$D$31,0)","v":7.2145679903617621},"-","Variable",{"$error":"#VALUE!"},{"$f":"F372*L372","v":61559.600000000006},0.2,15,4,{"$error":"#VALUE!"},null,0,null,null,0,0,1,{"$error":"#VALUE!"},{"$error":"#VALUE!"},{"$error":"#VALUE!"},{"$error":"#VALUE!"}]
[null,null,null,null,null,null,{"$f":"IF(AND(F373<>0,$D$31<>0),F373/$D$31,0)","v":0},"-",null,0,null,null,null,0,0,null,0,null,null,0,0,1,0,0,0,0]
[null,null,null,null,null,null,{"$f":"IF(AND(F374<>0,$D$31<>0),F374/$D$31,0)","v":0},"-",null,0,null,null,null,0,0,null,0,null,null,0,0,1,0,0,0,0]
[null,null,null,null,null,null,0,"-",null,0,null,null,null,0,0,null,0,null,null,0,0,1,0,0,0,0]
[null,null,null,null,null,null,0,"-",null,0,null,null,null,0,0,null,0,null,null,0,0,1,0,0,0,0]
[null,null,null,null,null,null,0,"-",null,0,null,null,null,0,0,null,0,null,null,0,0,1,0,0,0,0]
[null,null,null,null,null,null,0,"-",null,0,null,null,null,0,0,null,0,null,null,0,0,1,0,0,0,0]
[null,null,null,null,null,null,0,"-",null,0,null,null,null,0,0,null,0,null,null,0,0,1,0,0,0,0]
[null,null,null,null,null,null,0,"-",null,0,null,null,null,0,0,null,0,null,null,0,0,1,0,0,0,0]
[null,null,null,null,null,null,0,"-",null,0,null,null,null,0,0,null,0,null,null,0,0,1,0,0,0,0]
[null,null,null,null,null,null,0,"-",null,0,null,null,null,0,0,null,0,null,null,0,0,1,0,0,0,0]
[null,null,null,null,null,null,0,"-",null,0,null,null,null,0,0,null,0,null,null,0,0,1,0,0,0,0]
[null,null,null,null,null,null,0,"-",null,{"$f":"I384*F384","v":0},null,null,null,0,0,null,0,null,null,0,0,1,0,0,0,0]
[null,null,null,null,null,null,0,"-",null,0,null,null,null,0,0,null,0,null,null,0,0,1,0,0,0,0]
[null,null,null,null,null,null,{"$f":"IF(AND(F386<>0,$D$31<>0),F386/$D$31,0)","v":0},"-",null,0,null,null,null,0,0,null,0,null,null,0,0,1,0,0,0,0]
[null,null,null,null,null,null,{"$f":"IF(AND(F387<>0,$D$31<>0),F387/$D$31,0)","v":0},"-",null,0,null,null,null,0,0,null,0,null,null,0,0,1,0,0,0,0]
[null,null,null,null,null,null,{"$f":"IF(AND(F388<>0,$D$31<>0),F388/$D$31,0)","v":0},"-",null,0,null,null,null,0,0,null,0,null,null,0,0,1,0,0,0,0]
[null,null,null,null,null,null,{"$f":"IF(AND(F389<>0,$D$31<>0),F389/$D$31,0)","v":0},"-",null,0,null,null,null,0,0,null,0,null,null,0,0,1,0,0,0,0]
[null,null,null,null,null,null,0,"-",null,0,null,null,null,0,0,null,0,null,null,0,0,1,0,0,0,0]
[null,null,null,null,null,null,0,"-",null,0,null,null,null,0,0,null,0,null,null,0,0,1,0,0,0,0]
[null,6,"Prefabricated Buildings and Building Units",null,"-",{"$f":"SUM(F393:F412)","v":0},{"$f":"IF(AND(F392<>0,$D$31<>0),F392/$D$31,0)","v":0},"-","-",{"$f":"SUM(J393:J412)","v":0},"-","-","-","-",{"$f":"SUM(O393:O412)","v":0},"-",{"$f":"SUM(Q393:Q412)","v":0},"-","-",{"$f":"IF(W392<>0,W392/($F$392+$O$392),0)","v":0},{"$f":"IF(Y392<>0,Y392/($F$392+$O$392),0)","v":0},1,{"$f":"SUM(W393:W412)","v":0},0,{"$f":"SUM(Y393:Y412)","v":0},0]
[null,6,"Prefabricated Buildings and Building Units",null,null,null,{"$f":"IF(AND(F393<>0,$D$31<>0),F393/$D$31,0)","v":0},"-",null,0,null,null,null,0,0,null,0,null,null,0,0,1,0,0,0,0]
[null,null,null,null,null,null,{"$f":"IF(AND(F394<>0,$D$31<>0),F394/$D$31,0)","v":0},"-",null,0,null,null,null,0,0,null,0,null,null,0,0,1,0,0,0,0]
[null,null,null,null,null,null,{"$f":"IF(AND(F395<>0,$D$31<>0),F395/$D$31,0)","v":0},"-",null,0,null,null,null,0,0,null,0,null,null,0,0,1,0,0,0,0]
[null,null,null,null,null,null,0,"-",null,0,null,null,null,0,0,null,0,null,null,0,0,1,0,0,0,0]
[null,null,null,null,null,null,0,"-",null,0,null,null,null,0,0,null,0,null,null,0,0,1,0,0,0,0]
[null,null,null,null,null,null,0,"-",null,0,null,null,null,0,0,null,0,null,null,0,0,1,0,0,0,0]
[null,null,null,null,null,null,0,"-",null,0,null,null,null,0,0,null,0,null,null,0,0,1,0,0,0,0]
[null,null,null,null,null,null,0,"-",null,0,null,null,null,0,0,null,0,null,null,0,0,1,0,0,0,0]
[null,null,null,null,null,null,0,"-",null,0,null,null,null,0,0,null,0,null,null,0,0,1,0,0,0,0]
[null,null,null,null,null,null,0,"-",null,0,null,null,null,0,0,null,0,null,null,0,0,1,0,0,0,0]
[null,null,null,null,null,null,0,"-",null,0,null,null,null,0,0,null,0,null,null,0,0,1,0,0,0,0]
[null,null,null,null,null,null,0,"-",null,0,null,null,null,0,0,null,0,null,null,0,0,1,0,0,0,0]
[null,null,null,null,null,null,0,"-",null,0,null,null,null,0,0,null,0,null,null,0,0,1,0,0,0,0]
[null,null,null,null,null,null,0,"-",null,0,null,null,null,0,0,null,0,null,null,0,0,1,0,0,0,0]
[null,null,null,null,null,null,{"$f":"IF(AND(F407<>0,$D$31<>0),F407/$D$31,0)","v":0},"-",null,0,null,null,null,0,0,null,0,null,null,0,0,1,0,0,0,0]
[null,null,null,null,null,null,{"$f":"IF(AND(F408<>0,$D$31<>0),F408/$D$31,0)","v":0},"-",null,0,null,null,null,0,0,null,0,null,null,0,0,1,0,0,0,0]
[null,null,null,null,null,null,{"$f":"IF(AND(F409<>0,$D$31<>0),F409/$D$31,0)","v":0},"-",null,0,null,null,null,0,0,null,0,null,null,0,0,1,0,0,0,0]
[null,null,null,null,null,null,{"$f":"IF(AND(F410<>0,$D$31<>0),F410/$D$31,0)","v":0},"-",null,0,null,null,null,0,0,null,0,null,null,0,0,1,0,0,0,0]
[null,null,null,null,null,null,0,"-",null,0,null,null,null,0,0,null,0,null,null,0,0,1,0,0,0,0]
[null,null,null,null,null,null,0,"-",null,0,null,null,null,0,0,null,0,null,null,0,0,1,0,0,0,0]
[null,7,"Work to Existing Building",null,"-",{"$f":"SUM(F414:F433)","v":0},{"$f":"IF(AND(F413<>0,$D$31<>0),F413/$D$31,0)","v":0},"-","-",{"$f":"SUM(J414:J433)","v":0},"-","-","-","-",{"$f":"SUM(O414:O433)","v":0},"-",{"$f":"SUM(Q414:Q433)","v":0},"-","-",{"$f":"IF(W413<>0,W413/($F$413+$O$413),0)","v":0},{"$f":"IF(Y413<>0,Y413/($F$413+$O$413),0)","v":0},{"$f":"1-T413-U413","v":1},{"$f":"SUM(W414:W433)","v":0},{"$f":"IF(AND(W413<>0,$D$31<>0),W413/$D$31,0)","v":0},{"$f":"SUM(Y414:Y433)","v":0},0]
[null,7,"Work to Existing Building",null,null,null,{"$f":"IF(AND(F414<>0,$D$31<>0),F414/$D$31,0)","v":0},"-",null,0,null,null,null,{"$f":"IF(M414<>0,INT(60/M414),0)","v":0},{"$f":"N414*I414","v":0},null,{"$f":"P414*M414","v":0},null,null,0,0,1,{"$f":"T414*(F414+O414)","v":0},0,{"$f":"U414*(F414+O414)","v":0},0]
[null,null,null,null,null,null,{"$f":"IF(AND(F415<>0,$D$31<>0),F415/$D$31,0)","v":0},"-",null,0,null,null,null,0,0,null,0,null,null,0,0,1,0,0,0,0]
[null,null,null,null,null,null,{"$f":"IF(AND(F416<>0,$D$31<>0),F416/$D$31,0)","v":0},"-",null,0,null,null,null,0,0,null,0,null,null,0,0,1,0,0,0,0]
[null,null,null,null,null,null,0,"-",null,0,null,null,null,0,0,null,0,null,null,0,0,1,0,0,0,0]
[null,null,null,null,null,null,0,"-",null,0,null,null,null,0,0,null,0,null,null,0,0,1,0,0,0,0]
[null,null,null,null,null,null,0,"-",null,0,null,null,null,0,0,null,0,null,null,0,0,1,0,0,0,0]
[null,null,null,null,null,null,0,"-",null,0,null,null,null,0,0,null,0,null,null,0,0,1,0,0,0,0]
[null,null,null,null,null,null,0,"-",null,0,null,null,null,0,0,null,0,null,null,0,0,1,0,0,0,0]
[null,null,null,null,null,null,0,"-",null,0,null,null,null,{"$f":"IF(M422<>0,INT(60/M422),0)","v":0},0,null,0,null,null,0,0,1,0,0,0,0]
[null,null,null,null,null,null,0,"-",null,0,null,null,null,0,0,null,0,null,null,0,0,1,0,0,0,0]
[null,null,null,null,null,null,0,"-",null,0,null,null,null,0,0,null,0,null,null,0,0,1,0,0,0,0]
[null,null,null,null,null,null,0,"-",null,0,null,null,null,0,0,null,0,null,null,0,0,1,0,0,0,0]
[null,null,null,null,null,null,0,"-",null,0,null,null,null,0,0,null,0,null,null,0,0,1,0,0,0,0]
[null,null,null,null,null,null,0,"-",null,0,null,null,null,0,0,null,0,null,null,0,0,1,0,0,0,0]
[null,null,null,null,null,null,{"$f":"IF(AND(F428<>0,$D$31<>0),F428/$D$31,0)","v":0},"-",null,0,null,null,null,0,0,null,0,null,null,0,0,1,0,0,0,0]
[null,null,null,null,null,null,{"$f":"IF(AND(F429<>0,$D$31<>0),F429/$D$31,0)","v":0},"-",null,0,null,null,null,0,0,null,0,null,null,0,0,1,0,0,0,0]
[null,null,null,null,null,null,{"$f":"IF(AND(F430<>0,$D$31<>0),F430/$D$31,0)","v":0},"-",null,0,null,null,null,0,0,null,0,null,null,0,0,1,0,0,0,0]
[null,null,null,null,null,null,{"$f":"IF(AND(F431<>0,$D$31<>0),F431/$D$31,0)","v":0},"-",null,0,null,null,null,0,0,null,0,null,null,0,0,1,0,0,0,0]
[null,null,null,null,null,null,0,"-",null,0,null,null,null,0,0,null,0,null,null,0,0,1,0,0,0,0]
[null,null,null,null,null,null,0,"-",null,0,null,null,null,0,0,null,0,null,null,0,0,1,0,0,0,0]
[null,8,"External works",null,"-",{"$f":"SUM(F435:F454)","v":7593662},{"$f":"IF(AND(F434<>0,$D$31<>0),F434/$D$31,0)","v":177.99008049053754},"-","-",{"$f":"SUM(J435:J454)","v":{"$error":"#VALUE!"}},"-","-","-","-",{"$f":"SUM(O435:O454)","v":{"$error":"#VALUE!"}},"-",{"$f":"SUM(Q435:Q454)","v":0},"-","-",{"$f":"IF(W434<>0,W434/($F$434+$O$434),0)","v":{"$error":"#VALUE!"}},{"$f":"IF(Y434<>0,Y434/($F$434+$O$434),0)","v":{"$error":"#VALUE!"}},{"$error":"#VALUE!"},{"$f":"SUM(W435:W454)","v":{"$error":"#VALUE!"}},{"$error":"#VALUE!"},{"$f":"SUM(Y435:Y454)","v":{"$error":"#VALUE!"}},{"$error":"#VALUE!"}]
[null,8,"External works",null,"Concrete block; aggregate",7593662,null,"-","Variable",{"$error":"#VALUE!"},{"$f":"F435*L435","v":1518732.4000000001},0.2,60,1,{"$error":"#VALUE!"},null,0,null,null,0,0,1,{"$error":"#VALUE!"},{"$error":"#VALUE!"},{"$error":"#VALUE!"},{"$error":"#VALUE!"}]
[null,null,null,null,null,null,{"$f":"IF(AND(F436<>0,$D$31<>0),F436/$D$31,0)","v":0},"-",null,0,null,null,null,0,0,null,0,null,null,0,0,1,0,0,0,0]
[null,null,null,null,null,null,{"$f":"IF(AND(F437<>0,$D$31<>0),F437/$D$31,0)","v":0},"-",null,0,null,null,null,0,0,null,0,null,null,0,0,1,0,0,0,0]
[null,null,null,null,null,null,{"$f":"IF(AND(F438<>0,$D$31<>0),F438/$D$31,0)","v":0},"-",null,0,null,null,null,0,0,null,0,null,null,0,0,1,0,0,0,0]
[null,null,null,null,null,null,0,"-",null,0,null,null,null,0,0,null,0,null,null,0,0,1,0,0,0,0]
[null,null,null,null,null,null,0,"-",null,0,null,null,null,0,0,null,0,null,null,0,0,1,0,0,0,0]
[null,null,null,null,null,null,0,"-",null,0,null,null,null,0,0,null,0,null,null,0,0,1,0,0,0,0]
[null,null,null,null,null,null,0,"-",null,0,null,null,null,0,0,null,0,null,null,0,0,1,0,0,0,0]
[null,null,null,null,null,null,0,"-",null,0,null,null,null,0,0,null,0,null,null,0,0,1,0,0,0,0]
[null,null,null,null,null,null,0,"-",null,0,null,null,null,0,0,null,0,null,null,0,0,1,0,0,0,0]
[null,null,null,null,null,null,0,"-",null,0,null,null,null,0,0,null,0,null,null,0,0,1,0,0,0,0]
[null,null,null,null,null,null,0,"-",null,0,null,null,null,0,0,null,0,null,null,0,0,1,0,0,0,0]
[null,null,null,null,null,null,0,"-",null,0,null,null,null,0,0,null,0,null,null,0,0,1,0,0,0,0]
[null,null,null,null,null,null,0,"-",null,{"$f":"I448*F448","v":0},null,null,null,0,0,null,0,null,null,0,0,1,0,0,0,0]
[null,null,null,null,null,null,0,"-",null,0,null,null,null,0,0,null,0,null,null,0,0,1,0,0,0,0]
[null,null,null,null,null,null,0,"-",null,0,null,null,null,0,0,null,0,null,null,0,0,1,0,0,0,0]
[null,null,null,null,null,null,0,"-",null,0,null,null,null,0,0,null,0,null,null,0,0,1,0,0,0,0]
[null,null,null,null,null,null,0,"-",null,0,null,null,null,0,0,null,0,null,null,0,0,1,0,0,0,0]
[null,null,null,null,null,null,0,"-",null,{"$f":"I453*F453","v":0},null,null,null,{"$f":"IF(M453<>0,INT(60/M453),0)","v":0},0,null,0,null,null,0,0,1,0,0,0,0]
[null,null,null,null,null,null,0,"-",null,{"$f":"I454*F454","v":0},null,null,null,{"$f":"IF(M454<>0,INT(60/M454),0)","v":0},{"$f":"N454*I454","v":0},null,{"$f":"P454*M454","v":0},null,null,0,0,1,{"$f":"T454*(F454+O454)","v":0},0,0,{"$f":"IF(AND(Y454<>0,$D$31<>0),Y454/$D$31,0)","v":0}]
[null,null,"Overall",null,null,{"$f":"SUM(F91,F107,F123,F139,F155,F176,F197,F218,F239,F255,F276,F292,F313,F329,F350,F371,F392,F413,F434)","v":151421452},3549.2120177951124,null,null,{"$f":"SUM(J91,J107,J123,J139,J155,J176,J197,J218,J239,J255,J276,J292,J313,J329,J350,J371,J392,J413,J434)","v":{"$error":"#VALUE!"}},null,null,null,null,{"$f":"SUM(O91,O107,O123,O139,O155,O176,O197,O218,O239,O255,O276,O292,O313,O329,O350,O371,O392,O413,O434)","v":{"$error":"#VALUE!"}},null,{"$f":"SUM(Q91:Q454)","v":0},null,null,{"$f":"IF(AND($F$455<>0,$O$455<>0),SUM(W91,W107,W123,W139,W155,W176,W197,W218,W239,W255,W276,W292,W313,W329,W350,W371,W392,W413,W434)/($F$455+$O$455),0)","v":{"$error":"#VALUE!"}},{"$f":"IF(AND($F$455<>0,$O$455<>0),SUM(Y91,Y107,Y123,Y139,Y155,Y176,Y197,Y218,Y239,Y255,Y276,Y292,Y313,Y329,Y350,Y371,Y392,Y413,Y434)/($F$455+$O$455),0)","v":{"$error":"#VALUE!"}},{"$f":"1-T455-U455","v":{"$error":"#VALUE!"}},{"$f":"SUM(W91:W454)","v":{"$error":"#VALUE!"}},{"$f":"SUM(X91:X454)","v":{"$error":"#VALUE!"}},{"$f":"SUM(Y91:Y454)","v":{"$error":"#VALUE!"}},{"$f":"SUM(Z91:Z454)","v":{"$error":"#VALUE!"}}]
[]
[]
[]
[]
[null,"Recycling and Waste Reporting table"]
[null,"The light green-coloured cells should be completed to achieve 'pioneering' status."]
[null,null,null,null,"TOTAL ESTIMATES OF WASTE",null,null,"WASTE MANAGEMENT ROUTES",null,null,null,null,null,"SUMMARY"]
[null,null,null,null,"Overall Waste \n(tonnes)","Overall Waste\n(tonnes/m2 GIA)","Performance Indicator (LPG Appendix 1)","REUSE ",null,"RECYCLE",null,"OTHER DISPOSAL",null,"Total Reuse (%)","Total Recycle (%)","Total Reuse and Recycle (%)","Total Waste Reported (%)"]
[null,null,"Type of Waste","Source of Information",null,null,null,"Reuse Onsite (%)","Reuse Offsite (%)","Recycle Onsite(%)","Recycle Offsite (%)","To Landfill (%)","To Other Management (%)"]
[null,null,null,null,"PRODUCT AND CONSTRUCTION STAGE (MODULE A)"]
[null,1,"Demolition Waste","Demolition Audit",18728.88,{"$f":"IF($D$31>0,IF(E466>0,E466/$D$31,0),0)","v":0.43899173530473429},{"$f":"F466","v":0.43899173530473429},null,0.05,null,0.93,0.02,null,{"$f":"SUM(H466:I466)","v":0.05},{"$f":"SUM(J466:K466)","v":0.93},{"$f":"SUM(N466:O466)","v":0.98000000000000009},{"$f":"SUM(H466:M466)","v":1}]
[null,2.1,"Excavation Waste","Excavation Calculations",{"$f":"49248*1.3","v":64022.400000000001},{"$f":"IF($D$31>0,IF(E467>0,E467/$D$31,0),0)","v":1.5006398927417881},{"$f":"F467","v":1.5006398927417881},null,0.95,null,null,0.05,null,{"$f":"SUM(H467:I467)","v":0.95},{"$f":"SUM(J467:K467)","v":0},{"$f":"SUM(N467:O467)","v":0.95},{"$f":"SUM(H467:M467)","v":1}]
[null,2.8,"Construction Waste","BREEAM Benchmark",2773.1210000000001,{"$f":"IF($D$31>0,IF(E468>0,E468/$D$31,0),0)","v":6.5000000000000002E-2},{"$f":"F468","v":6.5000000000000002E-2},null,null,null,0.95,0.05,null,{"$f":"SUM(H468:I468)","v":0},{"$f":"SUM(J468:K468)","v":0.95},{"$f":"SUM(N468:O468)","v":0.95},{"$f":"SUM(H468:M468)","v":1}]
[null,null,null,null,"USE STAGE (MODULE B)"]
[null,3,"Demolition / Strip-out Waste",null,{"$f":"IF(ISNUMBER(S109),S109/1000,0)","v":0},{"$f":"IF($D$31>0,IF(E470>0,E470/$D$31,0),0)","v":0},"-",null,null,null,null,null,null,{"$f":"SUM(H470:I470)","v":0},{"$f":"SUM(J470:K470)","v":0},{"$f":"SUM(N470:O470)","v":0},{"$f":"SUM(H470:M470)","v":0}]
[null,4,"Construction Waste",null,{"$f":"IF(ISNUMBER(U109),U109/1000,0)","v":0},{"$f":"IF($D$31>0,IF(E471>0,E471/$D$31,0),0)","v":0},"-",null,null,null,null,null,null,{"$f":"SUM(H471:I471)","v":0},{"$f":"SUM(J471:K471)","v":0},{"$f":"SUM(N471:O471)","v":0},{"$f":"SUM(H471:M471)","v":0}]
[null,null,null,null,"Overall Waste (tonnes/annum)","Overall Waste (tonnes/annum\n/m2)","Performance Indicator (LPG Appendix 1)","Reuse Onsite (%)","Reuse Offsite (%)","Recycle Offsite(%)","Recycle Offsite (%)","To Landfill (%)","To Other Management (%)","Total Reuse (%)","Total Recycle (%)","Total Reuse and Recycle (%)","Total Waste Reported (%)"]
[null,5,"Municipal Waste","DEFRA",498,{"$f":"IF($D$31>0,IF(E473>0,E473/$D$31,0),0)","v":1.1672768696353314E-2},{"$f":"F473","v":1.1672768696353314E-2},null,null,null,0.65,0.35,null,{"$f":"SUM(H473:I473)","v":0},{"$f":"SUM(J473:K473)","v":0.65},{"$f":"SUM(N473:O473)","v":0.65},{"$f":"SUM(H473:M473)","v":1}]
[null,6,"Industrial Waste (if applicable)",null,null,"-","-",null,null,null,null,null,null,{"$f":"SUM(H474:I474)","v":0},{"$f":"SUM(J474:K474)","v":0},{"$f":"SUM(N474:O474)","v":0},{"$f":"SUM(H474:M474)","v":0}]
[null,null,null,null,"MODULE A - MODULE C"]
[null,null,null,null,"Overall Materials \n(tonnes)","Overall Materials (Modules A-C) (tonnes\n/m2)","-","Reuse Onsite (%)","Reuse Offsite (%)","Recycle Offsite(%)","Recycle Offsite (%)","To Landfill (%)","To Other Management (%)","Total Reuse (%)","Total Recycle (%)","Total Reuse and Recycle (%)","Total Waste Reported (%)"]
[null,7,"Total Materials",null,{"$f":"IF(AND(ISNUMBER(F109),ISNUMBER(J109),ISNUMBER(S109),ISNUMBER(U109)),((U109+S109+F109+J109)/1000),0)","v":0},{"$f":"IF($D$31>0,IF(E477>0,E477/$D$31,0),0)","v":0},"-",null,null,null,null,null,null,{"$f":"SUM(H477:I477)","v":0},{"$f":"SUM(J477:K477)","v":0},{"$f":"SUM(N477:O477)","v":0},{"$f":"SUM(H477:M477)","v":0}]
[]
[]
[null,"Circular Economy Targets"]
[null,"Circular economy targets for existing and new development",null,"Policy Requirement","Target Aiming For (%)","Policy Met?","Explanation (How will performance against this metric be secured through design, implementation and monitoring?)"]
[null,"Demolition waste materials (non-hazardous)",null,"Minimum of 95% diverted from landfill for reuse, recycling or recovery.",0.98,{"$f":"IF(ISNUMBER(E482),IF(E482>100%,\"Input not valid\",IF(E482=95%,\"Yes\",IF(100%>=E482>95%,\"Exceeds Policy\",\"No\"))),\"\")","v":"Exceeds Policy"},"Refer to Detailed Circular Economy Statement (Energist UK), section 4 'circular economy narrative' for full details. In summary:\n\nRubble from the demolition to be used as a piling matt. Material acceptable provided it is sorted and graded prior to use. Use of recycled aggregate from demolition works for on-site applications can be explored for build ups under private roads or footpaths\nOpportunities for site claimed timber from tree felling to be explored for use in low balancing/play trails and for sculpture/art interventions\n\nBricks from the demolition of the western boundary brick wall and the existing Maker Labs shall be reclaimed and re-used elsewhere on site."]
[null,"Excavation waste materials",null,"Minimum of 95% diverted from landfill for beneficial reuse.",0.95,{"$f":"IF(ISNUMBER(E483),IF(E483>100%,\"Input not valid\",IF(E483=95%,\"Yes\",IF(100%>=E483>95%,\"Exceeds Policy\",\"No\"))),\"\")","v":"Yes"},"Refer to Detailed Circular Economy Statement (Energist UK), section 4 'circular economy narrative' for full details. In summary:\n\nOpportunities to use excavation waste on site will be reviewed. Cut and fill exercise to be carried out with excavated material used as fill where possible\n\nRe-use of topsoil and subsoil to be explored within soft landscape build ups. All are subject to testing for appropriateness and subject to potential remediation"]
[null,"Construction waste materials",null,"Minimum of 95% diverted from landfill for reuse, recycling or recovery.",0.95,"Yes","Refer to Detailed Circular Economy Statement (Energist UK), section 4 'circular economy narrative' for full details. In summary:\n\nA Predicted Site Waste Management Plan shall be produced to minimise waste generation and to monitor waste arising. Waste will be segregated on site to maximise opportunities for re-use and recycling\n\nMaterial quantities to be well planned to minimise over ordering. Offcuts will be kept separate from other waste streams to be made available for reuse on or off-site, and materials only to be delivered to site when needed, to prevent damage\n\nLocal waste processors will be identified that send minimum quantities of material to landfill."]
[null,"Municipal waste",null,"Minimum 65% recycling rate by 2030.",0.65,{"$f":"IF(ISNUMBER(E485),IF(E485>100%,\"Input not valid\",IF(E485=65%,\"Yes\",IF(100%>=E485>65%,\"Exceeds Policy\",\"No\"))),\"\")","v":"Yes"},"Refer to Detailed Circular Economy Statement (Energist UK), section 4 'circular economy narrative' for full details. In summary:\n\nThe Applicant shall provide refuse and waste storage in accordance with the London Borough of Richmond upon Thames requirements. Easily accessible communal waste storage shall be provided, with each residential core having its own waste and recycling stores on the ground floor. Waste storage shall be segregated by waste streams to maximise recycling rates. Bin stores shall be provided for houses to neatly accommodate all Local Authority recycling and waste containers to encourage recycling rates. \n\nThe Applicant is committed to delivering a management framework, which shall be developed for waste management, energy monitoring, and water monitoring for the site in operation. This shall help deliver the 65% recycling of municipal waste by 2030 target."]
[null,"Recycled content",null,"Minimum 20% of the building material elements to be comprised of recycled or reused content.",0.2,{"$f":"IF(ISNUMBER(E486),IF(E486>100%,\"Input not valid\",IF(E486=20%,\"Yes\",IF(100%>=E486>20%,\"Exceeds Policy\",\"No\"))),\"\")","v":"Yes"},"Refer to Detailed Circular Economy Statement (Energist UK), section 4 'circular economy narrative' for full details. In summary:\n\nDevelopment of specification to incorporate clauses relating to minimum recycled or reused content. In-line with Policy SI 7 this will aim to better the 20% minimum target for major building elements.\n\nMaterial efficiency workshops to be scheduled during key stages to review commitments and ensure targets are being implemented."]
[null,"Additional requirements",null,"Policy Requirement","Please acknowledge acceptance for a planning condition",null,"Please set out an indicative timescale and responsible party for the provision of this information"]
[null,"Post-Construction Report",null,"A CE Statement is required at post-construction (i.e. upon commencement of RIBA Stage 6 and prior to the building being handed over, if applicable. Generally, it would be expected that the assessment would be received no more than three months post-construction)","It is accepted that the Post Construction Reporting will be conditioned"]

{"sheet":"Post-Construction Stage","index":4,"n_rows":458,"n_cols":26,"rows_kept":458,"cut":false,"hidden":false,"merged":[[408,13,408,16],[53,2,53,3],[431,7,431,9],[432,7,432,9],[0,0,1,6],[3,0,3,5],[4,0,4,2],[4,4,4,5],[5,2,5,3],[408,4,408,6],[408,7,408,12],[409,4,410,4],[409,5,410,5],[409,6,410,6],[409,7,409,8],[409,9,409,10],[409,11,409,12],[428,7,428,9],[429,7,429,9],[430,7,430,9],[35,2,35,3],[36,2,36,3],[37,2,37,3],[35,4,35,11],[470,3,470,4],[471,3,471,4],[461,3,461,4],[462,3,462,4],[463,3,463,4],[464,3,464,4],[465,3,465,4],[466,3,466,4],[469,1,469,2],[470,1,470,2],[471,1,471,2],[463,1,463,2],[464,1,464,2],[465,1,465,2],[466,1,466,2],[467,1,467,2],[468,1,468,2],[461,1,461,2],[462,1,462,2],[467,3,467,4],[468,3,468,4],[469,3,469,4],[455,1,455,4],[456,1,456,2],[456,3,456,4],[457,3,457,4],[458,3,458,4],[459,3,459,4],[460,3,460,4],[457,1,457,2],[458,1,458,2],[459,1,459,2],[460,1,460,2],[451,1,451,2],[452,1,452,2],[438,3,438,4],[439,3,439,4],[440,3,440,4],[441,3,441,4],[442,3,442,4],[442,1,442,2],[443,1,443,2],[444,1,444,2],[445,1,445,2],[446,1,446,2],[447,1,447,2],[438,1,438,2],[439,1,439,2],[440,1,440,2],[441,1,441,2],[446,3,446,4],[447,3,447,4],[448,3,448,4],[448,1,448,2],[451,5,451,6],[452,5,452,6],[437,3,437,4],[437,5,437,6],[444,5,444,6],[445,5,445,6],[446,5,446,6],[447,5,447,6],[448,5,448,6],[449,3,449,4],[450,3,450,4],[451,3,451,4],[452,3,452,4],[438,5,438,6],[439,5,439,6],[440,5,440,6],[441,5,441,6],[442,5,442,6],[443,5,443,6],[443,3,443,4],[444,3,444,4],[445,3,445,4],[35,12,35,16],[35,17,35,21],[35,22,35,25],[449,5,449,6],[450,5,450,6],[449,1,449,2],[450,1,450,2],[437,1,437,2],[436,1,436,6],[431,1,431,2],[432,1,432,2],[428,1,428,2],[429,1,429,2],[430,1,430,2],[409,13,410,13],[409,14,410,14],[409,15,410,15],[409,16,410,16],[427,1,427,2],[427,7,427,9],[38,1,52,1],[38,2,52,3],[54,1,68,1],[54,2,68,3],[69,2,69,3],[70,1,84,1],[70,2,84,3],[85,2,85,3],[86,1,100,1],[86,2,100,3],[101,2,101,3],[102,1,121,1],[102,2,121,3],[122,2,122,3],[123,1,142,1],[123,2,142,3],[143,2,143,3],[144,1,163,1],[144,2,163,3],[164,2,164,3],[165,1,184,1],[165,2,184,3],[185,2,185,3],[186,1,200,1],[186,2,200,3],[201,2,201,3],[202,1,221,1],[202,2,221,3],[222,2,222,3],[223,1,237,1],[223,2,237,3],[238,2,238,3],[239,1,258,1],[239,2,258,3],[259,2,259,3],[260,1,274,1],[260,2,274,3],[275,2,275,3],[276,1,295,1],[276,2,295,3],[359,2,359,3],[360,1,379,1],[360,2,379,3],[380,2,380,3],[381,1,400,1],[381,2,400,3],[296,2,296,3],[297,1,316,1],[297,2,316,3],[317,2,317,3],[318,1,337,1],[318,2,337,3],[338,2,338,3],[339,1,358,1],[339,2,358,3]]}
[]
[]
[]
["Post-Construction Stage - Circular Economy Statement"]
[]
[null,null,"Project details"]
[null,null,"Project name"]
[null,null,"Planning application reference number (if applicable)"]
[null,null,"Applicant"]
[null,null,"London Borough"]
[null,null,"Brief description of the project"]
[null,null,"Author/s"]
[null,null,"Date of assessment"]
[null,null,"Number of Use Types"]
[null,null,"Use Class / Type","Floor Area by use type (m2)"]
[null,null,"Use Class / Type 1","Use Class / Type 1 GIA"]
[null,null,"Use Class / Type 2","Use Class / Type 2 GIA"]
[null,null,"Use Class / Type 3","Use Class / Type 3 GIA"]
[null,null,"Use Class / Type 4","Use Class / Type 4 GIA"]
[null,null,"Use Class / Type 5","Use Class / Type 5 GIA"]
[null,null,"Use Class / Type 6","Use Class / Type 6 GIA"]
[null,null,"Use Class / Type 7","Use Class / Type 7 GIA"]
[null,null,"Use Class / Type 8","Use Class / Type 8 GIA"]
[null,null,"Use Class / Type 9","Use Class / Type 9 GIA"]
[null,null,"Use Class / Type 10","Use Class / Type 10 GIA"]
[null,null,"Use Class / Type 11","Use Class / Type 11 GIA"]
[null,null,"Use Class / Type 12","Use Class / Type 12 GIA"]
[null,null,"Use Class / Type 13","Use Class / Type 13 GIA"]
[null,null,"Use Class / Type 14","Use Class / Type 14 GIA"]
[null,null,"Use Class / Type 15","Use Class / Type 15 GIA"]
[null,null,"Overall GIA (m2)",{"$f":"SUM(D16:D30)","v":0}]
[]
[]
[null,"Bill of Materials"]
[null,"Please click the + symbol to the left hand side of the Bill of Materials table to view or hide the input rows for each Building Element Category. The rows for substructure and frame have been unhidden to highlight this."]
[null,null,"BUILDING ELEMENT CATEGORY -  LEVEL 1 (based on the RICS New Rules of\nMeasurement (NRM) classification system level 2 sub-elements https://www.rics.org/globalassets/rics-website/media/products/data-products/bcis-construction/bcis-elemental-standard-form-cost-analysis-4th-nrm-edition-2012.pdf)",null,"PRODUCT AND CONSTRUCTION STAGE (MODULE A)",null,null,null,null,null,null,null,"USE STAGE (MODULE B)",null,null,null,null,"END OF LIFE STAGE (MODULE C)",null,null,null,null,"BENEFITS BEYOND THE SYSTEM BOUNDARY (MODULE D)"]
[null,null,"Building Element Category",null,"Material Type","Material quantity\n(Module A)\n(kg)","Material intensity \n(Module A) \n(kg/m2 GIA)","Performance Indicator (Planning Stage Estimate)","Construction Waste Factor \n(Module A)","Construction Waste \n(Module A)\n(kg)","Recycled Content \nby mass (kg)","Recycled Content \nby value (%)","Expected Lifespan\n(years)","Number of Replacements (over assumed 60-year period)","Repair and Replacement quantities of materials\n(Module B)\n (kg)","Construction Waste Factor \n(Module B)","Construction Waste \n(Module B)\n(kg)","Design for Disassembly","Assumed End of Life Scenario\n(Description)","% Reusing ","% Recycling","% Landfill","Estimated reusable materials (kg)","Estimated reusable materials intensity\n(kg/m2 GIA)","Estimated recyclable materials (kg)","Estimated recyclable materials intensity\n(kg/m2 GIA)"]
[null,0.1,"Demolition: Toxic/Hazardous/Contaminated Material Treatment",null,"-",{"$f":"SUM(F39:F53)","v":0},{"$f":"IF(AND(F38<>0,$D$31<>0),F38/$D$31,0)","v":0},"-","-",{"$f":"SUM(J39:J53)","v":0},"-","-","-","-",{"$f":"SUM(O39:O53)","v":0},"-",{"$f":"SUM(Q39:Q53)","v":0},"-","-",{"$f":"IF(W38<>0,W38/($F$91+$O$91),0)","v":0},{"$f":"IF(Y38<>0,Y38/($F$91+$O$91),0)","v":0},{"$f":"1-T38-U38","v":1},{"$f":"SUM(W39:W53)","v":0},{"$f":"IF(AND(W38<>0,$D$31<>0),W38/$D$31,0)","v":0},{"$f":"SUM(Y39:Y53)","v":0},{"$f":"IF(AND(Y38<>0,$D$31<>0),Y38/$D$31,0)","v":0}]
[null,0.1,"Demolition: Toxic/Hazardous/Contaminated Material Treatment",null,null,null,{"$f":"IF(AND(F39<>0,$D$31<>0),F39/$D$31,0)","v":0},"-",null,{"$f":"F39*I39","v":0},null,null,null,{"$f":"IF(M39<>0,INT(60/M39),0)","v":0},{"$f":"N39*I39","v":0},null,{"$f":"P39*M39","v":0},null,null,0,0,{"$f":"1-T39-U39","v":1},{"$f":"T39*(F39+O39)","v":0},{"$f":"IF(AND(W39<>0,$D$31<>0),W39/$D$31,0)","v":0},{"$f":"U39*(F39+O39)","v":0},{"$f":"IF(AND(Y39<>0,$D$31<>0),Y39/$D$31,0)","v":0}]
[null,null,null,null,null,null,{"$f":"IF(AND(F40<>0,$D$31<>0),F40/$D$31,0)","v":0},"-",null,{"$f":"F40*I40","v":0},null,null,null,{"$f":"IF(M40<>0,INT(60/M40),0)","v":0},{"$f":"N40*I40","v":0},null,{"$f":"P40*M40","v":0},null,null,0,0,{"$f":"1-T40-U40","v":1},{"$f":"T40*(F40+O40)","v":0},{"$f":"IF(AND(W40<>0,$D$31<>0),W40/$D$31,0)","v":0},{"$f":"U40*(F40+O40)","v":0},0]
[null,null,null,null,null,null,0,"-",null,0,null,null,null,0,0,null,0,null,null,0,0,1,0,0,0,0]
[null,null,null,null,null,null,0,"-",null,0,null,null,null,0,0,null,0,null,null,0,0,1,0,0,0,0]
[null,null,null,null,null,null,0,"-",null,0,null,null,null,0,0,null,0,null,null,0,0,1,0,0,0,0]
[null,null,null,null,null,null,0,"-",null,0,null,null,null,0,0,null,0,null,null,0,0,1,0,0,0,0]
[null,null,null,null,null,null,0,"-",null,0,null,null,null,0,0,null,0,null,null,0,0,1,0,0,0,0]
[null,null,null,null,null,null,0,"-",null,0,null,null,null,0,0,null,0,null,null,0,0,1,0,0,0,0]
[null,null,null,null,null,null,0,"-",null,0,null,null,null,0,0,null,0,null,null,0,0,1,0,0,0,0]
[null,null,null,null,null,null,0,"-",null,0,null,null,null,0,0,null,0,null,null,0,0,1,0,0,0,0]
[null,null,null,null,null,null,0,"-",null,0,null,null,null,0,0,null,0,null,null,0,0,1,0,0,0,0]
[null,null,null,null,null,null,0,"-",null,0,null,null,null,0,0,null,0,null,null,0,0,1,0,0,0,0]
[null,null,null,null,null,null,0,"-",null,0,null,null,null,0,0,null,0,null,null,0,0,1,0,0,0,0]
[null,null,null,null,null,null,0,"-",null,0,null,null,null,0,0,null,0,null,null,0,0,1,0,0,0,0]
[null,null,null,null,null,null,0,"-",null,0,null,null,null,0,0,null,0,null,null,0,0,1,0,0,0,0]
[null,0.2,"Major Demolition Works",null,"-",{"$f":"SUM(F55:F69)","v":0},{"$f":"IF(AND(F54<>0,$D$31<>0),F54/$D$31,0)","v":0},"-","-",{"$f":"SUM(J55:J69)","v":0},"-","-","-","-",{"$f":"SUM(O55:O69)","v":0},"-",{"$f":"SUM(Q55:Q69)","v":0},"-","-",{"$f":"IF(W54<>0,W54/($F$107+$O$107),0)","v":0},{"$f":"IF(Y54<>0,Y54/($F$107+$O$107),0)","v":0},{"$f":"1-T54-U54","v":1},{"$f":"SUM(W55:W69)","v":0},0,{"$f":"SUM(Y55:Y69)","v":0},0]
[null,0.2,"Major Demolition Works",null,null,null,{"$f":"IF(AND(F55<>0,$D$31<>0),F55/$D$31,0)","v":0},"-",null,{"$f":"I55*F55","v":0},null,null,null,0,0,null,0,null,null,0,0,1,0,0,0,0]
[null,null,null,null,null,null,{"$f":"IF(AND(F56<>0,$D$31<>0),F56/$D$31,0)","v":0},"-",null,0,null,null,null,0,0,null,0,null,null,0,0,1,0,0,0,0]
[null,null,null,null,null,null,{"$f":"IF(AND(F57<>0,$D$31<>0),F57/$D$31,0)","v":0},"-",null,0,null,null,null,0,0,null,0,null,null,0,0,1,0,0,0,0]
[null,null,null,null,null,null,0,"-",null,0,null,null,null,0,0,null,0,null,null,0,0,1,0,0,0,0]
[null,null,null,null,null,null,0,"-",null,0,null,null,null,0,0,null,0,null,null,0,0,1,0,0,0,0]
[null,null,null,null,null,null,0,"-",null,0,null,null,null,0,0,null,0,null,null,0,0,1,0,0,0,0]
[null,null,null,null,null,null,0,"-",null,0,null,null,null,0,0,null,0,null,null,0,0,1,0,0,0,0]
[null,null,null,null,null,null,0,"-",null,0,null,null,null,0,0,null,0,null,null,0,0,1,0,0,0,0]
[null,null,null,null,null,null,0,"-",null,0,null,null,null,0,0,null,0,null,null,0,0,1,0,0,0,0]
[null,null,null,null,null,null,0,"-",null,0,null,null,null,0,0,null,0,null,null,0,0,1,0,0,0,0]
[null,null,null,null,null,null,0,"-",null,0,null,null,null,0,0,null,0,null,null,0,0,1,0,0,0,0]
[null,null,null,null,null,null,0,"-",null,0,null,null,null,0,0,null,0,null,null,0,0,1,0,0,0,0]
[null,null,null,null,null,null,0,"-",null,0,null,null,null,0,0,null,0,null,null,0,0,1,0,0,0,0]
[null,null,null,null,null,null,0,"-",null,0,null,null,null,0,0,null,0,null,null,0,0,1,0,0,0,0]
[null,null,null,null,null,null,0,"-",null,0,null,null,null,0,0,null,0,null,null,0,0,1,0,0,0,0]
[null,0.3,"Temporary Support to Adjacent Structures",null,"-",{"$f":"SUM(F71:F85)","v":0},{"$f":"IF(AND(F70<>0,$D$31<>0),F70/$D$31,0)","v":0},"-","-",{"$f":"SUM(J71:J85)","v":0},"-","-","-","-",{"$f":"SUM(O71:O85)","v":0},"-",{"$f":"SUM(Q71:Q85)","v":0},"-","-",{"$f":"IF(W70<>0,W70/($F$123+$O$123),0)","v":0},{"$f":"IF(Y70<>0,Y70/($F$123+$O$123),0)","v":0},1,{"$f":"SUM(W71:W85)","v":0},0,{"$f":"SUM(Y71:Y85)","v":0},0]
[null,0.3,"Temporary Support to Adjacent Structures",null,null,null,{"$f":"IF(AND(F71<>0,$D$31<>0),F71/$D$31,0)","v":0},"-",null,{"$f":"I71*F71","v":0},null,null,null,0,0,null,0,null,null,0,0,1,0,0,0,0]
[null,null,null,null,null,null,{"$f":"IF(AND(F72<>0,$D$31<>0),F72/$D$31,0)","v":0},"-",null,0,null,null,null,0,0,null,0,null,null,0,0,1,0,0,0,0]
[null,null,null,null,null,null,{"$f":"IF(AND(F73<>0,$D$31<>0),F73/$D$31,0)","v":0},"-",null,0,null,null,null,0,0,null,0,null,null,0,0,1,0,0,0,0]
[null,null,null,null,null,null,0,"-",null,0,null,null,null,0,0,null,0,null,null,0,0,1,0,0,0,0]
[null,null,null,null,null,null,0,"-",null,0,null,null,null,0,0,null,0,null,null,0,0,1,0,0,0,0]
[null,null,null,null,null,null,0,"-",null,0,null,null,null,0,0,null,0,null,null,0,0,1,0,0,0,0]
[null,null,null,null,null,null,0,"-",null,0,null,null,null,0,0,null,0,null,null,0,0,1,0,0,0,0]
[null,null,null,null,null,null,0,"-",null,0,null,null,null,0,0,null,0,null,null,0,0,1,0,0,0,0]
[null,null,null,null,null,null,0,"-",null,0,null,null,null,0,0,null,0,null,null,0,0,1,0,0,0,0]
[null,null,null,null,null,null,0,"-",null,0,null,null,null,0,0,null,0,null,null,0,0,1,0,0,0,0]
[null,null,null,null,null,null,0,"-",null,0,null,null,null,0,0,null,0,null,null,0,0,1,0,0,0,0]
[null,null,null,null,null,null,0,"-",null,0,null,null,null,0,0,null,0,null,null,0,0,1,0,0,0,0]
[null,null,null,null,null,null,0,"-",null,0,null,null,null,0,0,null,0,null,null,0,0,1,0,0,0,0]
[null,null,null,null,null,null,0,"-",null,0,null,null,null,0,0,null,0,null,null,0,0,1,0,0,0,0]
[null,null,null,null,null,null,0,"-",null,0,null,null,null,0,0,null,0,null,null,0,0,1,0,0,0,0]
[null,0.4,"Specialist Ground Works",null,"-",{"$f":"SUM(F87:F101)","v":0},{"$f":"IF(AND(F86<>0,$D$31<>0),F86/$D$31,0)","v":0},"-","-",{"$f":"SUM(J87:J101)","v":0},"-","-","-","-",{"$f":"SUM(O87:O101)","v":0},"-",{"$f":"SUM(Q87:Q101)","v":0},"-","-",{"$f":"IF(W86<>0,W86/($F$139+$O$139),0)","v":0},{"$f":"IF(Y86<>0,Y86/($F$139+$O$139),0)","v":0},1,{"$f":"SUM(W87:W101)","v":0},0,{"$f":"SUM(Y87:Y101)","v":0},0]
[null,0.4,"Specialist Ground Works",null,null,null,{"$f":"IF(AND(F87<>0,$D$31<>0),F87/$D$31,0)","v":0},"-",null,{"$f":"I87*F87","v":0},null,null,null,0,0,null,0,null,null,0,0,1,0,0,0,0]
[null,null,null,null,null,null,{"$f":"IF(AND(F88<>0,$D$31<>0),F88/$D$31,0)","v":0},"-",null,0,null,null,null,0,0,null,0,null,null,0,0,1,0,0,0,0]
[null,null,null,null,null,null,{"$f":"IF(AND(F89<>0,$D$31<>0),F89/$D$31,0)","v":0},"-",null,0,null,null,null,0,0,null,0,null,null,0,0,1,0,0,0,0]
[null,null,null,null,null,null,0,"-",null,0,null,null,null,0,0,null,0,null,null,0,0,1,0,0,0,0]
[null,null,null,null,null,null,0,"-",null,0,null,null,null,0,0,null,0,null,null,0,0,1,0,0,0,0]
[null,null,null,null,null,null,0,"-",null,0,null,null,null,0,0,null,0,null,null,0,0,1,0,0,0,0]
[null,null,null,null,null,null,0,"-",null,0,null,null,null,0,0,null,0,null,null,0,0,1,0,0,0,0]
[null,null,null,null,null,null,0,"-",null,0,null,null,null,0,0,null,0,null,null,0,0,1,0,0,0,0]
[null,null,null,null,null,null,0,"-",null,0,null,null,null,0,0,null,0,null,null,0,0,1,0,0,0,0]
[null,null,null,null,null,null,0,"-",null,0,null,null,null,0,0,null,0,null,null,0,0,1,0,0,0,0]
[null,null,null,null,null,null,0,"-",null,0,null,null,null,0,0,null,0,null,null,0,0,1,0,0,0,0]
[null,null,null,null,null,null,0,"-",null,0,null,null,null,0,0,null,0,null,null,0,0,1,0,0,0,0]
[null,null,null,null,null,null,0,"-",null,0,null,null,null,0,0,null,0,null,null,0,0,1,0,0,0,0]
[null,null,null,null,null,null,0,"-",null,0,null,null,null,0,0,null,0,null,null,0,0,1,0,0,0,0]
[null,null,null,null,null,null,0,"-",null,0,null,null,null,0,0,null,0,null,null,0,0,1,0,0,0,0]
[null,1,"Substructure",null,"-",{"$f":"SUM(F103:F122)","v":0},{"$f":"IF(AND(F102<>0,$D$31<>0),F102/$D$31,0)","v":0},{"$f":"IF(AND('Detailed Application Stage'!G155<>0,'Post-Construction Stage'!G102<>0),IF('Detailed Application Stage'!G155='Post-Construction Stage'!G102,\"Equal to planning stage estimate\",IF('Detailed Application Stage'!G155<'Post-Construction Stage'!G102,\"Greater than planning stage estimate\",\"Less than planning stage estimate\")),\"\")","v":""},"-",{"$f":"SUM(J103:J122)","v":0},"-","-","-","-",{"$f":"SUM(O103:O122)","v":0},"-",{"$f":"SUM(Q103:Q122)","v":0},"-","-",{"$f":"IF(W102<>0,W102/($F$155+$O$155),0)","v":0},{"$f":"IF(Y102<>0,Y102/($F$155+$O$155),0)","v":0},1,{"$f":"SUM(W103:W122)","v":0},0,{"$f":"SUM(Y103:Y122)","v":0},0]
[null,1,"Substructure",null,null,null,{"$f":"IF(AND(F103<>0,$D$31<>0),F103/$D$31,0)","v":0},"-",null,{"$f":"I103*F103","v":0},null,null,null,0,0,null,0,null,null,0,0,1,0,0,0,0]
[null,null,null,null,null,null,{"$f":"IF(AND(F104<>0,$D$31<>0),F104/$D$31,0)","v":0},"-",null,0,null,null,null,{"$f":"IF(M104<>0,INT(60/M104),0)","v":0},{"$f":"N104*I104","v":0},null,{"$f":"P104*M104","v":0},null,null,0,0,{"$f":"1-T104-U104","v":1},{"$f":"T104*(F104+O104)","v":0},{"$f":"IF(AND(W104<>0,$D$31<>0),W104/$D$31,0)","v":0},{"$f":"U104*(F104+O104)","v":0},0]
[null,null,null,null,null,null,{"$f":"IF(AND(F105<>0,$D$31<>0),F105/$D$31,0)","v":0},"-",null,0,null,null,null,0,0,null,0,null,null,0,0,1,0,0,0,0]
[null,null,null,null,null,null,0,"-",null,0,null,null,null,0,0,null,0,null,null,0,0,1,0,0,0,0]
[null,null,null,null,null,null,0,"-",null,0,null,null,null,0,0,null,0,null,null,0,0,1,0,0,0,0]
[null,null,null,null,null,null,0,"-",null,0,null,null,null,0,0,null,0,null,null,0,0,1,0,0,0,0]
[null,null,null,null,null,null,0,"-",null,0,null,null,null,0,0,null,0,null,null,0,0,1,0,0,0,0]
[null,null,null,null,null,null,0,"-",null,0,null,null,null,0,0,null,0,null,null,0,0,1,0,0,0,0]
[null,null,null,null,null,null,0,"-",null,0,null,null,null,0,0,null,0,null,null,0,0,1,0,0,0,0]
[null,null,null,null,null,null,0,"-",null,0,null,null,null,0,0,null,0,null,null,0,0,1,0,0,0,0]
[null,null,null,null,null,null,0,"-",null,0,null,null,null,0,0,null,0,null,null,0,0,1,0,0,0,0]
[null,null,null,null,null,null,0,"-",null,0,null,null,null,0,0,null,0,null,null,0,0,1,0,0,0,0]
[null,null,null,null,null,null,0,"-",null,0,null,null,null,0,0,null,0,null,null,0,0,1,0,0,0,0]
[null,null,null,null,null,null,0,"-",null,0,null,null,null,0,0,null,0,null,null,0,0,1,0,0,0,0]
[null,null,null,null,null,null,{"$f":"IF(AND(F117<>0,$D$31<>0),F117/$D$31,0)","v":0},"-",null,0,null,null,null,0,0,null,0,null,null,0,0,1,0,0,0,0]
[null,null,null,null,null,null,{"$f":"IF(AND(F118<>0,$D$31<>0),F118/$D$31,0)","v":0},"-",null,0,null,null,null,0,0,null,0,null,null,0,0,1,0,0,0,0]
[null,null,null,null,null,null,{"$f":"IF(AND(F119<>0,$D$31<>0),F119/$D$31,0)","v":0},"-",null,0,null,null,null,0,0,null,0,null,null,0,0,1,0,0,0,0]
[null,null,null,null,null,null,0,"-",null,0,null,null,null,0,0,null,0,null,null,0,0,1,0,0,0,0]
[null,null,null,null,null,null,0,"-",null,0,null,null,null,0,0,null,0,null,null,0,0,1,0,0,0,0]
[null,null,null,null,null,null,{"$f":"IF(AND(F122<>0,$D$31<>0),F122/$D$31,0)","v":0},"-",null,0,null,null,null,0,0,null,0,null,null,0,0,1,0,0,0,0]
[null,2.1,"Superstructure: Frame",null,"-",{"$f":"SUM(F124:F143)","v":0},{"$f":"IF(AND(F123<>0,$D$31<>0),F123/$D$31,0)","v":0},{"$f":"IF(AND('Detailed Application Stage'!G176<>0,'Post-Construction Stage'!G123<>0),IF('Detailed Application Stage'!G176='Post-Construction Stage'!G123,\"Equal to planning stage estimate\",IF('Detailed Application Stage'!G176<'Post-Construction Stage'!G123,\"Greater than planning stage estimate\",\"Less than planning stage estimate\")),\"\")","v":""},"-",{"$f":"SUM(J124:J143)","v":0},"-","-","-","-",{"$f":"SUM(O124:O143)","v":0},"-",{"$f":"SUM(Q124:Q143)","v":0},"-","-",{"$f":"IF(W123<>0,W123/($F$176+$O$176),0)","v":0},{"$f":"IF(Y123<>0,Y123/($F$176+$O$176),0)","v":0},1,{"$f":"SUM(W124:W143)","v":0},0,{"$f":"SUM(Y124:Y143)","v":0},0]
[null,2.1,"Superstructure: Frame",null,null,null,{"$f":"IF(AND(F124<>0,$D$31<>0),F124/$D$31,0)","v":0},"-",null,{"$f":"I124*F124","v":0},null,null,null,0,0,null,0,null,null,0,0,1,0,0,0,0]
[null,null,null,null,null,null,{"$f":"IF(AND(F125<>0,$D$31<>0),F125/$D$31,0)","v":0},"-",null,0,null,null,null,0,0,null,0,null,null,0,0,1,0,0,0,0]
[null,null,null,null,null,null,{"$f":"IF(AND(F126<>0,$D$31<>0),F126/$D$31,0)","v":0},"-",null,0,null,null,null,0,0,null,0,null,null,0,0,1,0,0,0,0]
[null,null,null,null,null,null,0,"-",null,0,null,null,null,0,0,null,0,null,null,0,0,1,0,0,0,0]
[null,null,null,null,null,null,0,"-",null,0,null,null,null,0,0,null,0,null,null,0,0,1,0,0,0,0]
[null,null,null,null,null,null,0,"-",null,0,null,null,null,0,0,null,0,null,null,0,0,1,0,0,0,0]
[null,null,null,null,null,null,0,"-",null,0,null,null,null,0,0,null,0,null,null,0,0,1,0,0,0,0]
[null,null,null,null,null,null,0,"-",null,0,null,null,null,0,0,null,0,null,null,0,0,1,0,0,0,0]
[null,null,null,null,null,null,0,"-",null,0,null,null,null,0,0,null,0,null,null,0,0,1,0,0,0,0]
[null,null,null,null,null,null,0,"-",null,0,null,null,null,0,0,null,0,null,null,0,0,1,0,0,0,0]
[null,null,null,null,null,null,0,"-",null,0,null,null,null,0,0,null,0,null,null,0,0,1,0,0,0,0]
[null,null,null,null,null,null,0,"-",null,0,null,null,null,0,0,null,0,null,null,0,0,1,0,0,0,0]
[null,null,null,null,null,null,0,"-",null,0,null,null,null,0,0,null,0,null,null,0,0,1,0,0,0,0]
[null,null,null,null,null,null,0,"-",null,0,null,null,null,0,0,null,0,null,null,0,0,1,0,0,0,0]
[null,null,null,null,null,null,{"$f":"IF(AND(F138<>0,$D$31<>0),F138/$D$31,0)","v":0},"-",null,0,null,null,null,0,0,null,0,null,null,0,0,1,0,0,0,0]
[null,null,null,null,null,null,{"$f":"IF(AND(F139<>0,$D$31<>0),F139/$D$31,0)","v":0},"-",null,0,null,null,null,0,0,null,0,null,null,0,0,1,0,0,0,0]
[null,null,null,null,null,null,{"$f":"IF(AND(F140<>0,$D$31<>0),F140/$D$31,0)","v":0},"-",null,0,null,null,null,0,0,null,0,null,null,0,0,1,0,0,0,0]
[null,null,null,null,null,null,{"$f":"IF(AND(F141<>0,$D$31<>0),F141/$D$31,0)","v":0},"-",null,0,null,null,null,0,0,null,0,null,null,0,0,1,0,0,0,0]
[null,null,null,null,null,null,0,"-",null,0,null,null,null,0,0,null,0,null,null,0,0,1,0,0,0,0]
[null,null,null,null,null,null,0,"-",null,0,null,null,null,0,0,null,0,null,null,0,0,1,0,0,0,0]
[null,2.2000000000000002,"Superstructure: Upper Floors",null,"-",{"$f":"SUM(F145:F164)","v":0},{"$f":"IF(AND(F144<>0,$D$31<>0),F144/$D$31,0)","v":0},{"$f":"IF(AND('Detailed Application Stage'!G197<>0,'Post-Construction Stage'!G144<>0),IF('Detailed Application Stage'!G197='Post-Construction Stage'!G144,\"Equal to planning stage estimate\",IF('Detailed Application Stage'!G197<'Post-Construction Stage'!G144,\"Greater than planning stage estimate\",\"Less than planning stage estimate\")),\"\")","v":""},"-",{"$f":"SUM(J145:J164)","v":0},"-","-","-","-",{"$f":"SUM(O145:O164)","v":0},"-",{"$f":"SUM(Q145:Q164)","v":0},"-","-",{"$f":"IF(W144<>0,W144/($F$197+$O$197),0)","v":0},{"$f":"IF(Y144<>0,Y144/($F$197+$O$197),0)","v":0},1,{"$f":"SUM(W145:W164)","v":0},0,{"$f":"SUM(Y145:Y164)","v":0},0]
[null,2.2000000000000002,"Superstructure: Upper Floors",null,null,null,{"$f":"IF(AND(F145<>0,$D$31<>0),F145/$D$31,0)","v":0},"-",null,{"$f":"I145*F145","v":0},null,null,null,0,0,null,0,null,null,0,0,1,0,0,0,0]
[null,null,null,null,null,null,{"$f":"IF(AND(F146<>0,$D$31<>0),F146/$D$31,0)","v":0},"-",null,0,null,null,null,0,0,null,0,null,null,0,0,1,0,0,0,0]
[null,null,null,null,null,null,{"$f":"IF(AND(F147<>0,$D$31<>0),F147/$D$31,0)","v":0},"-",null,0,null,null,null,0,0,null,0,null,null,0,0,1,0,0,0,0]
[null,null,null,null,null,null,0,"-",null,0,null,null,null,0,0,null,0,null,null,0,0,1,0,0,0,0]
[null,null,null,null,null,null,0,"-",null,0,null,null,null,0,0,null,0,null,null,0,0,1,0,0,0,0]
[null,null,null,null,null,null,0,"-",null,0,null,null,null,0,0,null,0,null,null,0,0,1,0,0,0,0]
[null,null,null,null,null,null,0,"-",null,0,null,null,null,0,0,null,0,null,null,0,0,1,0,0,0,0]
[null,null,null,null,null,null,0,"-",null,0,null,null,null,0,0,null,0,null,null,0,0,1,0,0,0,0]
[null,null,null,null,null,null,0,"-",null,0,null,null,null,0,0,null,0,null,null,0,0,1,0,0,0,0]
[null,null,null,null,null,null,0,"-",null,0,null,null,null,0,0,null,0,null,null,0,0,1,0,0,0,0]
[null,null,null,null,null,null,0,"-",null,0,null,null,null,0,0,null,0,null,null,0,0,1,0,0,0,0]
[null,null,null,null,null,null,0,"-",null,0,null,null,null,0,0,null,0,null,null,0,0,1,0,0,0,0]
[null,null,null,null,null,null,0,"-",null,0,null,null,null,0,0,null,0,null,null,0,0,1,0,0,0,0]
[null,null,null,null,null,null,0,"-",null,0,null,null,null,0,0,null,0,null,null,0,0,1,0,0,0,0]
[null,null,null,null,null,null,{"$f":"IF(AND(F159<>0,$D$31<>0),F159/$D$31,0)","v":0},"-",null,0,null,null,null,0,0,null,0,null,null,0,0,1,0,0,0,0]
[null,null,null,null,null,null,{"$f":"IF(AND(F160<>0,$D$31<>0),F160/$D$31,0)","v":0},"-",null,0,null,null,null,0,0,null,0,null,null,0,0,1,0,0,0,0]
[null,null,null,null,null,null,{"$f":"IF(AND(F161<>0,$D$31<>0),F161/$D$31,0)","v":0},"-",null,0,null,null,null,0,0,null,0,null,null,0,0,1,0,0,0,0]
[null,null,null,null,null,null,{"$f":"IF(AND(F162<>0,$D$31<>0),F162/$D$31,0)","v":0},"-",null,0,null,null,null,0,0,null,0,null,null,0,0,1,0,0,0,0]
[null,null,null,null,null,null,0,"-",null,0,null,null,null,0,0,null,0,null,null,0,0,1,0,0,0,0]
[null,null,null,null,null,null,0,"-",null,{"$f":"I164*F164","v":0},null,null,null,0,0,null,0,null,null,0,0,1,0,0,0,0]
[null,2.2999999999999998,"Superstructure: Roof",null,"-",{"$f":"SUM(F166:F185)","v":0},{"$f":"IF(AND(F165<>0,$D$31<>0),F165/$D$31,0)","v":0},{"$f":"IF(AND('Detailed Application Stage'!G218<>0,'Post-Construction Stage'!G165<>0),IF('Detailed Application Stage'!G218='Post-Construction Stage'!G165,\"Equal to planning stage estimate\",IF('Detailed Application Stage'!G218<'Post-Construction Stage'!G165,\"Greater than planning stage estimate\",\"Less than planning stage estimate\")),\"\")","v":""},"-",{"$f":"SUM(J166:J185)","v":0},"-","-","-","-",{"$f":"SUM(O166:O185)","v":0},"-",{"$f":"SUM(Q166:Q185)","v":0},"-","-",{"$f":"IF(W165<>0,W165/($F$218+$O$218),0)","v":0},{"$f":"IF(Y165<>0,Y165/($F$218+$O$218),0)","v":0},1,{"$f":"SUM(W166:W185)","v":0},0,{"$f":"SUM(Y166:Y185)","v":0},0]
[null,2.2999999999999998,"Superstructure: Roof",null,null,null,{"$f":"IF(AND(F166<>0,$D$31<>0),F166/$D$31,0)","v":0},"-",null,{"$f":"I166*F166","v":0},null,null,null,0,0,null,0,null,null,0,0,1,0,0,0,0]
[null,null,null,null,null,null,{"$f":"IF(AND(F167<>0,$D$31<>0),F167/$D$31,0)","v":0},"-",null,0,null,null,null,0,0,null,0,null,null,0,0,1,0,0,0,0]
[null,null,null,null,null,null,{"$f":"IF(AND(F168<>0,$D$31<>0),F168/$D$31,0)","v":0},"-",null,0,null,null,null,{"$f":"IF(M168<>0,INT(60/M168),0)","v":0},{"$f":"N168*I168","v":0},null,{"$f":"P168*M168","v":0},null,null,0,0,{"$f":"1-T168-U168","v":1},{"$f":"T168*(F168+O168)","v":0},{"$f":"IF(AND(W168<>0,$D$31<>0),W168/$D$31,0)","v":0},{"$f":"U168*(F168+O168)","v":0},0]
[null,null,null,null,null,null,0,"-",null,0,null,null,null,0,0,null,0,null,null,0,0,1,0,0,0,0]
[null,null,null,null,null,null,0,"-",null,0,null,null,null,0,0,null,0,null,null,0,0,1,0,0,0,0]
[null,null,null,null,null,null,0,"-",null,0,null,null,null,0,0,null,0,null,null,0,0,1,0,0,0,0]
[null,null,null,null,null,null,0,"-",null,0,null,null,null,0,0,null,0,null,null,0,0,1,0,0,0,0]
[null,null,null,null,null,null,0,"-",null,0,null,null,null,0,0,null,0,null,null,0,0,1,0,0,0,0]
[null,null,null,null,null,null,0,"-",null,0,null,null,null,0,0,null,0,null,null,0,0,1,0,0,0,0]
[null,null,null,null,null,null,0,"-",null,0,null,null,null,0,0,null,0,null,null,0,0,1,0,0,0,0]
[null,null,null,null,null,null,0,"-",null,0,null,null,null,0,0,null,0,null,null,0,0,1,0,0,0,0]
[null,null,null,null,null,null,0,"-",null,0,null,null,null,0,0,null,0,null,null,0,0,1,0,0,0,0]
[null,null,null,null,null,null,0,"-",null,0,null,null,null,0,0,null,0,null,null,0,0,1,0,0,0,0]
[null,null,null,null,null,null,0,"-",null,0,null,null,null,0,0,null,0,null,null,0,0,1,0,0,0,0]
[null,null,null,null,null,null,{"$f":"IF(AND(F180<>0,$D$31<>0),F180/$D$31,0)","v":0},"-",null,0,null,null,null,0,0,null,0,null,null,0,0,1,0,0,0,0]
[null,null,null,null,null,null,{"$f":"IF(AND(F181<>0,$D$31<>0),F181/$D$31,0)","v":0},"-",null,0,null,null,null,0,0,null,0,null,null,0,0,1,0,0,0,0]
[null,null,null,null,null,null,{"$f":"IF(AND(F182<>0,$D$31<>0),F182/$D$31,0)","v":0},"-",null,0,null,null,null,0,0,null,0,null,null,0,0,1,0,0,0,0]
[null,null,null,null,null,null,{"$f":"IF(AND(F183<>0,$D$31<>0),F183/$D$31,0)","v":0},"-",null,0,null,null,null,0,0,null,0,null,null,0,0,1,0,0,0,0]
[null,null,null,null,null,null,0,"-",null,0,null,null,null,0,0,null,0,null,null,0,0,1,0,0,0,0]
[null,null,null,null,null,null,0,"-",null,0,null,null,null,0,0,null,0,null,null,0,0,1,0,0,0,0]
[null,2.4,"Superstructure: Stairs and Ramps",null,"-",{"$f":"SUM(F187:F201)","v":0},{"$f":"IF(AND(F186<>0,$D$31<>0),F186/$D$31,0)","v":0},"-","-",{"$f":"SUM(J187:J201)","v":0},"-","-","-","-",{"$f":"SUM(O187:O201)","v":0},"-",{"$f":"SUM(Q187:Q201)","v":0},"-","-",{"$f":"IF(W186<>0,W186/($F$239+$O$239),0)","v":0},{"$f":"IF(Y186<>0,Y186/($F$239+$O$239),0)","v":0},1,{"$f":"SUM(W187:W201)","v":0},0,{"$f":"SUM(Y187:Y201)","v":0},0]
[null,2.4,"Superstructure: Stairs and Ramps",null,null,null,{"$f":"IF(AND(F187<>0,$D$31<>0),F187/$D$31,0)","v":0},"-",null,{"$f":"I187*F187","v":0},null,null,null,0,0,null,0,null,null,0,0,1,0,0,0,0]
[null,null,null,null,null,null,{"$f":"IF(AND(F188<>0,$D$31<>0),F188/$D$31,0)","v":0},"-",null,0,null,null,null,0,0,null,0,null,null,0,0,1,0,0,0,0]
[null,null,null,null,null,null,{"$f":"IF(AND(F189<>0,$D$31<>0),F189/$D$31,0)","v":0},"-",null,0,null,null,null,0,0,null,0,null,null,0,0,1,0,0,0,0]
[null,null,null,null,null,null,0,"-",null,0,null,null,null,0,0,null,0,null,null,0,0,1,0,0,0,0]
[null,null,null,null,null,null,0,"-",null,0,null,null,null,0,0,null,0,null,null,0,0,1,0,0,0,0]
[null,null,null,null,null,null,0,"-",null,0,null,null,null,0,0,null,0,null,null,0,0,1,0,0,0,0]
[null,null,null,null,null,null,0,"-",null,0,null,null,null,0,0,null,0,null,null,0,0,1,0,0,0,0]
[null,null,null,null,null,null,0,"-",null,0,null,null,null,0,0,null,0,null,null,0,0,1,0,0,0,0]
[null,null,null,null,null,null,0,"-",null,0,null,null,null,0,0,null,0,null,null,0,0,1,0,0,0,0]
[null,null,null,null,null,null,0,"-",null,0,null,null,null,0,0,null,0,null,null,0,0,1,0,0,0,0]
[null,null,null,null,null,null,0,"-",null,0,null,null,null,0,0,null,0,null,null,0,0,1,0,0,0,0]
[null,null,null,null,null,null,0,"-",null,0,null,null,null,0,0,null,0,null,null,0,0,1,0,0,0,0]
[null,null,null,null,null,null,0,"-",null,0,null,null,null,0,0,null,0,null,null,0,0,1,0,0,0,0]
[null,null,null,null,null,null,0,"-",null,0,null,null,null,0,0,null,0,null,null,0,0,1,0,0,0,0]
[null,null,null,null,null,null,{"$f":"IF(AND(F201<>0,$D$31<>0),F201/$D$31,0)","v":0},"-",null,0,null,null,null,0,0,null,0,null,null,0,0,1,0,0,0,0]
[null,2.5,"Superstructure: External Walls",null,"-",{"$f":"SUM(F203:F222)","v":0},{"$f":"IF(AND(F202<>0,$D$31<>0),F202/$D$31,0)","v":0},{"$f":"IF(AND('Detailed Application Stage'!G255<>0,'Post-Construction Stage'!G202<>0),IF('Detailed Application Stage'!G255='Post-Construction Stage'!G202,\"Equal to planning stage estimate\",IF('Detailed Application Stage'!G255<'Post-Construction Stage'!G202,\"Greater than planning stage estimate\",\"Less than planning stage estimate\")),\"\")","v":""},"-",{"$f":"SUM(J203:J222)","v":0},"-","-","-","-",{"$f":"SUM(O203:O222)","v":0},"-",{"$f":"SUM(Q203:Q222)","v":0},"-","-",{"$f":"IF(W202<>0,W202/($F$255+$O$255),0)","v":0},{"$f":"IF(Y202<>0,Y202/($F$255+$O$255),0)","v":0},1,{"$f":"SUM(W203:W222)","v":0},0,{"$f":"SUM(Y203:Y222)","v":0},0]
[null,2.5,"Superstructure: External Walls",null,null,null,{"$f":"IF(AND(F203<>0,$D$31<>0),F203/$D$31,0)","v":0},"-",null,{"$f":"I203*F203","v":0},null,null,null,0,0,null,0,null,null,0,0,1,0,0,0,0]
[null,null,null,null,null,null,{"$f":"IF(AND(F204<>0,$D$31<>0),F204/$D$31,0)","v":0},"-",null,0,null,null,null,0,0,null,0,null,null,0,0,1,0,0,0,0]
[null,null,null,null,null,null,{"$f":"IF(AND(F205<>0,$D$31<>0),F205/$D$31,0)","v":0},"-",null,0,null,null,null,0,0,null,0,null,null,0,0,1,0,0,0,0]
[null,null,null,null,null,null,0,"-",null,0,null,null,null,0,0,null,0,null,null,0,0,1,0,0,0,0]
[null,null,null,null,null,null,0,"-",null,0,null,null,null,0,0,null,0,null,null,0,0,1,0,0,0,0]
[null,null,null,null,null,null,0,"-",null,0,null,null,null,0,0,null,0,null,null,0,0,1,0,0,0,0]
[null,null,null,null,null,null,0,"-",null,0,null,null,null,0,0,null,0,null,null,0,0,1,0,0,0,0]
[null,null,null,null,null,null,0,"-",null,0,null,null,null,0,0,null,0,null,null,0,0,1,0,0,0,0]
[null,null,null,null,null,null,0,"-",null,0,null,null,null,0,0,null,0,null,null,0,0,1,0,0,0,0]
[null,null,null,null,null,null,0,"-",null,0,null,null,null,0,0,null,0,null,null,0,0,1,0,0,0,0]
[null,null,null,null,null,null,0,"-",null,0,null,null,null,0,0,null,0,null,null,0,0,1,0,0,0,0]
[null,null,null,null,null,null,0,"-",null,0,null,null,null,0,0,null,0,null,null,0,0,1,0,0,0,0]
[null,null,null,null,null,null,0,"-",null,0,null,null,null,0,0,null,0,null,null,0,0,1,0,0,0,0]
[null,null,null,null,null,null,0,"-",null,0,null,null,null,0,0,null,0,null,null,0,0,1,0,0,0,0]
[null,null,null,null,null,null,{"$f":"IF(AND(F217<>0,$D$31<>0),F217/$D$31,0)","v":0},"-",null,0,null,null,null,0,0,null,0,null,null,0,0,1,0,0,0,0]
[null,null,null,null,null,null,{"$f":"IF(AND(F218<>0,$D$31<>0),F218/$D$31,0)","v":0},"-",null,0,null,null,null,0,0,null,0,null,null,0,0,1,0,0,0,0]
[null,null,null,null,null,null,{"$f":"IF(AND(F219<>0,$D$31<>0),F219/$D$31,0)","v":0},"-",null,0,null,null,null,0,0,null,0,null,null,0,0,1,0,0,0,0]
[null,null,null,null,null,null,{"$f":"IF(AND(F220<>0,$D$31<>0),F220/$D$31,0)","v":0},"-",null,0,null,null,null,0,0,null,0,null,null,0,0,1,0,0,0,0]
[null,null,null,null,null,null,0,"-",null,0,null,null,null,0,0,null,0,null,null,0,0,1,0,0,0,0]
[null,null,null,null,null,null,0,"-",null,0,null,null,null,0,0,null,0,null,null,0,0,1,0,0,0,0]
[null,2.6,"Superstructure: Windows and External Doors",null,"-",{"$f":"SUM(F224:F238)","v":0},{"$f":"IF(AND(F223<>0,$D$31<>0),F223/$D$31,0)","v":0},{"$f":"IF(AND('Detailed Application Stage'!G276<>0,'Post-Construction Stage'!G223<>0),IF('Detailed Application Stage'!G276='Post-Construction Stage'!G223,\"Equal to planning stage estimate\",IF('Detailed Application Stage'!G276<'Post-Construction Stage'!G223,\"Greater than planning stage estimate\",\"Less than planning stage estimate\")),\"\")","v":""},"-",{"$f":"SUM(J224:J238)","v":0},"-","-","-","-",{"$f":"SUM(O224:O238)","v":0},"-",{"$f":"SUM(Q224:Q238)","v":0},"-","-",{"$f":"IF(W223<>0,W223/($F$276+$O$276),0)","v":0},{"$f":"IF(Y223<>0,Y223/($F$276+$O$276),0)","v":0},1,{"$f":"SUM(W224:W238)","v":0},0,{"$f":"SUM(Y224:Y238)","v":0},0]
[null,2.6,"Superstructure: Windows and External Doors",null,null,null,{"$f":"IF(AND(F224<>0,$D$31<>0),F224/$D$31,0)","v":0},"-",null,0,null,null,null,0,0,null,0,null,null,0,0,1,0,0,0,0]
[null,null,null,null,null,null,{"$f":"IF(AND(F225<>0,$D$31<>0),F225/$D$31,0)","v":0},"-",null,0,null,null,null,0,0,null,0,null,null,0,0,1,0,0,0,0]
[null,null,null,null,null,null,{"$f":"IF(AND(F226<>0,$D$31<>0),F226/$D$31,0)","v":0},"-",null,0,null,null,null,0,0,null,0,null,null,0,0,1,0,0,0,0]
[null,null,null,null,null,null,0,"-",null,0,null,null,null,0,0,null,0,null,null,0,0,1,0,0,0,0]
[null,null,null,null,null,null,0,"-",null,0,null,null,null,0,0,null,0,null,null,0,0,1,0,0,0,0]
[null,null,null,null,null,null,0,"-",null,0,null,null,null,0,0,null,0,null,null,0,0,1,0,0,0,0]
[null,null,null,null,null,null,0,"-",null,0,null,null,null,0,0,null,0,null,null,0,0,1,0,0,0,0]
[null,null,null,null,null,null,0,"-",null,0,null,null,null,0,0,null,0,null,null,0,0,1,0,0,0,0]
[null,null,null,null,null,null,0,"-",null,0,null,null,null,{"$f":"IF(M232<>0,INT(60/M232),0)","v":0},{"$f":"N232*I232","v":0},null,{"$f":"P232*M232","v":0},null,null,0,0,{"$f":"1-T232-U232","v":1},{"$f":"T232*(F232+O232)","v":0},{"$f":"IF(AND(W232<>0,$D$31<>0),W232/$D$31,0)","v":0},{"$f":"U232*(F232+O232)","v":0},0]
[null,null,null,null,null,null,0,"-",null,0,null,null,null,0,0,null,0,null,null,0,0,1,0,0,0,0]
[null,null,null,null,null,null,0,"-",null,0,null,null,null,0,0,null,0,null,null,0,0,1,0,0,0,0]
[null,null,null,null,null,null,0,"-",null,0,null,null,null,0,0,null,0,null,null,0,0,1,0,0,0,0]
[null,null,null,null,null,null,0,"-",null,0,null,null,null,0,0,null,0,null,null,0,0,1,0,0,0,0]
[null,null,null,null,null,null,0,"-",null,0,null,null,null,0,0,null,0,null,null,0,0,1,0,0,0,0]
[null,null,null,null,null,null,{"$f":"IF(AND(F238<>0,$D$31<>0),F238/$D$31,0)","v":0},"-",null,0,null,null,null,0,0,null,0,null,null,0,0,1,0,0,0,0]
[null,2.7,"Superstructure: Internal Walls and Partitions",null,"-",{"$f":"SUM(F240:F259)","v":0},{"$f":"IF(AND(F239<>0,$D$31<>0),F239/$D$31,0)","v":0},{"$f":"IF(AND('Detailed Application Stage'!G292<>0,'Post-Construction Stage'!G239<>0),IF('Detailed Application Stage'!G292='Post-Construction Stage'!G239,\"Equal to planning stage estimate\",IF('Detailed Application Stage'!G292<'Post-Construction Stage'!G239,\"Greater than planning stage estimate\",\"Less than planning stage estimate\")),\"\")","v":""},"-",{"$f":"SUM(J240:J259)","v":0},"-","-","-","-",{"$f":"SUM(O240:O259)","v":0},"-",{"$f":"SUM(Q240:Q259)","v":0},"-","-",{"$f":"IF(W239<>0,W239/($F$292+$O$292),0)","v":0},{"$f":"IF(Y239<>0,Y239/($F$292+$O$292),0)","v":0},1,{"$f":"SUM(W240:W259)","v":0},0,{"$f":"SUM(Y240:Y259)","v":0},0]
[null,2.7,"Superstructure: Internal Walls and Partitions",null,null,null,{"$f":"IF(AND(F240<>0,$D$31<>0),F240/$D$31,0)","v":0},"-",null,0,null,null,null,0,0,null,0,null,null,0,0,1,0,0,0,0]
[null,null,null,null,null,null,{"$f":"IF(AND(F241<>0,$D$31<>0),F241/$D$31,0)","v":0},"-",null,0,null,null,null,0,0,null,0,null,null,0,0,1,0,0,0,0]
[null,null,null,null,null,null,{"$f":"IF(AND(F242<>0,$D$31<>0),F242/$D$31,0)","v":0},"-",null,0,null,null,null,0,0,null,0,null,null,0,0,1,0,0,0,0]
[null,null,null,null,null,null,0,"-",null,0,null,null,null,0,0,null,0,null,null,0,0,1,0,0,0,0]
[null,null,null,null,null,null,0,"-",null,0,null,null,null,0,0,null,0,null,null,0,0,1,0,0,0,0]
[null,null,null,null,null,null,0,"-",null,0,null,null,null,0,0,null,0,null,null,0,0,1,0,0,0,0]
[null,null,null,null,null,null,0,"-",null,0,null,null,null,0,0,null,0,null,null,0,0,1,0,0,0,0]
[null,null,null,null,null,null,0,"-",null,0,null,null,null,0,0,null,0,null,null,0,0,1,0,0,0,0]
[null,null,null,null,null,null,0,"-",null,0,null,null,null,0,0,null,0,null,null,0,0,1,0,0,0,0]
[null,null,null,null,null,null,0,"-",null,0,null,null,null,0,0,null,0,null,null,0,0,1,0,0,0,0]
[null,null,null,null,null,null,0,"-",null,0,null,null,null,0,0,null,0,null,null,0,0,1,0,0,0,0]
[null,null,null,null,null,null,0,"-",null,0,null,null,null,0,0,null,0,null,null,0,0,1,0,0,0,0]
[null,null,null,null,null,null,0,"-",null,0,null,null,null,0,0,null,0,null,null,0,0,1,0,0,0,0]
[null,null,null,null,null,null,0,"-",null,0,null,null,null,0,0,null,0,null,null,0,0,1,0,0,0,0]
[null,null,null,null,null,null,{"$f":"IF(AND(F254<>0,$D$31<>0),F254/$D$31,0)","v":0},"-",null,0,null,null,null,0,0,null,0,null,null,0,0,1,0,0,0,0]
[null,null,null,null,null,null,{"$f":"IF(AND(F255<>0,$D$31<>0),F255/$D$31,0)","v":0},"-",null,0,null,null,null,0,0,null,0,null,null,0,0,1,0,0,0,0]
[null,null,null,null,null,null,{"$f":"IF(AND(F256<>0,$D$31<>0),F256/$D$31,0)","v":0},"-",null,0,null,null,null,0,0,null,0,null,null,0,0,1,0,0,0,0]
[null,null,null,null,null,null,{"$f":"IF(AND(F257<>0,$D$31<>0),F257/$D$31,0)","v":0},"-",null,0,null,null,null,0,0,null,0,null,null,0,0,1,0,0,0,0]
[null,null,null,null,null,null,0,"-",null,0,null,null,null,0,0,null,0,null,null,0,0,1,0,0,0,0]
[null,null,null,null,null,null,0,"-",null,0,null,null,null,0,0,null,0,null,null,0,0,1,0,0,0,0]
[null,2.8,"Superstructure: Internal Doors",null,"-",{"$f":"SUM(F261:F275)","v":0},{"$f":"IF(AND(F260<>0,$D$31<>0),F260/$D$31,0)","v":0},{"$f":"IF(AND('Detailed Application Stage'!G313<>0,'Post-Construction Stage'!G260<>0),IF('Detailed Application Stage'!G313='Post-Construction Stage'!G260,\"Equal to planning stage estimate\",IF('Detailed Application Stage'!G313<'Post-Construction Stage'!G260,\"Greater than planning stage estimate\",\"Less than planning stage estimate\")),\"\")","v":""},"-",{"$f":"SUM(J261:J275)","v":0},"-","-","-","-",{"$f":"SUM(O261:O275)","v":0},"-",{"$f":"SUM(Q261:Q275)","v":0},"-","-",{"$f":"IF(W260<>0,W260/($F$313+$O$313),0)","v":0},{"$f":"IF(Y260<>0,Y260/($F$313+$O$313),0)","v":0},1,{"$f":"SUM(W261:W275)","v":0},0,{"$f":"SUM(Y261:Y275)","v":0},0]
[null,2.8,"Superstructure: Internal Doors",null,null,null,{"$f":"IF(AND(F261<>0,$D$31<>0),F261/$D$31,0)","v":0},"-",null,0,null,null,null,0,0,null,0,null,null,0,0,1,0,0,0,0]
[null,null,null,null,null,null,{"$f":"IF(AND(F262<>0,$D$31<>0),F262/$D$31,0)","v":0},"-",null,0,null,null,null,0,0,null,0,null,null,0,0,1,0,0,0,0]
[null,null,null,null,null,null,{"$f":"IF(AND(F263<>0,$D$31<>0),F263/$D$31,0)","v":0},"-",null,0,null,null,null,0,0,null,0,null,null,0,0,1,0,0,0,0]
[null,null,null,null,null,null,0,"-",null,0,null,null,null,0,0,null,0,null,null,0,0,1,0,0,0,0]
[null,null,null,null,null,null,0,"-",null,0,null,null,null,0,0,null,0,null,null,0,0,1,0,0,0,0]
[null,null,null,null,null,null,0,"-",null,0,null,null,null,0,0,null,0,null,null,0,0,1,0,0,0,0]
[null,null,null,null,null,null,0,"-",null,{"$f":"I267*F267","v":0},null,null,null,0,0,null,0,null,null,0,0,1,0,0,0,0]
[null,null,null,null,null,null,0,"-",null,0,null,null,null,0,0,null,0,null,null,0,0,1,0,0,0,0]
[null,null,null,null,null,null,0,"-",null,0,null,null,null,0,0,null,0,null,null,0,0,1,0,0,0,0]
[null,null,null,null,null,null,0,"-",null,0,null,null,null,0,0,null,0,null,null,0,0,1,0,0,0,0]
[null,null,null,null,null,null,0,"-",null,0,null,null,null,0,0,null,0,null,null,0,0,1,0,0,0,0]
[null,null,null,null,null,null,0,"-",null,0,null,null,null,0,0,null,0,null,null,0,0,1,0,0,0,0]
[null,null,null,null,null,null,0,"-",null,0,null,null,null,0,0,null,0,null,null,0,0,1,0,0,0,0]
[null,null,null,null,null,null,0,"-",null,0,null,null,null,0,0,null,0,null,null,0,0,1,0,0,0,0]
[null,null,null,null,null,null,{"$f":"IF(AND(F275<>0,$D$31<>0),F275/$D$31,0)","v":0},"-",null,0,null,null,null,0,0,null,0,null,null,0,0,1,0,0,0,0]
[null,3,"Finishes",null,"-",{"$f":"SUM(F277:F296)","v":0},{"$f":"IF(AND(F276<>0,$D$31<>0),F276/$D$31,0)","v":0},"-","-",{"$f":"SUM(J277:J296)","v":0},"-","-","-","-",{"$f":"SUM(O277:O296)","v":0},"-",{"$f":"SUM(Q277:Q296)","v":0},"-","-",{"$f":"IF(W276<>0,W276/($F$329+$O$329),0)","v":0},{"$f":"IF(Y276<>0,Y276/($F$329+$O$329),0)","v":0},1,{"$f":"SUM(W277:W296)","v":0},0,{"$f":"SUM(Y277:Y296)","v":0},0]
[null,3,"Finishes",null,null,null,{"$f":"IF(AND(F277<>0,$D$31<>0),F277/$D$31,0)","v":0},"-",null,0,null,null,null,0,0,null,0,null,null,0,0,1,0,0,0,0]
[null,null,null,null,null,null,{"$f":"IF(AND(F278<>0,$D$31<>0),F278/$D$31,0)","v":0},"-",null,0,null,null,null,0,0,null,0,null,null,0,0,1,0,0,0,0]
[null,null,null,null,null,null,{"$f":"IF(AND(F279<>0,$D$31<>0),F279/$D$31,0)","v":0},"-",null,0,null,null,null,0,0,null,0,null,null,0,0,1,0,0,0,0]
[null,null,null,null,null,null,0,"-",null,0,null,null,null,0,0,null,0,null,null,0,0,1,0,0,0,0]
[null,null,null,null,null,null,0,"-",null,0,null,null,null,0,0,null,0,null,null,0,0,1,0,0,0,0]
[null,null,null,null,null,null,0,"-",null,0,null,null,null,0,0,null,0,null,null,0,0,1,0,0,0,0]
[null,null,null,null,null,null,0,"-",null,0,null,null,null,0,0,null,0,null,null,0,0,1,0,0,0,0]
[null,null,null,null,null,null,0,"-",null,0,null,null,null,0,0,null,0,null,null,0,0,1,0,0,0,0]
[null,null,null,null,null,null,0,"-",null,0,null,null,null,0,0,null,0,null,null,0,0,1,0,0,0,0]
[null,null,null,null,null,null,0,"-",null,0,null,null,null,0,0,null,0,null,null,0,0,1,0,0,0,0]
[null,null,null,null,null,null,0,"-",null,0,null,null,null,0,0,null,0,null,null,0,0,1,0,0,0,0]
[null,null,null,null,null,null,0,"-",null,0,null,null,null,0,0,null,0,null,null,0,0,1,0,0,0,0]
[null,null,null,null,null,null,0,"-",null,0,null,null,null,0,0,null,0,null,null,0,0,1,0,0,0,0]
[null,null,null,null,null,null,0,"-",null,0,null,null,null,0,0,null,0,null,null,0,0,1,0,0,0,0]
[null,null,null,null,null,null,{"$f":"IF(AND(F291<>0,$D$31<>0),F291/$D$31,0)","v":0},"-",null,0,null,null,null,0,0,null,0,null,null,0,0,1,0,0,0,0]
[null,null,null,null,null,null,{"$f":"IF(AND(F292<>0,$D$31<>0),F292/$D$31,0)","v":0},"-",null,0,null,null,null,0,0,null,0,null,null,0,0,1,0,0,0,0]
[null,null,null,null,null,null,{"$f":"IF(AND(F293<>0,$D$31<>0),F293/$D$31,0)","v":0},"-",null,0,null,null,null,0,0,null,0,null,null,0,0,1,0,0,0,0]
[null,null,null,null,null,null,{"$f":"IF(AND(F294<>0,$D$31<>0),F294/$D$31,0)","v":0},"-",null,0,null,null,null,0,0,null,0,null,null,0,0,1,0,0,0,0]
[null,null,null,null,null,null,0,"-",null,0,null,null,null,0,0,null,0,null,null,0,0,1,0,0,0,0]
[null,null,null,null,null,null,0,"-",null,0,null,null,null,{"$f":"IF(M296<>0,INT(60/M296),0)","v":0},{"$f":"N296*I296","v":0},null,{"$f":"P296*M296","v":0},null,null,0,0,{"$f":"1-T296-U296","v":1},{"$f":"T296*(F296+O296)","v":0},{"$f":"IF(AND(W296<>0,$D$31<>0),W296/$D$31,0)","v":0},{"$f":"U296*(F296+O296)","v":0},0]
[null,4,"Fittings, furnishings & equipment (FFE)",null,"-",{"$f":"SUM(F298:F317)","v":0},{"$f":"IF(AND(F297<>0,$D$31<>0),F297/$D$31,0)","v":0},"-","-",{"$f":"SUM(J298:J317)","v":0},"-","-","-","-",{"$f":"SUM(O298:O317)","v":0},"-",{"$f":"SUM(Q298:Q317)","v":0},"-","-",{"$f":"IF(W297<>0,W297/($F$350+$O$350),0)","v":0},{"$f":"IF(Y297<>0,Y297/($F$350+$O$350),0)","v":0},1,{"$f":"SUM(W298:W317)","v":0},0,{"$f":"SUM(Y298:Y317)","v":0},0]
[null,4,"Fittings, furnishings & equipment (FFE)",null,null,null,{"$f":"IF(AND(F298<>0,$D$31<>0),F298/$D$31,0)","v":0},"-",null,0,null,null,null,0,0,null,0,null,null,0,0,1,0,0,0,0]
[null,null,null,null,null,null,{"$f":"IF(AND(F299<>0,$D$31<>0),F299/$D$31,0)","v":0},"-",null,0,null,null,null,0,0,null,0,null,null,0,0,1,0,0,0,0]
[null,null,null,null,null,null,{"$f":"IF(AND(F300<>0,$D$31<>0),F300/$D$31,0)","v":0},"-",null,0,null,null,null,0,0,null,0,null,null,0,0,1,0,0,0,0]
[null,null,null,null,null,null,0,"-",null,0,null,null,null,0,0,null,0,null,null,0,0,1,0,0,0,0]
[null,null,null,null,null,null,0,"-",null,0,null,null,null,0,0,null,0,null,null,0,0,1,0,0,0,0]
[null,null,null,null,null,null,0,"-",null,0,null,null,null,0,0,null,0,null,null,0,0,1,0,0,0,0]
[null,null,null,null,null,null,0,"-",null,0,null,null,null,0,0,null,0,null,null,0,0,1,0,0,0,0]
[null,null,null,null,null,null,0,"-",null,0,null,null,null,0,0,null,0,null,null,0,0,1,0,0,0,0]
[null,null,null,null,null,null,0,"-",null,0,null,null,null,0,0,null,0,null,null,0,0,1,0,0,0,0]
[null,null,null,null,null,null,0,"-",null,0,null,null,null,0,0,null,0,null,null,0,0,1,0,0,0,0]
[null,null,null,null,null,null,0,"-",null,0,null,null,null,0,0,null,0,null,null,0,0,1,0,0,0,0]
[null,null,null,null,null,null,0,"-",null,0,null,null,null,0,0,null,0,null,null,0,0,1,0,0,0,0]
[null,null,null,null,null,null,0,"-",null,0,null,null,null,0,0,null,0,null,null,0,0,1,0,0,0,0]
[null,null,null,null,null,null,0,"-",null,0,null,null,null,0,0,null,0,null,null,0,0,1,0,0,0,0]
[null,null,null,null,null,null,{"$f":"IF(AND(F312<>0,$D$31<>0),F312/$D$31,0)","v":0},"-",null,0,null,null,null,0,0,null,0,null,null,0,0,1,0,0,0,0]
[null,null,null,null,null,null,{"$f":"IF(AND(F313<>0,$D$31<>0),F313/$D$31,0)","v":0},"-",null,0,null,null,null,0,0,null,0,null,null,0,0,1,0,0,0,0]
[null,null,null,null,null,null,{"$f":"IF(AND(F314<>0,$D$31<>0),F314/$D$31,0)","v":0},"-",null,0,null,null,null,0,0,null,0,null,null,0,0,1,0,0,0,0]
[null,null,null,null,null,null,{"$f":"IF(AND(F315<>0,$D$31<>0),F315/$D$31,0)","v":0},"-",null,0,null,null,null,0,0,null,0,null,null,0,0,1,0,0,0,0]
[null,null,null,null,null,null,0,"-",null,0,null,null,null,0,0,null,0,null,null,0,0,1,0,0,0,0]
[null,null,null,null,null,null,0,"-",null,0,null,null,null,0,0,null,0,null,null,0,0,1,0,0,0,0]
[null,5,"Services (MEP)",null,"-",{"$f":"SUM(F319:F338)","v":0},{"$f":"IF(AND(F318<>0,$D$31<>0),F318/$D$31,0)","v":0},"-","-",{"$f":"SUM(J319:J338)","v":0},"-","-","-","-",{"$f":"SUM(O319:O338)","v":0},"-",{"$f":"SUM(Q319:Q338)","v":0},"-","-",{"$f":"IF(W318<>0,W318/($F$371+$O$371),0)","v":0},{"$f":"IF(Y318<>0,Y318/($F$371+$O$371),0)","v":0},1,{"$f":"SUM(W319:W338)","v":0},0,{"$f":"SUM(Y319:Y338)","v":0},0]
[null,5,"Services (MEP)",null,null,null,{"$f":"IF(AND(F319<>0,$D$31<>0),F319/$D$31,0)","v":0},"-",null,0,null,null,null,0,0,null,0,null,null,0,0,1,0,0,0,0]
[null,null,null,null,null,null,{"$f":"IF(AND(F320<>0,$D$31<>0),F320/$D$31,0)","v":0},"-",null,0,null,null,null,0,0,null,0,null,null,0,0,1,0,0,0,0]
[null,null,null,null,null,null,{"$f":"IF(AND(F321<>0,$D$31<>0),F321/$D$31,0)","v":0},"-",null,0,null,null,null,0,0,null,0,null,null,0,0,1,0,0,0,0]
[null,null,null,null,null,null,0,"-",null,0,null,null,null,0,0,null,0,null,null,0,0,1,0,0,0,0]
[null,null,null,null,null,null,0,"-",null,0,null,null,null,0,0,null,0,null,null,0,0,1,0,0,0,0]
[null,null,null,null,null,null,0,"-",null,0,null,null,null,0,0,null,0,null,null,0,0,1,0,0,0,0]
[null,null,null,null,null,null,0,"-",null,0,null,null,null,0,0,null,0,null,null,0,0,1,0,0,0,0]
[null,null,null,null,null,null,0,"-",null,0,null,null,null,0,0,null,0,null,null,0,0,1,0,0,0,0]
[null,null,null,null,null,null,0,"-",null,0,null,null,null,0,0,null,0,null,null,0,0,1,0,0,0,0]
[null,null,null,null,null,null,0,"-",null,0,null,null,null,0,0,null,0,null,null,0,0,1,0,0,0,0]
[null,null,null,null,null,null,0,"-",null,0,null,null,null,0,0,null,0,null,null,0,0,1,0,0,0,0]
[null,null,null,null,null,null,0,"-",null,0,null,null,null,0,0,null,0,null,null,0,0,1,0,0,0,0]
[null,null,null,null,null,null,0,"-",null,{"$f":"I331*F331","v":0},null,null,null,0,0,null,0,null,null,0,0,1,0,0,0,0]
[null,null,null,null,null,null,0,"-",null,0,null,null,null,0,0,null,0,null,null,0,0,1,0,0,0,0]
[null,null,null,null,null,null,{"$f":"IF(AND(F333<>0,$D$31<>0),F333/$D$31,0)","v":0},"-",null,0,null,null,null,0,0,null,0,null,null,0,0,1,0,0,0,0]
[null,null,null,null,null,null,{"$f":"IF(AND(F334<>0,$D$31<>0),F334/$D$31,0)","v":0},"-",null,0,null,null,null,0,0,null,0,null,null,0,0,1,0,0,0,0]
[null,null,null,null,null,null,{"$f":"IF(AND(F335<>0,$D$31<>0),F335/$D$31,0)","v":0},"-",null,0,null,null,null,0,0,null,0,null,null,0,0,1,0,0,0,0]
[null,null,null,null,null,null,{"$f":"IF(AND(F336<>0,$D$31<>0),F336/$D$31,0)","v":0},"-",null,0,null,null,null,0,0,null,0,null,null,0,0,1,0,0,0,0]
[null,null,null,null,null,null,0,"-",null,0,null,null,null,0,0,null,0,null,null,0,0,1,0,0,0,0]
[null,null,null,null,null,null,0,"-",null,0,null,null,null,0,0,null,0,null,null,0,0,1,0,0,0,0]
[null,6,"Prefabricated Buildings and Building Units",null,"-",{"$f":"SUM(F340:F359)","v":0},{"$f":"IF(AND(F339<>0,$D$31<>0),F339/$D$31,0)","v":0},"-","-",{"$f":"SUM(J340:J359)","v":0},"-","-","-","-",{"$f":"SUM(O340:O359)","v":0},"-",{"$f":"SUM(Q340:Q359)","v":0},"-","-",{"$f":"IF(W339<>0,W339/($F$392+$O$392),0)","v":0},{"$f":"IF(Y339<>0,Y339/($F$392+$O$392),0)","v":0},1,{"$f":"SUM(W340:W359)","v":0},0,{"$f":"SUM(Y340:Y359)","v":0},0]
[null,6,"Prefabricated Buildings and Building Units",null,null,null,{"$f":"IF(AND(F340<>0,$D$31<>0),F340/$D$31,0)","v":0},"-",null,0,null,null,null,0,0,null,0,null,null,0,0,1,0,0,0,0]
[null,null,null,null,null,null,{"$f":"IF(AND(F341<>0,$D$31<>0),F341/$D$31,0)","v":0},"-",null,0,null,null,null,0,0,null,0,null,null,0,0,1,0,0,0,0]
[null,null,null,null,null,null,{"$f":"IF(AND(F342<>0,$D$31<>0),F342/$D$31,0)","v":0},"-",null,0,null,null,null,0,0,null,0,null,null,0,0,1,0,0,0,0]
[null,null,null,null,null,null,0,"-",null,0,null,null,null,0,0,null,0,null,null,0,0,1,0,0,0,0]
[null,null,null,null,null,null,0,"-",null,0,null,null,null,0,0,null,0,null,null,0,0,1,0,0,0,0]
[null,null,null,null,null,null,0,"-",null,0,null,null,null,0,0,null,0,null,null,0,0,1,0,0,0,0]
[null,null,null,null,null,null,0,"-",null,0,null,null,null,0,0,null,0,null,null,0,0,1,0,0,0,0]
[null,null,null,null,null,null,0,"-",null,0,null,null,null,0,0,null,0,null,null,0,0,1,0,0,0,0]
[null,null,null,null,null,null,0,"-",null,0,null,null,null,0,0,null,0,null,null,0,0,1,0,0,0,0]
[null,null,null,null,null,null,0,"-",null,0,null,null,null,0,0,null,0,null,null,0,0,1,0,0,0,0]
[null,null,null,null,null,null,0,"-",null,0,null,null,null,0,0,null,0,null,null,0,0,1,0,0,0,0]
[null,null,null,null,null,null,0,"-",null,0,null,null,null,0,0,null,0,null,null,0,0,1,0,0,0,0]
[null,null,null,null,null,null,0,"-",null,0,null,null,null,0,0,null,0,null,null,0,0,1,0,0,0,0]
[null,null,null,null,null,null,0,"-",null,0,null,null,null,0,0,null,0,null,null,0,0,1,0,0,0,0]
[null,null,null,null,null,null,{"$f":"IF(AND(F354<>0,$D$31<>0),F354/$D$31,0)","v":0},"-",null,0,null,null,null,0,0,null,0,null,null,0,0,1,0,0,0,0]
[null,null,null,null,null,null,{"$f":"IF(AND(F355<>0,$D$31<>0),F355/$D$31,0)","v":0},"-",null,0,null,null,null,0,0,null,0,null,null,0,0,1,0,0,0,0]
[null,null,null,null,null,null,{"$f":"IF(AND(F356<>0,$D$31<>0),F356/$D$31,0)","v":0},"-",null,0,null,null,null,0,0,null,0,null,null,0,0,1,0,0,0,0]
[null,null,null,null,null,null,{"$f":"IF(AND(F357<>0,$D$31<>0),F357/$D$31,0)","v":0},"-",null,0,null,null,null,0,0,null,0,null,null,0,0,1,0,0,0,0]
[null,null,null,null,null,null,0,"-",null,0,null,null,null,0,0,null,0,null,null,0,0,1,0,0,0,0]
[null,null,null,null,null,null,0,"-",null,0,null,null,null,0,0,null,0,null,null,0,0,1,0,0,0,0]
[null,7,"Work to Existing Building",null,"-",{"$f":"SUM(F361:F380)","v":0},{"$f":"IF(AND(F360<>0,$D$31<>0),F360/$D$31,0)","v":0},"-","-",{"$f":"SUM(J361:J380)","v":0},"-","-","-","-",{"$f":"SUM(O361:O380)","v":0},"-",{"$f":"SUM(Q361:Q380)","v":0},"-","-",{"$f":"IF(W360<>0,W360/($F$413+$O$413),0)","v":0},{"$f":"IF(Y360<>0,Y360/($F$413+$O$413),0)","v":0},{"$f":"1-T360-U360","v":1},{"$f":"SUM(W361:W380)","v":0},{"$f":"IF(AND(W360<>0,$D$31<>0),W360/$D$31,0)","v":0},{"$f":"SUM(Y361:Y380)","v":0},0]
[null,7,"Work to Existing Building",null,null,null,{"$f":"IF(AND(F361<>0,$D$31<>0),F361/$D$31,0)","v":0},"-",null,0,null,null,null,{"$f":"IF(M361<>0,INT(60/M361),0)","v":0},{"$f":"N361*I361","v":0},null,{"$f":"P361*M361","v":0},null,null,0,0,1,{"$f":"T361*(F361+O361)","v":0},0,{"$f":"U361*(F361+O361)","v":0},0]
[null,null,null,null,null,null,{"$f":"IF(AND(F362<>0,$D$31<>0),F362/$D$31,0)","v":0},"-",null,0,null,null,null,0,0,null,0,null,null,0,0,1,0,0,0,0]
[null,null,null,null,null,null,{"$f":"IF(AND(F363<>0,$D$31<>0),F363/$D$31,0)","v":0},"-",null,0,null,null,null,0,0,null,0,null,null,0,0,1,0,0,0,0]
[null,null,null,null,null,null,0,"-",null,0,null,null,null,0,0,null,0,null,null,0,0,1,0,0,0,0]
[null,null,null,null,null,null,0,"-",null,0,null,null,null,0,0,null,0,null,null,0,0,1,0,0,0,0]
[null,null,null,null,null,null,0,"-",null,0,null,null,null,0,0,null,0,null,null,0,0,1,0,0,0,0]
[null,null,null,null,null,null,0,"-",null,0,null,null,null,0,0,null,0,null,null,0,0,1,0,0,0,0]
[null,null,null,null,null,null,0,"-",null,0,null,null,null,0,0,null,0,null,null,0,0,1,0,0,0,0]
[null,null,null,null,null,null,0,"-",null,0,null,null,null,{"$f":"IF(M369<>0,INT(60/M369),0)","v":0},0,null,0,null,null,0,0,1,0,0,0,0]
[null,null,null,null,null,null,0,"-",null,0,null,null,null,0,0,null,0,null,null,0,0,1,0,0,0,0]
[null,null,null,null,null,null,0,"-",null,0,null,null,null,0,0,null,0,null,null,0,0,1,0,0,0,0]
[null,null,null,null,null,null,0,"-",null,0,null,null,null,0,0,null,0,null,null,0,0,1,0,0,0,0]
[null,null,null,null,null,null,0,"-",null,0,null,null,null,0,0,null,0,null,null,0,0,1,0,0,0,0]
[null,null,null,null,null,null,0,"-",null,0,null,null,null,0,0,null,0,null,null,0,0,1,0,0,0,0]
[null,null,null,null,null,null,{"$f":"IF(AND(F375<>0,$D$31<>0),F375/$D$31,0)","v":0},"-",null,0,null,null,null,0,0,null,0,null,null,0,0,1,0,0,0,0]
[null,null,null,null,null,null,{"$f":"IF(AND(F376<>0,$D$31<>0),F376/$D$31,0)","v":0},"-",null,0,null,null,null,0,0,null,0,null,null,0,0,1,0,0,0,0]
[null,null,null,null,null,null,{"$f":"IF(AND(F377<>0,$D$31<>0),F377/$D$31,0)","v":0},"-",null,0,null,null,null,0,0,null,0,null,null,0,0,1,0,0,0,0]
[null,null,null,null,null,null,{"$f":"IF(AND(F378<>0,$D$31<>0),F378/$D$31,0)","v":0},"-",null,0,null,null,null,0,0,null,0,null,null,0,0,1,0,0,0,0]
[null,null,null,null,null,null,0,"-",null,0,null,null,null,0,0,null,0,null,null,0,0,1,0,0,0,0]
[null,null,null,null,null,null,0,"-",null,0,null,null,null,0,0,null,0,null,null,0,0,1,0,0,0,0]
[null,8,"External works",null,"-",{"$f":"SUM(F382:F401)","v":0},{"$f":"IF(AND(F381<>0,$D$31<>0),F381/$D$31,0)","v":0},"-","-",{"$f":"SUM(J382:J401)","v":0},"-","-","-","-",{"$f":"SUM(O382:O401)","v":0},"-",{"$f":"SUM(Q382:Q401)","v":0},"-","-",{"$f":"IF(W381<>0,W381/($F$434+$O$434),0)","v":0},{"$f":"IF(Y381<>0,Y381/($F$434+$O$434),0)","v":0},1,{"$f":"SUM(W382:W401)","v":0},0,{"$f":"SUM(Y382:Y401)","v":0},0]
[null,8,"External works",null,null,null,null,"-",null,0,null,null,null,0,0,null,0,null,null,0,0,1,0,0,0,0]
[null,null,null,null,null,null,{"$f":"IF(AND(F383<>0,$D$31<>0),F383/$D$31,0)","v":0},"-",null,0,null,null,null,0,0,null,0,null,null,0,0,1,0,0,0,0]
[null,null,null,null,null,null,{"$f":"IF(AND(F384<>0,$D$31<>0),F384/$D$31,0)","v":0},"-",null,0,null,null,null,0,0,null,0,null,null,0,0,1,0,0,0,0]
[null,null,null,null,null,null,{"$f":"IF(AND(F385<>0,$D$31<>0),F385/$D$31,0)","v":0},"-",null,0,null,null,null,0,0,null,0,null,null,0,0,1,0,0,0,0]
[null,null,null,null,null,null,0,"-",null,0,null,null,null,0,0,null,0,null,null,0,0,1,0,0,0,0]
[null,null,null,null,null,null,0,"-",null,0,null,null,null,0,0,null,0,null,null,0,0,1,0,0,0,0]
[null,null,null,null,null,null,0,"-",null,0,null,null,null,0,0,null,0,null,null,0,0,1,0,0,0,0]
[null,null,null,null,null,null,0,"-",null,0,null,null,null,0,0,null,0,null,null,0,0,1,0,0,0,0]
[null,null,null,null,null,null,0,"-",null,0,null,null,null,0,0,null,0,null,null,0,0,1,0,0,0,0]
[null,null,null,null,null,null,0,"-",null,0,null,null,null,0,0,null,0,null,null,0,0,1,0,0,0,0]
[null,null,null,null,null,null,0,"-",null,0,null,null,null,0,0,null,0,null,null,0,0,1,0,0,0,0]
[null,null,null,null,null,null,0,"-",null,0,null,null,null,0,0,null,0,null,null,0,0,1,0,0,0,0]
[null,null,null,null,null,null,0,"-",null,0,null,null,null,0,0,null,0,null,null,0,0,1,0,0,0,0]
[null,null,null,null,null,null,0,"-",null,{"$f":"I395*F395","v":0},null,null,null,0,0,null,0,null,null,0,0,1,0,0,0,0]
[null,null,null,null,null,null,0,"-",null,0,null,null,null,0,0,null,0,null,null,0,0,1,0,0,0,0]
[null,null,null,null,null,null,0,"-",null,0,null,null,null,0,0,null,0,null,null,0,0,1,0,0,0,0]
[null,null,null,null,null,null,0,"-",null,0,null,null,null,0,0,null,0,null,null,0,0,1,0,0,0,0]
[null,null,null,null,null,null,0,"-",null,0,null,null,null,0,0,null,0,null,null,0,0,1,0,0,0,0]
[null,null,null,null,null,null,0,"-",null,{"$f":"I400*F400","v":0},null,null,null,{"$f":"IF(M400<>0,INT(60/M400),0)","v":0},0,null,0,null,null,0,0,1,0,0,0,0]
[null,null,null,null,null,null,0,"-",null,{"$f":"I401*F401","v":0},null,null,null,{"$f":"IF(M401<>0,INT(60/M401),0)","v":0},{"$f":"N401*I401","v":0},null,{"$f":"P401*M401","v":0},null,null,0,0,1,{"$f":"T401*(F401+O401)","v":0},0,0,{"$f":"IF(AND(Y401<>0,$D$31<>0),Y401/$D$31,0)","v":0}]
[null,null,"Overall",null,null,{"$f":"SUM(F38,F54,F70,F86,F102,F123,F144,F165,F186,F202,F223,F239,F260,F276,F297,F318,F339,F360,F381)","v":0},0,null,null,{"$f":"SUM(J38,J54,J70,J86,J102,J123,J144,J165,J186,J202,J223,J239,J260,J276,J297,J318,J339,J360,J381)","v":0},null,null,null,null,{"$f":"SUM(O38,O54,O70,O86,O102,O123,O144,O165,O186,O202,O223,O239,O260,O276,O297,O318,O339,O360,O381)","v":0},null,{"$f":"SUM(Q38:Q401)","v":0},null,null,{"$f":"IF(AND($F$455<>0,$O$455<>0),SUM(W38,W54,W70,W86,W102,W123,W144,W165,W186,W202,W223,W239,W260,W276,W297,W318,W339,W360,W381)/($F$455+$O$455),0)","v":0},{"$f":"IF(AND($F$455<>0,$O$455<>0),SUM(Y38,Y54,Y70,Y86,Y102,Y123,Y144,Y165,Y186,Y202,Y223,Y239,Y260,Y276,Y297,Y318,Y339,Y360,Y381)/($F$455+$O$455),0)","v":0},{"$f":"1-T402-U402","v":1},{"$f":"SUM(W38:W401)","v":0},{"$f":"SUM(X38:X401)","v":0},{"$f":"SUM(Y38:Y401)","v":0},{"$f":"SUM(Z38:Z401)","v":0}]
[]
[]
[]
[]
[null,"Recycling and Waste Reporting table"]
[null,"The light green-coloured cells should be completed to achieve 'pioneering' status."]
[null,null,null,null,"TOTAL ESTIMATES OF WASTE",null,null,"WASTE MANAGEMENT ROUTES",null,null,null,null,null,"SUMMARY"]
[null,null,null,null,"Overall Waste \n(tonnes)","Overall Waste\n(tonnes/m2 GIA)","Performance Indicator (Planning Stage Estimate)","REUSE ",null,"RECYCLE",null,"OTHER DISPOSAL",null,"Total Reuse (%)","Total Recycle (%)","Total Reuse and Recycle (%)","Total Waste Reported (%)"]
[null,null,"Type of Waste","Source of Information",null,null,null,"Reuse Onsite (%)","Reuse Offsite (%)","Recycle Onsite(%)","Recycle Offsite (%)","To Landfill (%)","To Other Management (%)"]
[null,null,null,null,"PRODUCT AND CONSTRUCTION STAGE (MODULE A)"]
[null,1,"Demolition Waste",null,null,{"$f":"IF($D$31>0,IF(E413>0,E413/$D$31,0),0)","v":0},{"$f":"IF(AND('Detailed Application Stage'!F466<>0,'Post-Construction Stage'!F413<>0),IF('Detailed Application Stage'!F466='Post-Construction Stage'!F413,\"Equal to planning stage estimate\",IF('Detailed Application Stage'!F466<'Post-Construction Stage'!F413,\"Greater than planning stage estimate\",\"Less than planning stage estimate\")),\"\")","v":""},null,null,null,null,null,null,{"$f":"SUM(H413:I413)","v":0},{"$f":"SUM(J413:K413)","v":0},{"$f":"SUM(N413:O413)","v":0},{"$f":"SUM(H413:M413)","v":0}]
[null,2.1,"Excavation Waste",null,null,{"$f":"IF($D$31>0,IF(E414>0,E414/$D$31,0),0)","v":0},{"$f":"IF(AND('Detailed Application Stage'!F467<>0,'Post-Construction Stage'!F414<>0),IF('Detailed Application Stage'!F467='Post-Construction Stage'!F414,\"Equal to planning stage estimate\",IF('Detailed Application Stage'!F467<'Post-Construction Stage'!F414,\"Greater than planning stage estimate\",\"Less than planning stage estimate\")),\"\")","v":""},null,null,null,null,null,null,{"$f":"SUM(H414:I414)","v":0},{"$f":"SUM(J414:K414)","v":0},{"$f":"SUM(N414:O414)","v":0},{"$f":"SUM(H414:M414)","v":0}]
[null,2.8,"Construction Waste",null,null,{"$f":"IF($D$31>0,IF(E415>0,E415/$D$31,0),0)","v":0},{"$f":"IF(AND('Detailed Application Stage'!F468<>0,'Post-Construction Stage'!F415<>0),IF('Detailed Application Stage'!F468='Post-Construction Stage'!F415,\"Equal to planning stage estimate\",IF('Detailed Application Stage'!F468<'Post-Construction Stage'!F415,\"Greater than planning stage estimate\",\"Less than planning stage estimate\")),\"\")","v":""},null,null,null,null,null,null,{"$f":"SUM(H415:I415)","v":0},{"$f":"SUM(J415:K415)","v":0},{"$f":"SUM(N415:O415)","v":0},{"$f":"SUM(H415:M415)","v":0}]
[null,null,null,null,"USE STAGE (MODULE B)"]
[null,3,"Demolition / Strip-out Waste",null,{"$f":"IF(ISNUMBER(#REF!),#REF!/1000,0)","v":0},{"$f":"IF($D$31>0,IF(E417>0,E417/$D$31,0),0)","v":0},{"$f":"IF(AND('Detailed Application Stage'!F470<>0,'Post-Construction Stage'!F417<>0),IF('Detailed Application Stage'!F470='Post-Construction Stage'!F417,\"Equal to planning stage estimate\",IF('Detailed Application Stage'!F470<'Post-Construction Stage'!F417,\"Greater than planning stage estimate\",\"Less than planning stage estimate\")),\"\")","v":""},null,null,null,null,null,null,{"$f":"SUM(H417:I417)","v":0},{"$f":"SUM(J417:K417)","v":0},{"$f":"SUM(N417:O417)","v":0},{"$f":"SUM(H417:M417)","v":0}]
[null,4,"Construction Waste",null,{"$f":"IF(ISNUMBER(#REF!),#REF!/1000,0)","v":0},{"$f":"IF($D$31>0,IF(E418>0,E418/$D$31,0),0)","v":0},{"$f":"IF(AND('Detailed Application Stage'!F471<>0,'Post-Construction Stage'!F418<>0),IF('Detailed Application Stage'!F471='Post-Construction Stage'!F418,\"Equal to planning stage estimate\",IF('Detailed Application Stage'!F471<'Post-Construction Stage'!F418,\"Greater than planning stage estimate\",\"Less than planning stage estimate\")),\"\")","v":""},null,null,null,null,null,null,{"$f":"SUM(H418:I418)","v":0},{"$f":"SUM(J418:K418)","v":0},{"$f":"SUM(N418:O418)","v":0},{"$f":"SUM(H418:M418)","v":0}]
[null,null,null,null,"Overall Waste (tonnes/annum)","Overall Waste (tonnes/annum\n/m2)","Performance Indicator (Planning Stage Estimate)","Reuse Onsite (%)","Reuse Offsite (%)","Recycle Offsite(%)","Recycle Offsite (%)","To Landfill (%)","To Other Management (%)","Total Reuse (%)","Total Recycle (%)","Total Reuse and Recycle (%)","Total Waste Reported (%)"]
[null,5,"Municipal Waste",null,null,{"$f":"IF($D$31>0,IF(E420>0,E420/$D$31,0),0)","v":0},{"$f":"IF(AND('Detailed Application Stage'!F473<>0,'Post-Construction Stage'!F420<>0),IF('Detailed Application Stage'!F473='Post-Construction Stage'!F420,\"Equal to planning stage estimate\",IF('Detailed Application Stage'!F473<'Post-Construction Stage'!F420,\"Greater than planning stage estimate\",\"Less than planning stage estimate\")),\"\")","v":""},null,null,null,null,null,null,{"$f":"SUM(H420:I420)","v":0},{"$f":"SUM(J420:K420)","v":0},{"$f":"SUM(N420:O420)","v":0},{"$f":"SUM(H420:M420)","v":0}]
[null,6,"Industrial Waste (if applicable)",null,null,{"$f":"IF($D$31>0,IF(E421>0,E421/$D$31,0),0)","v":0},{"$f":"IF(AND('Detailed Application Stage'!F474<>0,'Post-Construction Stage'!F421<>0),IF('Detailed Application Stage'!F474='Post-Construction Stage'!F421,\"Equal to planning stage estimate\",IF('Detailed Application Stage'!F474<'Post-Construction Stage'!F421,\"Greater than planning stage estimate\",\"Less than planning stage estimate\")),\"\")","v":""},null,null,null,null,null,null,{"$f":"SUM(H421:I421)","v":0},{"$f":"SUM(J421:K421)","v":0},{"$f":"SUM(N421:O421)","v":0},{"$f":"SUM(H421:M421)","v":0}]
[null,null,null,null,"MODULE A - MODULE C"]
[null,null,null,null,"Overall Materials \n(tonnes)","Overall Materials (Modules A-C) (tonnes\n/m2)","Performance Indicator (Planning Stage Estimate)","Reuse Onsite (%)","Reuse Offsite (%)","Recycle Offsite(%)","Recycle Offsite (%)","To Landfill (%)","To Other Management (%)","Total Reuse (%)","Total Recycle (%)","Total Reuse and Recycle (%)","Total Waste Reported (%)"]
[null,7,"Total Materials",null,{"$f":"IF(AND(ISNUMBER(#REF!),ISNUMBER(#REF!),ISNUMBER(#REF!),ISNUMBER(#REF!)),((#REF!+#REF!+#REF!+#REF!)/1000),0)","v":0},{"$f":"IF($D$31>0,IF(E424>0,E424/$D$31,0),0)","v":0},{"$f":"IF(AND('Detailed Application Stage'!F477<>0,'Post-Construction Stage'!F424<>0),IF('Detailed Application Stage'!F477='Post-Construction Stage'!F424,\"Equal to planning stage estimate\",IF('Detailed Application Stage'!F477<'Post-Construction Stage'!F424,\"Greater than planning stage estimate\",\"Less than planning stage estimate\")),\"\")","v":""},null,null,null,null,null,null,{"$f":"SUM(H424:I424)","v":0},{"$f":"SUM(J424:K424)","v":0},{"$f":"SUM(N424:O424)","v":0},{"$f":"SUM(H424:M424)","v":0}]
[]
[]
[null,"Circular Economy Targets "]
[null,"Circular economy targets for existing and new development",null,"Policy Requirement","Target at Application Stage (%)","Rate Achieved (%)","Policy Met?","Actions Undertaken / Explanation (How has this been achieved? What are the reasons for any differences between targets/performance?)"]
[null,"Demolition waste materials (non-hazardous)",null,"Minimum of 95% diverted from landfill for reuse, recycling or recovery.",{"$f":"IF(ISNUMBER('Detailed Application Stage'!E482),'Detailed Application Stage'!E482,\"\")","v":0.98},null,{"$f":"IF(ISNUMBER(F429),IF(F429>100%,\"Input not valid\",IF(F429=95%,\"Yes\",IF(100%>=F429>95%,\"Exceeds Policy\",\"No\"))),\"\")","v":""}]
[null,"Excavation waste materials",null,"Minimum of 95% diverted from landfill for beneficial reuse.",{"$f":"IF(ISNUMBER('Detailed Application Stage'!E483),'Detailed Application Stage'!E483,\"\")","v":0.95},null,{"$f":"IF(ISNUMBER(F430),IF(F430>100%,\"Input not valid\",IF(F430=95%,\"Yes\",IF(100%>=F430>95%,\"Exceeds Policy\",\"No\"))),\"\")","v":""}]
[null,"Construction waste materials",null,"Minimum of 95% diverted from landfill for reuse, recycling or recovery.",{"$f":"IF(ISNUMBER('Detailed Application Stage'!E484),'Detailed Application Stage'!E484,\"\")","v":0.95},null,{"$f":"IF(ISNUMBER(F431),IF(F431>100%,\"Input not valid\",IF(F431=95%,\"Yes\",IF(100%>=F431>95%,\"Exceeds Policy\",\"No\"))),\"\")","v":""}]
[null,"Municipal waste",null,"Minimum 65% recycling rate by 2030.",{"$f":"IF(ISNUMBER('Detailed Application Stage'!E485),'Detailed Application Stage'!E485,\"\")","v":0.65},null,{"$f":"IF(ISNUMBER(F432),IF(F432>100%,\"Input not valid\",IF(F432=65%,\"Yes\",IF(100%>=F432>65%,\"Exceeds Policy\",\"No\"))),\"\")","v":""}]
[null,"Recycled content",null,"Minimum 20% of the building material elements to be comprised of recycled or reused content.",{"$f":"IF(ISNUMBER('Detailed Application Stage'!E486),'Detailed Application Stage'!E486,\"\")","v":0.2},null,{"$f":"IF(ISNUMBER(F433),IF(F433>100%,\"Input not valid\",IF(F433=20%,\"Yes\",IF(100%>=F433>20%,\"Exceeds Policy\",\"No\"))),\"\")","v":""}]
[]
[]
[null,"Key Achievements and Gap Assessment:"]
[null,"Summary of key actions undertaken to achieve circular economy outcomes, including achievements and reasons for any differences between targets/performance"]
[null,"Key Achievements",null,"Measure / Target Proposed at Application Stage (if applicable)",null,"Actions Undertaken / Explanation (How has this been achieved? What are the reasons for any differences between targets/performance?)"]
[null,"[This list does not need to be exhaustive but should identify the actions with the biggest impacts.]"]
[]
[]
[]
[]
[]
[]
[]
[]
[]
[]
[]
[]
[]
[]
[]
[null,"Lessons Learnt:"]
[null,"Lessons learnt from the process of undertaking a CE Statement that will inform future projects"]
[null,"Description",null,"Explanation / Solution / Future Approach"]
[null,null,null,"[i.e. Design options or materials that could be used, design principles that could be applied.]"]

{"sheet":"Drop- down list","index":5,"n_rows":20,"n_cols":6,"rows_kept":20,"cut":false,"hidden":true,"merged":[]}
["Number of Use Types","Yes/No","Layers","Building element category reference","Building element category","Other"]
[1,"Yes","Site",0.1,"Demolition: Toxic/Hazardous/Contaminated Material Treatment","It is accepted that the Reserved Matters Reporting will be conditioned"]
[2,"No","Substructure",0.2,"Major Demolition Works","It is accepted that the Post Construction Reporting will be conditioned"]
[3,"Yes, in whole","Super- Structure",0.3,"Temporary Support to Adjacent Structures"]
[4,"Yes, in part","Shell/ Skin",0.4,"Specialist Ground Works"]
[5,"No","Services",1,"Substructure"]
[6,null,"Space",2.1,"Superstructure: Frame"]
[7,null,"Stuff",2.2000000000000002,"Superstructure: Upper Floors"]
[8,null,"Construction Stuff",2.2999999999999998,"Superstructure: Roof"]
[9,null,null,2.4,"Superstructure: Stairs and Ramps"]
[10,null,"Yes",2.5,"Superstructure: External Walls"]
[11,null,"No",2.6,"Superstructure: Windows and External Doors"]
[12,null,null,2.7,"Superstructure: Internal Walls and Partitions"]
[13,null,null,2.8,"Superstructure: Internal Doors"]
[14,null,null,3,"Finishes"]
[15,null,null,4,"Fittings, furnishings & equipment (FFE)"]
[null,null,null,5,"Services (MEP)"]
[null,null,null,6,"Prefabricated Buildings and Building Units"]
[null,null,null,7,"Work to Existing Building"]
[null,null,null,8,"External works"]